Workbook

Sheet الحركات اليومية
A1: م | B1: التاريخ | C1: اسم الصنف | D1: اسم المورد/العميل | E1: نوع العملية | F1: الرصيد بالمخزن | G1: الكمية | H1: القيمة
A2: 1 | B2: 2019-07-19 | C2: بريك | E2: مشتريات | F2: =IF($E2="مبيعات",SUMIF('بضاعة المخزن'!$B:$B,$C2,'بضاعة المخزن'!$O:$O),"") ->  | G2: 74 | H2: =IFERROR(IF(E2="","",IF(OR($E2="مشتريات",$E2="مرتجعات"),$G2*VLOOKUP($C2,'بضاعة المخزن'!$B$3:$D$5000,2,0),$G2*VLOOKUP($C2,'بضاعة المخزن'!$B$3:$D$5000,3,0))),"") -> 1406
A3: 2 | B3: 2019-07-19 | C3: روتي | E3: مشتريات | F3: =IF($E3="مبيعات",SUMIF('بضاعة المخزن'!$B:$B,$C3,'بضاعة المخزن'!$O:$O),"") ->  | G3: 150 | H3: =IFERROR(IF(E3="","",IF(OR($E3="مشتريات",$E3="مرتجعات"),$G3*VLOOKUP($C3,'بضاعة المخزن'!$B$3:$D$5000,2,0),$G3*VLOOKUP($C3,'بضاعة المخزن'!$B$3:$D$5000,3,0))),"") -> 8550
A4: 3 | B4: 2019-07-19 | C4: رابسو كبيروصغير | E4: مرتجعات | F4: =IF($E4="مبيعات",SUMIF('بضاعة المخزن'!$B:$B,$C4,'بضاعة المخزن'!$O:$O),"") ->  | G4: 250 | H4: =IFERROR(IF(E4="","",IF(OR($E4="مشتريات",$E4="مرتجعات"),$G4*VLOOKUP($C4,'بضاعة المخزن'!$B$3:$D$5000,2,0),$G4*VLOOKUP($C4,'بضاعة المخزن'!$B$3:$D$5000,3,0))),"") -> 29875
A5: 4 | B5: 2019-07-19 | C5: عالمي وفاهيتا | E5: مبيعات | F5: =IF($E5="مبيعات",SUMIF('بضاعة المخزن'!$B:$B,$C5,'بضاعة المخزن'!$O:$O),"") -> 90 | G5: 60 | H5: =IFERROR(IF(E5="","",IF(OR($E5="مشتريات",$E5="مرتجعات"),$G5*VLOOKUP($C5,'بضاعة المخزن'!$B$3:$D$5000,2,0),$G5*VLOOKUP($C5,'بضاعة المخزن'!$B$3:$D$5000,3,0))),"") -> 1140
A6: 5 | B6: 2019-07-19 | C6: عالمي وفاهيتا | E6: مرتجعات | F6: =IF($E6="مبيعات",SUMIF('بضاعة المخزن'!$B:$B,$C6,'بضاعة المخزن'!$O:$O),"") ->  | G6: 50 | H6: =IFERROR(IF(E6="","",IF(OR($E6="مشتريات",$E6="مرتجعات"),$G6*VLOOKUP($C6,'بضاعة المخزن'!$B$3:$D$5000,2,0),$G6*VLOOKUP($C6,'بضاعة المخزن'!$B$3:$D$5000,3,0))),"") -> 925
A7: 6 | B7: 2019-07-19 | C7: عالمي وفاهيتا | E7: مشتريات | F7: =IF($E7="مبيعات",SUMIF('بضاعة المخزن'!$B:$B,$C7,'بضاعة المخزن'!$O:$O),"") ->  | G7: 100 | H7: =IFERROR(IF(E7="","",IF(OR($E7="مشتريات",$E7="مرتجعات"),$G7*VLOOKUP($C7,'بضاعة المخزن'!$B$3:$D$5000,2,0),$G7*VLOOKUP($C7,'بضاعة المخزن'!$B$3:$D$5000,3,0))),"") -> 1850
A8: 7 | B8: 2019-07-19 | C8: تاتا نانا وعلامنكو | E8: مبيعات | F8: =IF($E8="مبيعات",SUMIF('بضاعة المخزن'!$B:$B,$C8,'بضاعة المخزن'!$O:$O),"") -> 0 | H8: =IFERROR(IF(E8="","",IF(OR($E8="مشتريات",$E8="مرتجعات"),$G8*VLOOKUP($C8,'بضاعة المخزن'!$B$3:$D$5000,2,0),$G8*VLOOKUP($C8,'بضاعة المخزن'!$B$3:$D$5000,3,0))),"") -> 0
A9: 8 | B9: 2019-07-19 | C9: عالمي وفاهيتا | E9: مبيعات | F9: =IF($E9="مبيعات",SUMIF('بضاعة المخزن'!$B:$B,$C9,'بضاعة المخزن'!$O:$O),"") -> 90 | G9: 10 | H9: =IFERROR(IF(E9="","",IF(OR($E9="مشتريات",$E9="مرتجعات"),$G9*VLOOKUP($C9,'بضاعة المخزن'!$B$3:$D$5000,2,0),$G9*VLOOKUP($C9,'بضاعة المخزن'!$B$3:$D$5000,3,0))),"") -> 190
A10: 9 | B10: 2019-07-19 | C10: طوفي علبة مصاصة | E10: مشتريات | F10: =IF($E10="مبيعات",SUMIF('بضاعة المخزن'!$B:$B,$C10,'بضاعة المخزن'!$O:$O),"") ->  | G10: 20 | H10: =IFERROR(IF(E10="","",IF(OR($E10="مشتريات",$E10="مرتجعات"),$G10*VLOOKUP($C10,'بضاعة المخزن'!$B$3:$D$5000,2,0),$G10*VLOOKUP($C10,'بضاعة المخزن'!$B$3:$D$5000,3,0))),"") -> 2160
A11: 10 | B11: 2019-07-19 | C11: كيوت ب 50 قرش اسك | E11: مرتجعات | F11: =IF($E11="مبيعات",SUMIF('بضاعة المخزن'!$B:$B,$C11,'بضاعة المخزن'!$O:$O),"") ->  | G11: 32 | H11: =IFERROR(IF(E11="","",IF(OR($E11="مشتريات",$E11="مرتجعات"),$G11*VLOOKUP($C11,'بضاعة المخزن'!$B$3:$D$5000,2,0),$G11*VLOOKUP($C11,'بضاعة المخزن'!$B$3:$D$5000,3,0))),"") -> 2944
F12: =IF($E12="مبيعات",SUMIF('بضاعة المخزن'!$B:$B,$C12,'بضاعة المخزن'!$O:$O),"") ->  | H12: =IFERROR(IF(E12="","",IF(OR($E12="مشتريات",$E12="مرتجعات"),$G12*VLOOKUP($C12,'بضاعة المخزن'!$B$3:$D$5000,2,0),$G12*VLOOKUP($C12,'بضاعة المخزن'!$B$3:$D$5000,3,0))),"") -> 
F13: =IF($E13="مبيعات",SUMIF('بضاعة المخزن'!$B:$B,$C13,'بضاعة المخزن'!$O:$O),"") ->  | H13: =IFERROR(IF(E13="","",IF(OR($E13="مشتريات",$E13="مرتجعات"),$G13*VLOOKUP($C13,'بضاعة المخزن'!$B$3:$D$5000,2,0),$G13*VLOOKUP($C13,'بضاعة المخزن'!$B$3:$D$5000,3,0))),"") -> 
F14: =IF($E14="مبيعات",SUMIF('بضاعة المخزن'!$B:$B,$C14,'بضاعة المخزن'!$O:$O),"") ->  | H14: =IFERROR(IF(E14="","",IF(OR($E14="مشتريات",$E14="مرتجعات"),$G14*VLOOKUP($C14,'بضاعة المخزن'!$B$3:$D$5000,2,0),$G14*VLOOKUP($C14,'بضاعة المخزن'!$B$3:$D$5000,3,0))),"") -> 
F15: =IF($E15="مبيعات",SUMIF('بضاعة المخزن'!$B:$B,$C15,'بضاعة المخزن'!$O:$O),"") ->  | H15: =IFERROR(IF(E15="","",IF(OR($E15="مشتريات",$E15="مرتجعات"),$G15*VLOOKUP($C15,'بضاعة المخزن'!$B$3:$D$5000,2,0),$G15*VLOOKUP($C15,'بضاعة المخزن'!$B$3:$D$5000,3,0))),"") -> 
F16: =IF($E16="مبيعات",SUMIF('بضاعة المخزن'!$B:$B,$C16,'بضاعة المخزن'!$O:$O),"") ->  | H16: =IFERROR(IF(E16="","",IF(OR($E16="مشتريات",$E16="مرتجعات"),$G16*VLOOKUP($C16,'بضاعة المخزن'!$B$3:$D$5000,2,0),$G16*VLOOKUP($C16,'بضاعة المخزن'!$B$3:$D$5000,3,0))),"") -> 
F17: =IF($E17="مبيعات",SUMIF('بضاعة المخزن'!$B:$B,$C17,'بضاعة المخزن'!$O:$O),"") ->  | H17: =IFERROR(IF(E17="","",IF(OR($E17="مشتريات",$E17="مرتجعات"),$G17*VLOOKUP($C17,'بضاعة المخزن'!$B$3:$D$5000,2,0),$G17*VLOOKUP($C17,'بضاعة المخزن'!$B$3:$D$5000,3,0))),"") -> 
F18: =IF($E18="مبيعات",SUMIF('بضاعة المخزن'!$B:$B,$C18,'بضاعة المخزن'!$O:$O),"") ->  | H18: =IFERROR(IF(E18="","",IF(OR($E18="مشتريات",$E18="مرتجعات"),$G18*VLOOKUP($C18,'بضاعة المخزن'!$B$3:$D$5000,2,0),$G18*VLOOKUP($C18,'بضاعة المخزن'!$B$3:$D$5000,3,0))),"") -> 
F19: =IF($E19="مبيعات",SUMIF('بضاعة المخزن'!$B:$B,$C19,'بضاعة المخزن'!$O:$O),"") ->  | H19: =IFERROR(IF(E19="","",IF(OR($E19="مشتريات",$E19="مرتجعات"),$G19*VLOOKUP($C19,'بضاعة المخزن'!$B$3:$D$5000,2,0),$G19*VLOOKUP($C19,'بضاعة المخزن'!$B$3:$D$5000,3,0))),"") -> 
F20: =IF($E20="مبيعات",SUMIF('بضاعة المخزن'!$B:$B,$C20,'بضاعة المخزن'!$O:$O),"") ->  | H20: =IFERROR(IF(E20="","",IF(OR($E20="مشتريات",$E20="مرتجعات"),$G20*VLOOKUP($C20,'بضاعة المخزن'!$B$3:$D$5000,2,0),$G20*VLOOKUP($C20,'بضاعة المخزن'!$B$3:$D$5000,3,0))),"") -> 
F21: =IF($E21="مبيعات",SUMIF('بضاعة المخزن'!$B:$B,$C21,'بضاعة المخزن'!$O:$O),"") ->  | H21: =IFERROR(IF(E21="","",IF(OR($E21="مشتريات",$E21="مرتجعات"),$G21*VLOOKUP($C21,'بضاعة المخزن'!$B$3:$D$5000,2,0),$G21*VLOOKUP($C21,'بضاعة المخزن'!$B$3:$D$5000,3,0))),"") -> 
F22: =IF($E22="مبيعات",SUMIF('بضاعة المخزن'!$B:$B,$C22,'بضاعة المخزن'!$O:$O),"") ->  | H22: =IFERROR(IF(E22="","",IF(OR($E22="مشتريات",$E22="مرتجعات"),$G22*VLOOKUP($C22,'بضاعة المخزن'!$B$3:$D$5000,2,0),$G22*VLOOKUP($C22,'بضاعة المخزن'!$B$3:$D$5000,3,0))),"") -> 
F23: =IF($E23="مبيعات",SUMIF('بضاعة المخزن'!$B:$B,$C23,'بضاعة المخزن'!$O:$O),"") ->  | H23: =IFERROR(IF(E23="","",IF(OR($E23="مشتريات",$E23="مرتجعات"),$G23*VLOOKUP($C23,'بضاعة المخزن'!$B$3:$D$5000,2,0),$G23*VLOOKUP($C23,'بضاعة المخزن'!$B$3:$D$5000,3,0))),"") -> 
F24: =IF($E24="مبيعات",SUMIF('بضاعة المخزن'!$B:$B,$C24,'بضاعة المخزن'!$O:$O),"") ->  | H24: =IFERROR(IF(E24="","",IF(OR($E24="مشتريات",$E24="مرتجعات"),$G24*VLOOKUP($C24,'بضاعة المخزن'!$B$3:$D$5000,2,0),$G24*VLOOKUP($C24,'بضاعة المخزن'!$B$3:$D$5000,3,0))),"") -> 
F25: =IF($E25="مبيعات",SUMIF('بضاعة المخزن'!$B:$B,$C25,'بضاعة المخزن'!$O:$O),"") ->  | H25: =IFERROR(IF(E25="","",IF(OR($E25="مشتريات",$E25="مرتجعات"),$G25*VLOOKUP($C25,'بضاعة المخزن'!$B$3:$D$5000,2,0),$G25*VLOOKUP($C25,'بضاعة المخزن'!$B$3:$D$5000,3,0))),"") -> 
F26: =IF($E26="مبيعات",SUMIF('بضاعة المخزن'!$B:$B,$C26,'بضاعة المخزن'!$O:$O),"") ->  | H26: =IFERROR(IF(E26="","",IF(OR($E26="مشتريات",$E26="مرتجعات"),$G26*VLOOKUP($C26,'بضاعة المخزن'!$B$3:$D$5000,2,0),$G26*VLOOKUP($C26,'بضاعة المخزن'!$B$3:$D$5000,3,0))),"") -> 
F27: =IF($E27="مبيعات",SUMIF('بضاعة المخزن'!$B:$B,$C27,'بضاعة المخزن'!$O:$O),"") ->  | H27: =IFERROR(IF(E27="","",IF(OR($E27="مشتريات",$E27="مرتجعات"),$G27*VLOOKUP($C27,'بضاعة المخزن'!$B$3:$D$5000,2,0),$G27*VLOOKUP($C27,'بضاعة المخزن'!$B$3:$D$5000,3,0))),"") -> 
F28: =IF($E28="مبيعات",SUMIF('بضاعة المخزن'!$B:$B,$C28,'بضاعة المخزن'!$O:$O),"") ->  | H28: =IFERROR(IF(E28="","",IF(OR($E28="مشتريات",$E28="مرتجعات"),$G28*VLOOKUP($C28,'بضاعة المخزن'!$B$3:$D$5000,2,0),$G28*VLOOKUP($C28,'بضاعة المخزن'!$B$3:$D$5000,3,0))),"") -> 
F29: =IF($E29="مبيعات",SUMIF('بضاعة المخزن'!$B:$B,$C29,'بضاعة المخزن'!$O:$O),"") ->  | H29: =IFERROR(IF(E29="","",IF(OR($E29="مشتريات",$E29="مرتجعات"),$G29*VLOOKUP($C29,'بضاعة المخزن'!$B$3:$D$5000,2,0),$G29*VLOOKUP($C29,'بضاعة المخزن'!$B$3:$D$5000,3,0))),"") -> 
F30: =IF($E30="مبيعات",SUMIF('بضاعة المخزن'!$B:$B,$C30,'بضاعة المخزن'!$O:$O),"") ->  | H30: =IFERROR(IF(E30="","",IF(OR($E30="مشتريات",$E30="مرتجعات"),$G30*VLOOKUP($C30,'بضاعة المخزن'!$B$3:$D$5000,2,0),$G30*VLOOKUP($C30,'بضاعة المخزن'!$B$3:$D$5000,3,0))),"") -> 
F31: =IF($E31="مبيعات",SUMIF('بضاعة المخزن'!$B:$B,$C31,'بضاعة المخزن'!$O:$O),"") ->  | H31: =IFERROR(IF(E31="","",IF(OR($E31="مشتريات",$E31="مرتجعات"),$G31*VLOOKUP($C31,'بضاعة المخزن'!$B$3:$D$5000,2,0),$G31*VLOOKUP($C31,'بضاعة المخزن'!$B$3:$D$5000,3,0))),"") -> 
F32: =IF($E32="مبيعات",SUMIF('بضاعة المخزن'!$B:$B,$C32,'بضاعة المخزن'!$O:$O),"") ->  | H32: =IFERROR(IF(E32="","",IF(OR($E32="مشتريات",$E32="مرتجعات"),$G32*VLOOKUP($C32,'بضاعة المخزن'!$B$3:$D$5000,2,0),$G32*VLOOKUP($C32,'بضاعة المخزن'!$B$3:$D$5000,3,0))),"") -> 
F33: =IF($E33="مبيعات",SUMIF('بضاعة المخزن'!$B:$B,$C33,'بضاعة المخزن'!$O:$O),"") ->  | H33: =IFERROR(IF(E33="","",IF(OR($E33="مشتريات",$E33="مرتجعات"),$G33*VLOOKUP($C33,'بضاعة المخزن'!$B$3:$D$5000,2,0),$G33*VLOOKUP($C33,'بضاعة المخزن'!$B$3:$D$5000,3,0))),"") -> 
F34: =IF($E34="مبيعات",SUMIF('بضاعة المخزن'!$B:$B,$C34,'بضاعة المخزن'!$O:$O),"") ->  | H34: =IFERROR(IF(E34="","",IF(OR($E34="مشتريات",$E34="مرتجعات"),$G34*VLOOKUP($C34,'بضاعة المخزن'!$B$3:$D$5000,2,0),$G34*VLOOKUP($C34,'بضاعة المخزن'!$B$3:$D$5000,3,0))),"") -> 
F35: =IF($E35="مبيعات",SUMIF('بضاعة المخزن'!$B:$B,$C35,'بضاعة المخزن'!$O:$O),"") ->  | H35: =IFERROR(IF(E35="","",IF(OR($E35="مشتريات",$E35="مرتجعات"),$G35*VLOOKUP($C35,'بضاعة المخزن'!$B$3:$D$5000,2,0),$G35*VLOOKUP($C35,'بضاعة المخزن'!$B$3:$D$5000,3,0))),"") -> 
F36: =IF($E36="مبيعات",SUMIF('بضاعة المخزن'!$B:$B,$C36,'بضاعة المخزن'!$O:$O),"") ->  | H36: =IFERROR(IF(E36="","",IF(OR($E36="مشتريات",$E36="مرتجعات"),$G36*VLOOKUP($C36,'بضاعة المخزن'!$B$3:$D$5000,2,0),$G36*VLOOKUP($C36,'بضاعة المخزن'!$B$3:$D$5000,3,0))),"") -> 
F37: =IF($E37="مبيعات",SUMIF('بضاعة المخزن'!$B:$B,$C37,'بضاعة المخزن'!$O:$O),"") ->  | H37: =IFERROR(IF(E37="","",IF(OR($E37="مشتريات",$E37="مرتجعات"),$G37*VLOOKUP($C37,'بضاعة المخزن'!$B$3:$D$5000,2,0),$G37*VLOOKUP($C37,'بضاعة المخزن'!$B$3:$D$5000,3,0))),"") -> 
F38: =IF($E38="مبيعات",SUMIF('بضاعة المخزن'!$B:$B,$C38,'بضاعة المخزن'!$O:$O),"") ->  | H38: =IFERROR(IF(E38="","",IF(OR($E38="مشتريات",$E38="مرتجعات"),$G38*VLOOKUP($C38,'بضاعة المخزن'!$B$3:$D$5000,2,0),$G38*VLOOKUP($C38,'بضاعة المخزن'!$B$3:$D$5000,3,0))),"") -> 
F39: =IF($E39="مبيعات",SUMIF('بضاعة المخزن'!$B:$B,$C39,'بضاعة المخزن'!$O:$O),"") ->  | H39: =IFERROR(IF(E39="","",IF(OR($E39="مشتريات",$E39="مرتجعات"),$G39*VLOOKUP($C39,'بضاعة المخزن'!$B$3:$D$5000,2,0),$G39*VLOOKUP($C39,'بضاعة المخزن'!$B$3:$D$5000,3,0))),"") -> 
F40: =IF($E40="مبيعات",SUMIF('بضاعة المخزن'!$B:$B,$C40,'بضاعة المخزن'!$O:$O),"") ->  | H40: =IFERROR(IF(E40="","",IF(OR($E40="مشتريات",$E40="مرتجعات"),$G40*VLOOKUP($C40,'بضاعة المخزن'!$B$3:$D$5000,2,0),$G40*VLOOKUP($C40,'بضاعة المخزن'!$B$3:$D$5000,3,0))),"") -> 
F41: =IF($E41="مبيعات",SUMIF('بضاعة المخزن'!$B:$B,$C41,'بضاعة المخزن'!$O:$O),"") ->  | H41: =IFERROR(IF(E41="","",IF(OR($E41="مشتريات",$E41="مرتجعات"),$G41*VLOOKUP($C41,'بضاعة المخزن'!$B$3:$D$5000,2,0),$G41*VLOOKUP($C41,'بضاعة المخزن'!$B$3:$D$5000,3,0))),"") -> 
F42: =IF($E42="مبيعات",SUMIF('بضاعة المخزن'!$B:$B,$C42,'بضاعة المخزن'!$O:$O),"") ->  | H42: =IFERROR(IF(E42="","",IF(OR($E42="مشتريات",$E42="مرتجعات"),$G42*VLOOKUP($C42,'بضاعة المخزن'!$B$3:$D$5000,2,0),$G42*VLOOKUP($C42,'بضاعة المخزن'!$B$3:$D$5000,3,0))),"") -> 
F43: =IF($E43="مبيعات",SUMIF('بضاعة المخزن'!$B:$B,$C43,'بضاعة المخزن'!$O:$O),"") ->  | H43: =IFERROR(IF(E43="","",IF(OR($E43="مشتريات",$E43="مرتجعات"),$G43*VLOOKUP($C43,'بضاعة المخزن'!$B$3:$D$5000,2,0),$G43*VLOOKUP($C43,'بضاعة المخزن'!$B$3:$D$5000,3,0))),"") -> 
F44: =IF($E44="مبيعات",SUMIF('بضاعة المخزن'!$B:$B,$C44,'بضاعة المخزن'!$O:$O),"") ->  | H44: =IFERROR(IF(E44="","",IF(OR($E44="مشتريات",$E44="مرتجعات"),$G44*VLOOKUP($C44,'بضاعة المخزن'!$B$3:$D$5000,2,0),$G44*VLOOKUP($C44,'بضاعة المخزن'!$B$3:$D$5000,3,0))),"") -> 
F45: =IF($E45="مبيعات",SUMIF('بضاعة المخزن'!$B:$B,$C45,'بضاعة المخزن'!$O:$O),"") ->  | H45: =IFERROR(IF(E45="","",IF(OR($E45="مشتريات",$E45="مرتجعات"),$G45*VLOOKUP($C45,'بضاعة المخزن'!$B$3:$D$5000,2,0),$G45*VLOOKUP($C45,'بضاعة المخزن'!$B$3:$D$5000,3,0))),"") -> 
F46: =IF($E46="مبيعات",SUMIF('بضاعة المخزن'!$B:$B,$C46,'بضاعة المخزن'!$O:$O),"") ->  | H46: =IFERROR(IF(E46="","",IF(OR($E46="مشتريات",$E46="مرتجعات"),$G46*VLOOKUP($C46,'بضاعة المخزن'!$B$3:$D$5000,2,0),$G46*VLOOKUP($C46,'بضاعة المخزن'!$B$3:$D$5000,3,0))),"") -> 
F47: =IF($E47="مبيعات",SUMIF('بضاعة المخزن'!$B:$B,$C47,'بضاعة المخزن'!$O:$O),"") ->  | H47: =IFERROR(IF(E47="","",IF(OR($E47="مشتريات",$E47="مرتجعات"),$G47*VLOOKUP($C47,'بضاعة المخزن'!$B$3:$D$5000,2,0),$G47*VLOOKUP($C47,'بضاعة المخزن'!$B$3:$D$5000,3,0))),"") -> 
F48: =IF($E48="مبيعات",SUMIF('بضاعة المخزن'!$B:$B,$C48,'بضاعة المخزن'!$O:$O),"") ->  | H48: =IFERROR(IF(E48="","",IF(OR($E48="مشتريات",$E48="مرتجعات"),$G48*VLOOKUP($C48,'بضاعة المخزن'!$B$3:$D$5000,2,0),$G48*VLOOKUP($C48,'بضاعة المخزن'!$B$3:$D$5000,3,0))),"") -> 
F49: =IF($E49="مبيعات",SUMIF('بضاعة المخزن'!$B:$B,$C49,'بضاعة المخزن'!$O:$O),"") ->  | H49: =IFERROR(IF(E49="","",IF(OR($E49="مشتريات",$E49="مرتجعات"),$G49*VLOOKUP($C49,'بضاعة المخزن'!$B$3:$D$5000,2,0),$G49*VLOOKUP($C49,'بضاعة المخزن'!$B$3:$D$5000,3,0))),"") -> 
F50: =IF($E50="مبيعات",SUMIF('بضاعة المخزن'!$B:$B,$C50,'بضاعة المخزن'!$O:$O),"") ->  | H50: =IFERROR(IF(E50="","",IF(OR($E50="مشتريات",$E50="مرتجعات"),$G50*VLOOKUP($C50,'بضاعة المخزن'!$B$3:$D$5000,2,0),$G50*VLOOKUP($C50,'بضاعة المخزن'!$B$3:$D$5000,3,0))),"") -> 
F51: =IF($E51="مبيعات",SUMIF('بضاعة المخزن'!$B:$B,$C51,'بضاعة المخزن'!$O:$O),"") ->  | H51: =IFERROR(IF(E51="","",IF(OR($E51="مشتريات",$E51="مرتجعات"),$G51*VLOOKUP($C51,'بضاعة المخزن'!$B$3:$D$5000,2,0),$G51*VLOOKUP($C51,'بضاعة المخزن'!$B$3:$D$5000,3,0))),"") -> 
F52: =IF($E52="مبيعات",SUMIF('بضاعة المخزن'!$B:$B,$C52,'بضاعة المخزن'!$O:$O),"") ->  | H52: =IFERROR(IF(E52="","",IF(OR($E52="مشتريات",$E52="مرتجعات"),$G52*VLOOKUP($C52,'بضاعة المخزن'!$B$3:$D$5000,2,0),$G52*VLOOKUP($C52,'بضاعة المخزن'!$B$3:$D$5000,3,0))),"") -> 
F53: =IF($E53="مبيعات",SUMIF('بضاعة المخزن'!$B:$B,$C53,'بضاعة المخزن'!$O:$O),"") ->  | H53: =IFERROR(IF(E53="","",IF(OR($E53="مشتريات",$E53="مرتجعات"),$G53*VLOOKUP($C53,'بضاعة المخزن'!$B$3:$D$5000,2,0),$G53*VLOOKUP($C53,'بضاعة المخزن'!$B$3:$D$5000,3,0))),"") -> 
F54: =IF($E54="مبيعات",SUMIF('بضاعة المخزن'!$B:$B,$C54,'بضاعة المخزن'!$O:$O),"") ->  | H54: =IFERROR(IF(E54="","",IF(OR($E54="مشتريات",$E54="مرتجعات"),$G54*VLOOKUP($C54,'بضاعة المخزن'!$B$3:$D$5000,2,0),$G54*VLOOKUP($C54,'بضاعة المخزن'!$B$3:$D$5000,3,0))),"") -> 
F55: =IF($E55="مبيعات",SUMIF('بضاعة المخزن'!$B:$B,$C55,'بضاعة المخزن'!$O:$O),"") ->  | H55: =IFERROR(IF(E55="","",IF(OR($E55="مشتريات",$E55="مرتجعات"),$G55*VLOOKUP($C55,'بضاعة المخزن'!$B$3:$D$5000,2,0),$G55*VLOOKUP($C55,'بضاعة المخزن'!$B$3:$D$5000,3,0))),"") -> 
F56: =IF($E56="مبيعات",SUMIF('بضاعة المخزن'!$B:$B,$C56,'بضاعة المخزن'!$O:$O),"") ->  | H56: =IFERROR(IF(E56="","",IF(OR($E56="مشتريات",$E56="مرتجعات"),$G56*VLOOKUP($C56,'بضاعة المخزن'!$B$3:$D$5000,2,0),$G56*VLOOKUP($C56,'بضاعة المخزن'!$B$3:$D$5000,3,0))),"") -> 
F57: =IF($E57="مبيعات",SUMIF('بضاعة المخزن'!$B:$B,$C57,'بضاعة المخزن'!$O:$O),"") ->  | H57: =IFERROR(IF(E57="","",IF(OR($E57="مشتريات",$E57="مرتجعات"),$G57*VLOOKUP($C57,'بضاعة المخزن'!$B$3:$D$5000,2,0),$G57*VLOOKUP($C57,'بضاعة المخزن'!$B$3:$D$5000,3,0))),"") -> 
F58: =IF($E58="مبيعات",SUMIF('بضاعة المخزن'!$B:$B,$C58,'بضاعة المخزن'!$O:$O),"") ->  | H58: =IFERROR(IF(E58="","",IF(OR($E58="مشتريات",$E58="مرتجعات"),$G58*VLOOKUP($C58,'بضاعة المخزن'!$B$3:$D$5000,2,0),$G58*VLOOKUP($C58,'بضاعة المخزن'!$B$3:$D$5000,3,0))),"") -> 
F59: =IF($E59="مبيعات",SUMIF('بضاعة المخزن'!$B:$B,$C59,'بضاعة المخزن'!$O:$O),"") ->  | H59: =IFERROR(IF(E59="","",IF(OR($E59="مشتريات",$E59="مرتجعات"),$G59*VLOOKUP($C59,'بضاعة المخزن'!$B$3:$D$5000,2,0),$G59*VLOOKUP($C59,'بضاعة المخزن'!$B$3:$D$5000,3,0))),"") -> 
F60: =IF($E60="مبيعات",SUMIF('بضاعة المخزن'!$B:$B,$C60,'بضاعة المخزن'!$O:$O),"") ->  | H60: =IFERROR(IF(E60="","",IF(OR($E60="مشتريات",$E60="مرتجعات"),$G60*VLOOKUP($C60,'بضاعة المخزن'!$B$3:$D$5000,2,0),$G60*VLOOKUP($C60,'بضاعة المخزن'!$B$3:$D$5000,3,0))),"") -> 
F61: =IF($E61="مبيعات",SUMIF('بضاعة المخزن'!$B:$B,$C61,'بضاعة المخزن'!$O:$O),"") ->  | H61: =IFERROR(IF(E61="","",IF(OR($E61="مشتريات",$E61="مرتجعات"),$G61*VLOOKUP($C61,'بضاعة المخزن'!$B$3:$D$5000,2,0),$G61*VLOOKUP($C61,'بضاعة المخزن'!$B$3:$D$5000,3,0))),"") -> 
F62: =IF($E62="مبيعات",SUMIF('بضاعة المخزن'!$B:$B,$C62,'بضاعة المخزن'!$O:$O),"") ->  | H62: =IFERROR(IF(E62="","",IF(OR($E62="مشتريات",$E62="مرتجعات"),$G62*VLOOKUP($C62,'بضاعة المخزن'!$B$3:$D$5000,2,0),$G62*VLOOKUP($C62,'بضاعة المخزن'!$B$3:$D$5000,3,0))),"") -> 
F63: =IF($E63="مبيعات",SUMIF('بضاعة المخزن'!$B:$B,$C63,'بضاعة المخزن'!$O:$O),"") ->  | H63: =IFERROR(IF(E63="","",IF(OR($E63="مشتريات",$E63="مرتجعات"),$G63*VLOOKUP($C63,'بضاعة المخزن'!$B$3:$D$5000,2,0),$G63*VLOOKUP($C63,'بضاعة المخزن'!$B$3:$D$5000,3,0))),"") -> 
F64: =IF($E64="مبيعات",SUMIF('بضاعة المخزن'!$B:$B,$C64,'بضاعة المخزن'!$O:$O),"") ->  | H64: =IFERROR(IF(E64="","",IF(OR($E64="مشتريات",$E64="مرتجعات"),$G64*VLOOKUP($C64,'بضاعة المخزن'!$B$3:$D$5000,2,0),$G64*VLOOKUP($C64,'بضاعة المخزن'!$B$3:$D$5000,3,0))),"") -> 
F65: =IF($E65="مبيعات",SUMIF('بضاعة المخزن'!$B:$B,$C65,'بضاعة المخزن'!$O:$O),"") ->  | H65: =IFERROR(IF(E65="","",IF(OR($E65="مشتريات",$E65="مرتجعات"),$G65*VLOOKUP($C65,'بضاعة المخزن'!$B$3:$D$5000,2,0),$G65*VLOOKUP($C65,'بضاعة المخزن'!$B$3:$D$5000,3,0))),"") -> 
F66: =IF($E66="مبيعات",SUMIF('بضاعة المخزن'!$B:$B,$C66,'بضاعة المخزن'!$O:$O),"") ->  | H66: =IFERROR(IF(E66="","",IF(OR($E66="مشتريات",$E66="مرتجعات"),$G66*VLOOKUP($C66,'بضاعة المخزن'!$B$3:$D$5000,2,0),$G66*VLOOKUP($C66,'بضاعة المخزن'!$B$3:$D$5000,3,0))),"") -> 
F67: =IF($E67="مبيعات",SUMIF('بضاعة المخزن'!$B:$B,$C67,'بضاعة المخزن'!$O:$O),"") ->  | H67: =IFERROR(IF(E67="","",IF(OR($E67="مشتريات",$E67="مرتجعات"),$G67*VLOOKUP($C67,'بضاعة المخزن'!$B$3:$D$5000,2,0),$G67*VLOOKUP($C67,'بضاعة المخزن'!$B$3:$D$5000,3,0))),"") -> 
F68: =IF($E68="مبيعات",SUMIF('بضاعة المخزن'!$B:$B,$C68,'بضاعة المخزن'!$O:$O),"") ->  | H68: =IFERROR(IF(E68="","",IF(OR($E68="مشتريات",$E68="مرتجعات"),$G68*VLOOKUP($C68,'بضاعة المخزن'!$B$3:$D$5000,2,0),$G68*VLOOKUP($C68,'بضاعة المخزن'!$B$3:$D$5000,3,0))),"") -> 
F69: =IF($E69="مبيعات",SUMIF('بضاعة المخزن'!$B:$B,$C69,'بضاعة المخزن'!$O:$O),"") ->  | H69: =IFERROR(IF(E69="","",IF(OR($E69="مشتريات",$E69="مرتجعات"),$G69*VLOOKUP($C69,'بضاعة المخزن'!$B$3:$D$5000,2,0),$G69*VLOOKUP($C69,'بضاعة المخزن'!$B$3:$D$5000,3,0))),"") -> 
F70: =IF($E70="مبيعات",SUMIF('بضاعة المخزن'!$B:$B,$C70,'بضاعة المخزن'!$O:$O),"") ->  | H70: =IFERROR(IF(E70="","",IF(OR($E70="مشتريات",$E70="مرتجعات"),$G70*VLOOKUP($C70,'بضاعة المخزن'!$B$3:$D$5000,2,0),$G70*VLOOKUP($C70,'بضاعة المخزن'!$B$3:$D$5000,3,0))),"") -> 
F71: =IF($E71="مبيعات",SUMIF('بضاعة المخزن'!$B:$B,$C71,'بضاعة المخزن'!$O:$O),"") ->  | H71: =IFERROR(IF(E71="","",IF(OR($E71="مشتريات",$E71="مرتجعات"),$G71*VLOOKUP($C71,'بضاعة المخزن'!$B$3:$D$5000,2,0),$G71*VLOOKUP($C71,'بضاعة المخزن'!$B$3:$D$5000,3,0))),"") -> 
F72: =IF($E72="مبيعات",SUMIF('بضاعة المخزن'!$B:$B,$C72,'بضاعة المخزن'!$O:$O),"") ->  | H72: =IFERROR(IF(E72="","",IF(OR($E72="مشتريات",$E72="مرتجعات"),$G72*VLOOKUP($C72,'بضاعة المخزن'!$B$3:$D$5000,2,0),$G72*VLOOKUP($C72,'بضاعة المخزن'!$B$3:$D$5000,3,0))),"") -> 
F73: =IF($E73="مبيعات",SUMIF('بضاعة المخزن'!$B:$B,$C73,'بضاعة المخزن'!$O:$O),"") ->  | H73: =IFERROR(IF(E73="","",IF(OR($E73="مشتريات",$E73="مرتجعات"),$G73*VLOOKUP($C73,'بضاعة المخزن'!$B$3:$D$5000,2,0),$G73*VLOOKUP($C73,'بضاعة المخزن'!$B$3:$D$5000,3,0))),"") -> 
F74: =IF($E74="مبيعات",SUMIF('بضاعة المخزن'!$B:$B,$C74,'بضاعة المخزن'!$O:$O),"") ->  | H74: =IFERROR(IF(E74="","",IF(OR($E74="مشتريات",$E74="مرتجعات"),$G74*VLOOKUP($C74,'بضاعة المخزن'!$B$3:$D$5000,2,0),$G74*VLOOKUP($C74,'بضاعة المخزن'!$B$3:$D$5000,3,0))),"") -> 
F75: =IF($E75="مبيعات",SUMIF('بضاعة المخزن'!$B:$B,$C75,'بضاعة المخزن'!$O:$O),"") ->  | H75: =IFERROR(IF(E75="","",IF(OR($E75="مشتريات",$E75="مرتجعات"),$G75*VLOOKUP($C75,'بضاعة المخزن'!$B$3:$D$5000,2,0),$G75*VLOOKUP($C75,'بضاعة المخزن'!$B$3:$D$5000,3,0))),"") -> 
F76: =IF($E76="مبيعات",SUMIF('بضاعة المخزن'!$B:$B,$C76,'بضاعة المخزن'!$O:$O),"") ->  | H76: =IFERROR(IF(E76="","",IF(OR($E76="مشتريات",$E76="مرتجعات"),$G76*VLOOKUP($C76,'بضاعة المخزن'!$B$3:$D$5000,2,0),$G76*VLOOKUP($C76,'بضاعة المخزن'!$B$3:$D$5000,3,0))),"") -> 
F77: =IF($E77="مبيعات",SUMIF('بضاعة المخزن'!$B:$B,$C77,'بضاعة المخزن'!$O:$O),"") ->  | H77: =IFERROR(IF(E77="","",IF(OR($E77="مشتريات",$E77="مرتجعات"),$G77*VLOOKUP($C77,'بضاعة المخزن'!$B$3:$D$5000,2,0),$G77*VLOOKUP($C77,'بضاعة المخزن'!$B$3:$D$5000,3,0))),"") -> 
F78: =IF($E78="مبيعات",SUMIF('بضاعة المخزن'!$B:$B,$C78,'بضاعة المخزن'!$O:$O),"") ->  | H78: =IFERROR(IF(E78="","",IF(OR($E78="مشتريات",$E78="مرتجعات"),$G78*VLOOKUP($C78,'بضاعة المخزن'!$B$3:$D$5000,2,0),$G78*VLOOKUP($C78,'بضاعة المخزن'!$B$3:$D$5000,3,0))),"") -> 
F79: =IF($E79="مبيعات",SUMIF('بضاعة المخزن'!$B:$B,$C79,'بضاعة المخزن'!$O:$O),"") ->  | H79: =IFERROR(IF(E79="","",IF(OR($E79="مشتريات",$E79="مرتجعات"),$G79*VLOOKUP($C79,'بضاعة المخزن'!$B$3:$D$5000,2,0),$G79*VLOOKUP($C79,'بضاعة المخزن'!$B$3:$D$5000,3,0))),"") -> 
F80: =IF($E80="مبيعات",SUMIF('بضاعة المخزن'!$B:$B,$C80,'بضاعة المخزن'!$O:$O),"") ->  | H80: =IFERROR(IF(E80="","",IF(OR($E80="مشتريات",$E80="مرتجعات"),$G80*VLOOKUP($C80,'بضاعة المخزن'!$B$3:$D$5000,2,0),$G80*VLOOKUP($C80,'بضاعة المخزن'!$B$3:$D$5000,3,0))),"") -> 
F81: =IF($E81="مبيعات",SUMIF('بضاعة المخزن'!$B:$B,$C81,'بضاعة المخزن'!$O:$O),"") ->  | H81: =IFERROR(IF(E81="","",IF(OR($E81="مشتريات",$E81="مرتجعات"),$G81*VLOOKUP($C81,'بضاعة المخزن'!$B$3:$D$5000,2,0),$G81*VLOOKUP($C81,'بضاعة المخزن'!$B$3:$D$5000,3,0))),"") -> 
F82: =IF($E82="مبيعات",SUMIF('بضاعة المخزن'!$B:$B,$C82,'بضاعة المخزن'!$O:$O),"") ->  | H82: =IFERROR(IF(E82="","",IF(OR($E82="مشتريات",$E82="مرتجعات"),$G82*VLOOKUP($C82,'بضاعة المخزن'!$B$3:$D$5000,2,0),$G82*VLOOKUP($C82,'بضاعة المخزن'!$B$3:$D$5000,3,0))),"") -> 
F83: =IF($E83="مبيعات",SUMIF('بضاعة المخزن'!$B:$B,$C83,'بضاعة المخزن'!$O:$O),"") ->  | H83: =IFERROR(IF(E83="","",IF(OR($E83="مشتريات",$E83="مرتجعات"),$G83*VLOOKUP($C83,'بضاعة المخزن'!$B$3:$D$5000,2,0),$G83*VLOOKUP($C83,'بضاعة المخزن'!$B$3:$D$5000,3,0))),"") -> 
F84: =IF($E84="مبيعات",SUMIF('بضاعة المخزن'!$B:$B,$C84,'بضاعة المخزن'!$O:$O),"") ->  | H84: =IFERROR(IF(E84="","",IF(OR($E84="مشتريات",$E84="مرتجعات"),$G84*VLOOKUP($C84,'بضاعة المخزن'!$B$3:$D$5000,2,0),$G84*VLOOKUP($C84,'بضاعة المخزن'!$B$3:$D$5000,3,0))),"") -> 
F85: =IF($E85="مبيعات",SUMIF('بضاعة المخزن'!$B:$B,$C85,'بضاعة المخزن'!$O:$O),"") ->  | H85: =IFERROR(IF(E85="","",IF(OR($E85="مشتريات",$E85="مرتجعات"),$G85*VLOOKUP($C85,'بضاعة المخزن'!$B$3:$D$5000,2,0),$G85*VLOOKUP($C85,'بضاعة المخزن'!$B$3:$D$5000,3,0))),"") -> 
F86: =IF($E86="مبيعات",SUMIF('بضاعة المخزن'!$B:$B,$C86,'بضاعة المخزن'!$O:$O),"") ->  | H86: =IFERROR(IF(E86="","",IF(OR($E86="مشتريات",$E86="مرتجعات"),$G86*VLOOKUP($C86,'بضاعة المخزن'!$B$3:$D$5000,2,0),$G86*VLOOKUP($C86,'بضاعة المخزن'!$B$3:$D$5000,3,0))),"") -> 
F87: =IF($E87="مبيعات",SUMIF('بضاعة المخزن'!$B:$B,$C87,'بضاعة المخزن'!$O:$O),"") ->  | H87: =IFERROR(IF(E87="","",IF(OR($E87="مشتريات",$E87="مرتجعات"),$G87*VLOOKUP($C87,'بضاعة المخزن'!$B$3:$D$5000,2,0),$G87*VLOOKUP($C87,'بضاعة المخزن'!$B$3:$D$5000,3,0))),"") -> 
F88: =IF($E88="مبيعات",SUMIF('بضاعة المخزن'!$B:$B,$C88,'بضاعة المخزن'!$O:$O),"") ->  | H88: =IFERROR(IF(E88="","",IF(OR($E88="مشتريات",$E88="مرتجعات"),$G88*VLOOKUP($C88,'بضاعة المخزن'!$B$3:$D$5000,2,0),$G88*VLOOKUP($C88,'بضاعة المخزن'!$B$3:$D$5000,3,0))),"") -> 
F89: =IF($E89="مبيعات",SUMIF('بضاعة المخزن'!$B:$B,$C89,'بضاعة المخزن'!$O:$O),"") ->  | H89: =IFERROR(IF(E89="","",IF(OR($E89="مشتريات",$E89="مرتجعات"),$G89*VLOOKUP($C89,'بضاعة المخزن'!$B$3:$D$5000,2,0),$G89*VLOOKUP($C89,'بضاعة المخزن'!$B$3:$D$5000,3,0))),"") -> 
F90: =IF($E90="مبيعات",SUMIF('بضاعة المخزن'!$B:$B,$C90,'بضاعة المخزن'!$O:$O),"") ->  | H90: =IFERROR(IF(E90="","",IF(OR($E90="مشتريات",$E90="مرتجعات"),$G90*VLOOKUP($C90,'بضاعة المخزن'!$B$3:$D$5000,2,0),$G90*VLOOKUP($C90,'بضاعة المخزن'!$B$3:$D$5000,3,0))),"") -> 
F91: =IF($E91="مبيعات",SUMIF('بضاعة المخزن'!$B:$B,$C91,'بضاعة المخزن'!$O:$O),"") ->  | H91: =IFERROR(IF(E91="","",IF(OR($E91="مشتريات",$E91="مرتجعات"),$G91*VLOOKUP($C91,'بضاعة المخزن'!$B$3:$D$5000,2,0),$G91*VLOOKUP($C91,'بضاعة المخزن'!$B$3:$D$5000,3,0))),"") -> 
F92: =IF($E92="مبيعات",SUMIF('بضاعة المخزن'!$B:$B,$C92,'بضاعة المخزن'!$O:$O),"") ->  | H92: =IFERROR(IF(E92="","",IF(OR($E92="مشتريات",$E92="مرتجعات"),$G92*VLOOKUP($C92,'بضاعة المخزن'!$B$3:$D$5000,2,0),$G92*VLOOKUP($C92,'بضاعة المخزن'!$B$3:$D$5000,3,0))),"") -> 
F93: =IF($E93="مبيعات",SUMIF('بضاعة المخزن'!$B:$B,$C93,'بضاعة المخزن'!$O:$O),"") ->  | H93: =IFERROR(IF(E93="","",IF(OR($E93="مشتريات",$E93="مرتجعات"),$G93*VLOOKUP($C93,'بضاعة المخزن'!$B$3:$D$5000,2,0),$G93*VLOOKUP($C93,'بضاعة المخزن'!$B$3:$D$5000,3,0))),"") -> 
F94: =IF($E94="مبيعات",SUMIF('بضاعة المخزن'!$B:$B,$C94,'بضاعة المخزن'!$O:$O),"") ->  | H94: =IFERROR(IF(E94="","",IF(OR($E94="مشتريات",$E94="مرتجعات"),$G94*VLOOKUP($C94,'بضاعة المخزن'!$B$3:$D$5000,2,0),$G94*VLOOKUP($C94,'بضاعة المخزن'!$B$3:$D$5000,3,0))),"") -> 
F95: =IF($E95="مبيعات",SUMIF('بضاعة المخزن'!$B:$B,$C95,'بضاعة المخزن'!$O:$O),"") ->  | H95: =IFERROR(IF(E95="","",IF(OR($E95="مشتريات",$E95="مرتجعات"),$G95*VLOOKUP($C95,'بضاعة المخزن'!$B$3:$D$5000,2,0),$G95*VLOOKUP($C95,'بضاعة المخزن'!$B$3:$D$5000,3,0))),"") -> 
F96: =IF($E96="مبيعات",SUMIF('بضاعة المخزن'!$B:$B,$C96,'بضاعة المخزن'!$O:$O),"") ->  | H96: =IFERROR(IF(E96="","",IF(OR($E96="مشتريات",$E96="مرتجعات"),$G96*VLOOKUP($C96,'بضاعة المخزن'!$B$3:$D$5000,2,0),$G96*VLOOKUP($C96,'بضاعة المخزن'!$B$3:$D$5000,3,0))),"") -> 
F97: =IF($E97="مبيعات",SUMIF('بضاعة المخزن'!$B:$B,$C97,'بضاعة المخزن'!$O:$O),"") ->  | H97: =IFERROR(IF(E97="","",IF(OR($E97="مشتريات",$E97="مرتجعات"),$G97*VLOOKUP($C97,'بضاعة المخزن'!$B$3:$D$5000,2,0),$G97*VLOOKUP($C97,'بضاعة المخزن'!$B$3:$D$5000,3,0))),"") -> 
F98: =IF($E98="مبيعات",SUMIF('بضاعة المخزن'!$B:$B,$C98,'بضاعة المخزن'!$O:$O),"") ->  | H98: =IFERROR(IF(E98="","",IF(OR($E98="مشتريات",$E98="مرتجعات"),$G98*VLOOKUP($C98,'بضاعة المخزن'!$B$3:$D$5000,2,0),$G98*VLOOKUP($C98,'بضاعة المخزن'!$B$3:$D$5000,3,0))),"") -> 
F99: =IF($E99="مبيعات",SUMIF('بضاعة المخزن'!$B:$B,$C99,'بضاعة المخزن'!$O:$O),"") ->  | H99: =IFERROR(IF(E99="","",IF(OR($E99="مشتريات",$E99="مرتجعات"),$G99*VLOOKUP($C99,'بضاعة المخزن'!$B$3:$D$5000,2,0),$G99*VLOOKUP($C99,'بضاعة المخزن'!$B$3:$D$5000,3,0))),"") -> 
F100: =IF($E100="مبيعات",SUMIF('بضاعة المخزن'!$B:$B,$C100,'بضاعة المخزن'!$O:$O),"") ->  | H100: =IFERROR(IF(E100="","",IF(OR($E100="مشتريات",$E100="مرتجعات"),$G100*VLOOKUP($C100,'بضاعة المخزن'!$B$3:$D$5000,2,0),$G100*VLOOKUP($C100,'بضاعة المخزن'!$B$3:$D$5000,3,0))),"") -> 
F101: =IF($E101="مبيعات",SUMIF('بضاعة المخزن'!$B:$B,$C101,'بضاعة المخزن'!$O:$O),"") ->  | H101: =IFERROR(IF(E101="","",IF(OR($E101="مشتريات",$E101="مرتجعات"),$G101*VLOOKUP($C101,'بضاعة المخزن'!$B$3:$D$5000,2,0),$G101*VLOOKUP($C101,'بضاعة المخزن'!$B$3:$D$5000,3,0))),"") -> 
F102: =IF($E102="مبيعات",SUMIF('بضاعة المخزن'!$B:$B,$C102,'بضاعة المخزن'!$O:$O),"") ->  | H102: =IFERROR(IF(E102="","",IF(OR($E102="مشتريات",$E102="مرتجعات"),$G102*VLOOKUP($C102,'بضاعة المخزن'!$B$3:$D$5000,2,0),$G102*VLOOKUP($C102,'بضاعة المخزن'!$B$3:$D$5000,3,0))),"") -> 
F103: =IF($E103="مبيعات",SUMIF('بضاعة المخزن'!$B:$B,$C103,'بضاعة المخزن'!$O:$O),"") ->  | H103: =IFERROR(IF(E103="","",IF(OR($E103="مشتريات",$E103="مرتجعات"),$G103*VLOOKUP($C103,'بضاعة المخزن'!$B$3:$D$5000,2,0),$G103*VLOOKUP($C103,'بضاعة المخزن'!$B$3:$D$5000,3,0))),"") -> 
F104: =IF($E104="مبيعات",SUMIF('بضاعة المخزن'!$B:$B,$C104,'بضاعة المخزن'!$O:$O),"") ->  | H104: =IFERROR(IF(E104="","",IF(OR($E104="مشتريات",$E104="مرتجعات"),$G104*VLOOKUP($C104,'بضاعة المخزن'!$B$3:$D$5000,2,0),$G104*VLOOKUP($C104,'بضاعة المخزن'!$B$3:$D$5000,3,0))),"") -> 
F105: =IF($E105="مبيعات",SUMIF('بضاعة المخزن'!$B:$B,$C105,'بضاعة المخزن'!$O:$O),"") ->  | H105: =IFERROR(IF(E105="","",IF(OR($E105="مشتريات",$E105="مرتجعات"),$G105*VLOOKUP($C105,'بضاعة المخزن'!$B$3:$D$5000,2,0),$G105*VLOOKUP($C105,'بضاعة المخزن'!$B$3:$D$5000,3,0))),"") -> 
F106: =IF($E106="مبيعات",SUMIF('بضاعة المخزن'!$B:$B,$C106,'بضاعة المخزن'!$O:$O),"") ->  | H106: =IFERROR(IF(E106="","",IF(OR($E106="مشتريات",$E106="مرتجعات"),$G106*VLOOKUP($C106,'بضاعة المخزن'!$B$3:$D$5000,2,0),$G106*VLOOKUP($C106,'بضاعة المخزن'!$B$3:$D$5000,3,0))),"") -> 
F107: =IF($E107="مبيعات",SUMIF('بضاعة المخزن'!$B:$B,$C107,'بضاعة المخزن'!$O:$O),"") ->  | H107: =IFERROR(IF(E107="","",IF(OR($E107="مشتريات",$E107="مرتجعات"),$G107*VLOOKUP($C107,'بضاعة المخزن'!$B$3:$D$5000,2,0),$G107*VLOOKUP($C107,'بضاعة المخزن'!$B$3:$D$5000,3,0))),"") -> 
F108: =IF($E108="مبيعات",SUMIF('بضاعة المخزن'!$B:$B,$C108,'بضاعة المخزن'!$O:$O),"") ->  | H108: =IFERROR(IF(E108="","",IF(OR($E108="مشتريات",$E108="مرتجعات"),$G108*VLOOKUP($C108,'بضاعة المخزن'!$B$3:$D$5000,2,0),$G108*VLOOKUP($C108,'بضاعة المخزن'!$B$3:$D$5000,3,0))),"") -> 
F109: =IF($E109="مبيعات",SUMIF('بضاعة المخزن'!$B:$B,$C109,'بضاعة المخزن'!$O:$O),"") ->  | H109: =IFERROR(IF(E109="","",IF(OR($E109="مشتريات",$E109="مرتجعات"),$G109*VLOOKUP($C109,'بضاعة المخزن'!$B$3:$D$5000,2,0),$G109*VLOOKUP($C109,'بضاعة المخزن'!$B$3:$D$5000,3,0))),"") -> 
F110: =IF($E110="مبيعات",SUMIF('بضاعة المخزن'!$B:$B,$C110,'بضاعة المخزن'!$O:$O),"") ->  | H110: =IFERROR(IF(E110="","",IF(OR($E110="مشتريات",$E110="مرتجعات"),$G110*VLOOKUP($C110,'بضاعة المخزن'!$B$3:$D$5000,2,0),$G110*VLOOKUP($C110,'بضاعة المخزن'!$B$3:$D$5000,3,0))),"") -> 
F111: =IF($E111="مبيعات",SUMIF('بضاعة المخزن'!$B:$B,$C111,'بضاعة المخزن'!$O:$O),"") ->  | H111: =IFERROR(IF(E111="","",IF(OR($E111="مشتريات",$E111="مرتجعات"),$G111*VLOOKUP($C111,'بضاعة المخزن'!$B$3:$D$5000,2,0),$G111*VLOOKUP($C111,'بضاعة المخزن'!$B$3:$D$5000,3,0))),"") -> 
F112: =IF($E112="مبيعات",SUMIF('بضاعة المخزن'!$B:$B,$C112,'بضاعة المخزن'!$O:$O),"") ->  | H112: =IFERROR(IF(E112="","",IF(OR($E112="مشتريات",$E112="مرتجعات"),$G112*VLOOKUP($C112,'بضاعة المخزن'!$B$3:$D$5000,2,0),$G112*VLOOKUP($C112,'بضاعة المخزن'!$B$3:$D$5000,3,0))),"") -> 
F113: =IF($E113="مبيعات",SUMIF('بضاعة المخزن'!$B:$B,$C113,'بضاعة المخزن'!$O:$O),"") ->  | H113: =IFERROR(IF(E113="","",IF(OR($E113="مشتريات",$E113="مرتجعات"),$G113*VLOOKUP($C113,'بضاعة المخزن'!$B$3:$D$5000,2,0),$G113*VLOOKUP($C113,'بضاعة المخزن'!$B$3:$D$5000,3,0))),"") -> 
F114: =IF($E114="مبيعات",SUMIF('بضاعة المخزن'!$B:$B,$C114,'بضاعة المخزن'!$O:$O),"") ->  | H114: =IFERROR(IF(E114="","",IF(OR($E114="مشتريات",$E114="مرتجعات"),$G114*VLOOKUP($C114,'بضاعة المخزن'!$B$3:$D$5000,2,0),$G114*VLOOKUP($C114,'بضاعة المخزن'!$B$3:$D$5000,3,0))),"") -> 
F115: =IF($E115="مبيعات",SUMIF('بضاعة المخزن'!$B:$B,$C115,'بضاعة المخزن'!$O:$O),"") ->  | H115: =IFERROR(IF(E115="","",IF(OR($E115="مشتريات",$E115="مرتجعات"),$G115*VLOOKUP($C115,'بضاعة المخزن'!$B$3:$D$5000,2,0),$G115*VLOOKUP($C115,'بضاعة المخزن'!$B$3:$D$5000,3,0))),"") -> 
F116: =IF($E116="مبيعات",SUMIF('بضاعة المخزن'!$B:$B,$C116,'بضاعة المخزن'!$O:$O),"") ->  | H116: =IFERROR(IF(E116="","",IF(OR($E116="مشتريات",$E116="مرتجعات"),$G116*VLOOKUP($C116,'بضاعة المخزن'!$B$3:$D$5000,2,0),$G116*VLOOKUP($C116,'بضاعة المخزن'!$B$3:$D$5000,3,0))),"") -> 
F117: =IF($E117="مبيعات",SUMIF('بضاعة المخزن'!$B:$B,$C117,'بضاعة المخزن'!$O:$O),"") ->  | H117: =IFERROR(IF(E117="","",IF(OR($E117="مشتريات",$E117="مرتجعات"),$G117*VLOOKUP($C117,'بضاعة المخزن'!$B$3:$D$5000,2,0),$G117*VLOOKUP($C117,'بضاعة المخزن'!$B$3:$D$5000,3,0))),"") -> 
F118: =IF($E118="مبيعات",SUMIF('بضاعة المخزن'!$B:$B,$C118,'بضاعة المخزن'!$O:$O),"") ->  | H118: =IFERROR(IF(E118="","",IF(OR($E118="مشتريات",$E118="مرتجعات"),$G118*VLOOKUP($C118,'بضاعة المخزن'!$B$3:$D$5000,2,0),$G118*VLOOKUP($C118,'بضاعة المخزن'!$B$3:$D$5000,3,0))),"") -> 
F119: =IF($E119="مبيعات",SUMIF('بضاعة المخزن'!$B:$B,$C119,'بضاعة المخزن'!$O:$O),"") ->  | H119: =IFERROR(IF(E119="","",IF(OR($E119="مشتريات",$E119="مرتجعات"),$G119*VLOOKUP($C119,'بضاعة المخزن'!$B$3:$D$5000,2,0),$G119*VLOOKUP($C119,'بضاعة المخزن'!$B$3:$D$5000,3,0))),"") -> 
F120: =IF($E120="مبيعات",SUMIF('بضاعة المخزن'!$B:$B,$C120,'بضاعة المخزن'!$O:$O),"") ->  | H120: =IFERROR(IF(E120="","",IF(OR($E120="مشتريات",$E120="مرتجعات"),$G120*VLOOKUP($C120,'بضاعة المخزن'!$B$3:$D$5000,2,0),$G120*VLOOKUP($C120,'بضاعة المخزن'!$B$3:$D$5000,3,0))),"") -> 
F121: =IF($E121="مبيعات",SUMIF('بضاعة المخزن'!$B:$B,$C121,'بضاعة المخزن'!$O:$O),"") ->  | H121: =IFERROR(IF(E121="","",IF(OR($E121="مشتريات",$E121="مرتجعات"),$G121*VLOOKUP($C121,'بضاعة المخزن'!$B$3:$D$5000,2,0),$G121*VLOOKUP($C121,'بضاعة المخزن'!$B$3:$D$5000,3,0))),"") -> 
F122: =IF($E122="مبيعات",SUMIF('بضاعة المخزن'!$B:$B,$C122,'بضاعة المخزن'!$O:$O),"") ->  | H122: =IFERROR(IF(E122="","",IF(OR($E122="مشتريات",$E122="مرتجعات"),$G122*VLOOKUP($C122,'بضاعة المخزن'!$B$3:$D$5000,2,0),$G122*VLOOKUP($C122,'بضاعة المخزن'!$B$3:$D$5000,3,0))),"") -> 
F123: =IF($E123="مبيعات",SUMIF('بضاعة المخزن'!$B:$B,$C123,'بضاعة المخزن'!$O:$O),"") ->  | H123: =IFERROR(IF(E123="","",IF(OR($E123="مشتريات",$E123="مرتجعات"),$G123*VLOOKUP($C123,'بضاعة المخزن'!$B$3:$D$5000,2,0),$G123*VLOOKUP($C123,'بضاعة المخزن'!$B$3:$D$5000,3,0))),"") -> 
F124: =IF($E124="مبيعات",SUMIF('بضاعة المخزن'!$B:$B,$C124,'بضاعة المخزن'!$O:$O),"") ->  | H124: =IFERROR(IF(E124="","",IF(OR($E124="مشتريات",$E124="مرتجعات"),$G124*VLOOKUP($C124,'بضاعة المخزن'!$B$3:$D$5000,2,0),$G124*VLOOKUP($C124,'بضاعة المخزن'!$B$3:$D$5000,3,0))),"") -> 
F125: =IF($E125="مبيعات",SUMIF('بضاعة المخزن'!$B:$B,$C125,'بضاعة المخزن'!$O:$O),"") ->  | H125: =IFERROR(IF(E125="","",IF(OR($E125="مشتريات",$E125="مرتجعات"),$G125*VLOOKUP($C125,'بضاعة المخزن'!$B$3:$D$5000,2,0),$G125*VLOOKUP($C125,'بضاعة المخزن'!$B$3:$D$5000,3,0))),"") -> 
F126: =IF($E126="مبيعات",SUMIF('بضاعة المخزن'!$B:$B,$C126,'بضاعة المخزن'!$O:$O),"") ->  | H126: =IFERROR(IF(E126="","",IF(OR($E126="مشتريات",$E126="مرتجعات"),$G126*VLOOKUP($C126,'بضاعة المخزن'!$B$3:$D$5000,2,0),$G126*VLOOKUP($C126,'بضاعة المخزن'!$B$3:$D$5000,3,0))),"") -> 
F127: =IF($E127="مبيعات",SUMIF('بضاعة المخزن'!$B:$B,$C127,'بضاعة المخزن'!$O:$O),"") ->  | H127: =IFERROR(IF(E127="","",IF(OR($E127="مشتريات",$E127="مرتجعات"),$G127*VLOOKUP($C127,'بضاعة المخزن'!$B$3:$D$5000,2,0),$G127*VLOOKUP($C127,'بضاعة المخزن'!$B$3:$D$5000,3,0))),"") -> 
F128: =IF($E128="مبيعات",SUMIF('بضاعة المخزن'!$B:$B,$C128,'بضاعة المخزن'!$O:$O),"") ->  | H128: =IFERROR(IF(E128="","",IF(OR($E128="مشتريات",$E128="مرتجعات"),$G128*VLOOKUP($C128,'بضاعة المخزن'!$B$3:$D$5000,2,0),$G128*VLOOKUP($C128,'بضاعة المخزن'!$B$3:$D$5000,3,0))),"") -> 
F129: =IF($E129="مبيعات",SUMIF('بضاعة المخزن'!$B:$B,$C129,'بضاعة المخزن'!$O:$O),"") ->  | H129: =IFERROR(IF(E129="","",IF(OR($E129="مشتريات",$E129="مرتجعات"),$G129*VLOOKUP($C129,'بضاعة المخزن'!$B$3:$D$5000,2,0),$G129*VLOOKUP($C129,'بضاعة المخزن'!$B$3:$D$5000,3,0))),"") -> 
F130: =IF($E130="مبيعات",SUMIF('بضاعة المخزن'!$B:$B,$C130,'بضاعة المخزن'!$O:$O),"") ->  | H130: =IFERROR(IF(E130="","",IF(OR($E130="مشتريات",$E130="مرتجعات"),$G130*VLOOKUP($C130,'بضاعة المخزن'!$B$3:$D$5000,2,0),$G130*VLOOKUP($C130,'بضاعة المخزن'!$B$3:$D$5000,3,0))),"") -> 
F131: =IF($E131="مبيعات",SUMIF('بضاعة المخزن'!$B:$B,$C131,'بضاعة المخزن'!$O:$O),"") ->  | H131: =IFERROR(IF(E131="","",IF(OR($E131="مشتريات",$E131="مرتجعات"),$G131*VLOOKUP($C131,'بضاعة المخزن'!$B$3:$D$5000,2,0),$G131*VLOOKUP($C131,'بضاعة المخزن'!$B$3:$D$5000,3,0))),"") -> 
F132: =IF($E132="مبيعات",SUMIF('بضاعة المخزن'!$B:$B,$C132,'بضاعة المخزن'!$O:$O),"") ->  | H132: =IFERROR(IF(E132="","",IF(OR($E132="مشتريات",$E132="مرتجعات"),$G132*VLOOKUP($C132,'بضاعة المخزن'!$B$3:$D$5000,2,0),$G132*VLOOKUP($C132,'بضاعة المخزن'!$B$3:$D$5000,3,0))),"") -> 
F133: =IF($E133="مبيعات",SUMIF('بضاعة المخزن'!$B:$B,$C133,'بضاعة المخزن'!$O:$O),"") ->  | H133: =IFERROR(IF(E133="","",IF(OR($E133="مشتريات",$E133="مرتجعات"),$G133*VLOOKUP($C133,'بضاعة المخزن'!$B$3:$D$5000,2,0),$G133*VLOOKUP($C133,'بضاعة المخزن'!$B$3:$D$5000,3,0))),"") -> 
F134: =IF($E134="مبيعات",SUMIF('بضاعة المخزن'!$B:$B,$C134,'بضاعة المخزن'!$O:$O),"") ->  | H134: =IFERROR(IF(E134="","",IF(OR($E134="مشتريات",$E134="مرتجعات"),$G134*VLOOKUP($C134,'بضاعة المخزن'!$B$3:$D$5000,2,0),$G134*VLOOKUP($C134,'بضاعة المخزن'!$B$3:$D$5000,3,0))),"") -> 
F135: =IF($E135="مبيعات",SUMIF('بضاعة المخزن'!$B:$B,$C135,'بضاعة المخزن'!$O:$O),"") ->  | H135: =IFERROR(IF(E135="","",IF(OR($E135="مشتريات",$E135="مرتجعات"),$G135*VLOOKUP($C135,'بضاعة المخزن'!$B$3:$D$5000,2,0),$G135*VLOOKUP($C135,'بضاعة المخزن'!$B$3:$D$5000,3,0))),"") -> 
F136: =IF($E136="مبيعات",SUMIF('بضاعة المخزن'!$B:$B,$C136,'بضاعة المخزن'!$O:$O),"") ->  | H136: =IFERROR(IF(E136="","",IF(OR($E136="مشتريات",$E136="مرتجعات"),$G136*VLOOKUP($C136,'بضاعة المخزن'!$B$3:$D$5000,2,0),$G136*VLOOKUP($C136,'بضاعة المخزن'!$B$3:$D$5000,3,0))),"") -> 
F137: =IF($E137="مبيعات",SUMIF('بضاعة المخزن'!$B:$B,$C137,'بضاعة المخزن'!$O:$O),"") ->  | H137: =IFERROR(IF(E137="","",IF(OR($E137="مشتريات",$E137="مرتجعات"),$G137*VLOOKUP($C137,'بضاعة المخزن'!$B$3:$D$5000,2,0),$G137*VLOOKUP($C137,'بضاعة المخزن'!$B$3:$D$5000,3,0))),"") -> 
F138: =IF($E138="مبيعات",SUMIF('بضاعة المخزن'!$B:$B,$C138,'بضاعة المخزن'!$O:$O),"") ->  | H138: =IFERROR(IF(E138="","",IF(OR($E138="مشتريات",$E138="مرتجعات"),$G138*VLOOKUP($C138,'بضاعة المخزن'!$B$3:$D$5000,2,0),$G138*VLOOKUP($C138,'بضاعة المخزن'!$B$3:$D$5000,3,0))),"") -> 
F139: =IF($E139="مبيعات",SUMIF('بضاعة المخزن'!$B:$B,$C139,'بضاعة المخزن'!$O:$O),"") ->  | H139: =IFERROR(IF(E139="","",IF(OR($E139="مشتريات",$E139="مرتجعات"),$G139*VLOOKUP($C139,'بضاعة المخزن'!$B$3:$D$5000,2,0),$G139*VLOOKUP($C139,'بضاعة المخزن'!$B$3:$D$5000,3,0))),"") -> 
F140: =IF($E140="مبيعات",SUMIF('بضاعة المخزن'!$B:$B,$C140,'بضاعة المخزن'!$O:$O),"") ->  | H140: =IFERROR(IF(E140="","",IF(OR($E140="مشتريات",$E140="مرتجعات"),$G140*VLOOKUP($C140,'بضاعة المخزن'!$B$3:$D$5000,2,0),$G140*VLOOKUP($C140,'بضاعة المخزن'!$B$3:$D$5000,3,0))),"") -> 
F141: =IF($E141="مبيعات",SUMIF('بضاعة المخزن'!$B:$B,$C141,'بضاعة المخزن'!$O:$O),"") ->  | H141: =IFERROR(IF(E141="","",IF(OR($E141="مشتريات",$E141="مرتجعات"),$G141*VLOOKUP($C141,'بضاعة المخزن'!$B$3:$D$5000,2,0),$G141*VLOOKUP($C141,'بضاعة المخزن'!$B$3:$D$5000,3,0))),"") -> 
F142: =IF($E142="مبيعات",SUMIF('بضاعة المخزن'!$B:$B,$C142,'بضاعة المخزن'!$O:$O),"") ->  | H142: =IFERROR(IF(E142="","",IF(OR($E142="مشتريات",$E142="مرتجعات"),$G142*VLOOKUP($C142,'بضاعة المخزن'!$B$3:$D$5000,2,0),$G142*VLOOKUP($C142,'بضاعة المخزن'!$B$3:$D$5000,3,0))),"") -> 
F143: =IF($E143="مبيعات",SUMIF('بضاعة المخزن'!$B:$B,$C143,'بضاعة المخزن'!$O:$O),"") ->  | H143: =IFERROR(IF(E143="","",IF(OR($E143="مشتريات",$E143="مرتجعات"),$G143*VLOOKUP($C143,'بضاعة المخزن'!$B$3:$D$5000,2,0),$G143*VLOOKUP($C143,'بضاعة المخزن'!$B$3:$D$5000,3,0))),"") -> 
F144: =IF($E144="مبيعات",SUMIF('بضاعة المخزن'!$B:$B,$C144,'بضاعة المخزن'!$O:$O),"") ->  | H144: =IFERROR(IF(E144="","",IF(OR($E144="مشتريات",$E144="مرتجعات"),$G144*VLOOKUP($C144,'بضاعة المخزن'!$B$3:$D$5000,2,0),$G144*VLOOKUP($C144,'بضاعة المخزن'!$B$3:$D$5000,3,0))),"") -> 
F145: =IF($E145="مبيعات",SUMIF('بضاعة المخزن'!$B:$B,$C145,'بضاعة المخزن'!$O:$O),"") ->  | H145: =IFERROR(IF(E145="","",IF(OR($E145="مشتريات",$E145="مرتجعات"),$G145*VLOOKUP($C145,'بضاعة المخزن'!$B$3:$D$5000,2,0),$G145*VLOOKUP($C145,'بضاعة المخزن'!$B$3:$D$5000,3,0))),"") -> 
F146: =IF($E146="مبيعات",SUMIF('بضاعة المخزن'!$B:$B,$C146,'بضاعة المخزن'!$O:$O),"") ->  | H146: =IFERROR(IF(E146="","",IF(OR($E146="مشتريات",$E146="مرتجعات"),$G146*VLOOKUP($C146,'بضاعة المخزن'!$B$3:$D$5000,2,0),$G146*VLOOKUP($C146,'بضاعة المخزن'!$B$3:$D$5000,3,0))),"") -> 
F147: =IF($E147="مبيعات",SUMIF('بضاعة المخزن'!$B:$B,$C147,'بضاعة المخزن'!$O:$O),"") ->  | H147: =IFERROR(IF(E147="","",IF(OR($E147="مشتريات",$E147="مرتجعات"),$G147*VLOOKUP($C147,'بضاعة المخزن'!$B$3:$D$5000,2,0),$G147*VLOOKUP($C147,'بضاعة المخزن'!$B$3:$D$5000,3,0))),"") -> 
F148: =IF($E148="مبيعات",SUMIF('بضاعة المخزن'!$B:$B,$C148,'بضاعة المخزن'!$O:$O),"") ->  | H148: =IFERROR(IF(E148="","",IF(OR($E148="مشتريات",$E148="مرتجعات"),$G148*VLOOKUP($C148,'بضاعة المخزن'!$B$3:$D$5000,2,0),$G148*VLOOKUP($C148,'بضاعة المخزن'!$B$3:$D$5000,3,0))),"") -> 
F149: =IF($E149="مبيعات",SUMIF('بضاعة المخزن'!$B:$B,$C149,'بضاعة المخزن'!$O:$O),"") ->  | H149: =IFERROR(IF(E149="","",IF(OR($E149="مشتريات",$E149="مرتجعات"),$G149*VLOOKUP($C149,'بضاعة المخزن'!$B$3:$D$5000,2,0),$G149*VLOOKUP($C149,'بضاعة المخزن'!$B$3:$D$5000,3,0))),"") -> 
F150: =IF($E150="مبيعات",SUMIF('بضاعة المخزن'!$B:$B,$C150,'بضاعة المخزن'!$O:$O),"") ->  | H150: =IFERROR(IF(E150="","",IF(OR($E150="مشتريات",$E150="مرتجعات"),$G150*VLOOKUP($C150,'بضاعة المخزن'!$B$3:$D$5000,2,0),$G150*VLOOKUP($C150,'بضاعة المخزن'!$B$3:$D$5000,3,0))),"") -> 
F151: =IF($E151="مبيعات",SUMIF('بضاعة المخزن'!$B:$B,$C151,'بضاعة المخزن'!$O:$O),"") ->  | H151: =IFERROR(IF(E151="","",IF(OR($E151="مشتريات",$E151="مرتجعات"),$G151*VLOOKUP($C151,'بضاعة المخزن'!$B$3:$D$5000,2,0),$G151*VLOOKUP($C151,'بضاعة المخزن'!$B$3:$D$5000,3,0))),"") -> 
F152: =IF($E152="مبيعات",SUMIF('بضاعة المخزن'!$B:$B,$C152,'بضاعة المخزن'!$O:$O),"") ->  | H152: =IFERROR(IF(E152="","",IF(OR($E152="مشتريات",$E152="مرتجعات"),$G152*VLOOKUP($C152,'بضاعة المخزن'!$B$3:$D$5000,2,0),$G152*VLOOKUP($C152,'بضاعة المخزن'!$B$3:$D$5000,3,0))),"") -> 
F153: =IF($E153="مبيعات",SUMIF('بضاعة المخزن'!$B:$B,$C153,'بضاعة المخزن'!$O:$O),"") ->  | H153: =IFERROR(IF(E153="","",IF(OR($E153="مشتريات",$E153="مرتجعات"),$G153*VLOOKUP($C153,'بضاعة المخزن'!$B$3:$D$5000,2,0),$G153*VLOOKUP($C153,'بضاعة المخزن'!$B$3:$D$5000,3,0))),"") -> 
F154: =IF($E154="مبيعات",SUMIF('بضاعة المخزن'!$B:$B,$C154,'بضاعة المخزن'!$O:$O),"") ->  | H154: =IFERROR(IF(E154="","",IF(OR($E154="مشتريات",$E154="مرتجعات"),$G154*VLOOKUP($C154,'بضاعة المخزن'!$B$3:$D$5000,2,0),$G154*VLOOKUP($C154,'بضاعة المخزن'!$B$3:$D$5000,3,0))),"") -> 
F155: =IF($E155="مبيعات",SUMIF('بضاعة المخزن'!$B:$B,$C155,'بضاعة المخزن'!$O:$O),"") ->  | H155: =IFERROR(IF(E155="","",IF(OR($E155="مشتريات",$E155="مرتجعات"),$G155*VLOOKUP($C155,'بضاعة المخزن'!$B$3:$D$5000,2,0),$G155*VLOOKUP($C155,'بضاعة المخزن'!$B$3:$D$5000,3,0))),"") -> 
F156: =IF($E156="مبيعات",SUMIF('بضاعة المخزن'!$B:$B,$C156,'بضاعة المخزن'!$O:$O),"") ->  | H156: =IFERROR(IF(E156="","",IF(OR($E156="مشتريات",$E156="مرتجعات"),$G156*VLOOKUP($C156,'بضاعة المخزن'!$B$3:$D$5000,2,0),$G156*VLOOKUP($C156,'بضاعة المخزن'!$B$3:$D$5000,3,0))),"") -> 
F157: =IF($E157="مبيعات",SUMIF('بضاعة المخزن'!$B:$B,$C157,'بضاعة المخزن'!$O:$O),"") ->  | H157: =IFERROR(IF(E157="","",IF(OR($E157="مشتريات",$E157="مرتجعات"),$G157*VLOOKUP($C157,'بضاعة المخزن'!$B$3:$D$5000,2,0),$G157*VLOOKUP($C157,'بضاعة المخزن'!$B$3:$D$5000,3,0))),"") -> 
F158: =IF($E158="مبيعات",SUMIF('بضاعة المخزن'!$B:$B,$C158,'بضاعة المخزن'!$O:$O),"") ->  | H158: =IFERROR(IF(E158="","",IF(OR($E158="مشتريات",$E158="مرتجعات"),$G158*VLOOKUP($C158,'بضاعة المخزن'!$B$3:$D$5000,2,0),$G158*VLOOKUP($C158,'بضاعة المخزن'!$B$3:$D$5000,3,0))),"") -> 
F159: =IF($E159="مبيعات",SUMIF('بضاعة المخزن'!$B:$B,$C159,'بضاعة المخزن'!$O:$O),"") ->  | H159: =IFERROR(IF(E159="","",IF(OR($E159="مشتريات",$E159="مرتجعات"),$G159*VLOOKUP($C159,'بضاعة المخزن'!$B$3:$D$5000,2,0),$G159*VLOOKUP($C159,'بضاعة المخزن'!$B$3:$D$5000,3,0))),"") -> 
F160: =IF($E160="مبيعات",SUMIF('بضاعة المخزن'!$B:$B,$C160,'بضاعة المخزن'!$O:$O),"") ->  | H160: =IFERROR(IF(E160="","",IF(OR($E160="مشتريات",$E160="مرتجعات"),$G160*VLOOKUP($C160,'بضاعة المخزن'!$B$3:$D$5000,2,0),$G160*VLOOKUP($C160,'بضاعة المخزن'!$B$3:$D$5000,3,0))),"") -> 
F161: =IF($E161="مبيعات",SUMIF('بضاعة المخزن'!$B:$B,$C161,'بضاعة المخزن'!$O:$O),"") ->  | H161: =IFERROR(IF(E161="","",IF(OR($E161="مشتريات",$E161="مرتجعات"),$G161*VLOOKUP($C161,'بضاعة المخزن'!$B$3:$D$5000,2,0),$G161*VLOOKUP($C161,'بضاعة المخزن'!$B$3:$D$5000,3,0))),"") -> 
F162: =IF($E162="مبيعات",SUMIF('بضاعة المخزن'!$B:$B,$C162,'بضاعة المخزن'!$O:$O),"") ->  | H162: =IFERROR(IF(E162="","",IF(OR($E162="مشتريات",$E162="مرتجعات"),$G162*VLOOKUP($C162,'بضاعة المخزن'!$B$3:$D$5000,2,0),$G162*VLOOKUP($C162,'بضاعة المخزن'!$B$3:$D$5000,3,0))),"") -> 
F163: =IF($E163="مبيعات",SUMIF('بضاعة المخزن'!$B:$B,$C163,'بضاعة المخزن'!$O:$O),"") ->  | H163: =IFERROR(IF(E163="","",IF(OR($E163="مشتريات",$E163="مرتجعات"),$G163*VLOOKUP($C163,'بضاعة المخزن'!$B$3:$D$5000,2,0),$G163*VLOOKUP($C163,'بضاعة المخزن'!$B$3:$D$5000,3,0))),"") -> 
F164: =IF($E164="مبيعات",SUMIF('بضاعة المخزن'!$B:$B,$C164,'بضاعة المخزن'!$O:$O),"") ->  | H164: =IFERROR(IF(E164="","",IF(OR($E164="مشتريات",$E164="مرتجعات"),$G164*VLOOKUP($C164,'بضاعة المخزن'!$B$3:$D$5000,2,0),$G164*VLOOKUP($C164,'بضاعة المخزن'!$B$3:$D$5000,3,0))),"") -> 
F165: =IF($E165="مبيعات",SUMIF('بضاعة المخزن'!$B:$B,$C165,'بضاعة المخزن'!$O:$O),"") ->  | H165: =IFERROR(IF(E165="","",IF(OR($E165="مشتريات",$E165="مرتجعات"),$G165*VLOOKUP($C165,'بضاعة المخزن'!$B$3:$D$5000,2,0),$G165*VLOOKUP($C165,'بضاعة المخزن'!$B$3:$D$5000,3,0))),"") -> 
F166: =IF($E166="مبيعات",SUMIF('بضاعة المخزن'!$B:$B,$C166,'بضاعة المخزن'!$O:$O),"") ->  | H166: =IFERROR(IF(E166="","",IF(OR($E166="مشتريات",$E166="مرتجعات"),$G166*VLOOKUP($C166,'بضاعة المخزن'!$B$3:$D$5000,2,0),$G166*VLOOKUP($C166,'بضاعة المخزن'!$B$3:$D$5000,3,0))),"") -> 
F167: =IF($E167="مبيعات",SUMIF('بضاعة المخزن'!$B:$B,$C167,'بضاعة المخزن'!$O:$O),"") ->  | H167: =IFERROR(IF(E167="","",IF(OR($E167="مشتريات",$E167="مرتجعات"),$G167*VLOOKUP($C167,'بضاعة المخزن'!$B$3:$D$5000,2,0),$G167*VLOOKUP($C167,'بضاعة المخزن'!$B$3:$D$5000,3,0))),"") -> 
F168: =IF($E168="مبيعات",SUMIF('بضاعة المخزن'!$B:$B,$C168,'بضاعة المخزن'!$O:$O),"") ->  | H168: =IFERROR(IF(E168="","",IF(OR($E168="مشتريات",$E168="مرتجعات"),$G168*VLOOKUP($C168,'بضاعة المخزن'!$B$3:$D$5000,2,0),$G168*VLOOKUP($C168,'بضاعة المخزن'!$B$3:$D$5000,3,0))),"") -> 
F169: =IF($E169="مبيعات",SUMIF('بضاعة المخزن'!$B:$B,$C169,'بضاعة المخزن'!$O:$O),"") ->  | H169: =IFERROR(IF(E169="","",IF(OR($E169="مشتريات",$E169="مرتجعات"),$G169*VLOOKUP($C169,'بضاعة المخزن'!$B$3:$D$5000,2,0),$G169*VLOOKUP($C169,'بضاعة المخزن'!$B$3:$D$5000,3,0))),"") -> 
F170: =IF($E170="مبيعات",SUMIF('بضاعة المخزن'!$B:$B,$C170,'بضاعة المخزن'!$O:$O),"") ->  | H170: =IFERROR(IF(E170="","",IF(OR($E170="مشتريات",$E170="مرتجعات"),$G170*VLOOKUP($C170,'بضاعة المخزن'!$B$3:$D$5000,2,0),$G170*VLOOKUP($C170,'بضاعة المخزن'!$B$3:$D$5000,3,0))),"") -> 
F171: =IF($E171="مبيعات",SUMIF('بضاعة المخزن'!$B:$B,$C171,'بضاعة المخزن'!$O:$O),"") ->  | H171: =IFERROR(IF(E171="","",IF(OR($E171="مشتريات",$E171="مرتجعات"),$G171*VLOOKUP($C171,'بضاعة المخزن'!$B$3:$D$5000,2,0),$G171*VLOOKUP($C171,'بضاعة المخزن'!$B$3:$D$5000,3,0))),"") -> 
F172: =IF($E172="مبيعات",SUMIF('بضاعة المخزن'!$B:$B,$C172,'بضاعة المخزن'!$O:$O),"") ->  | H172: =IFERROR(IF(E172="","",IF(OR($E172="مشتريات",$E172="مرتجعات"),$G172*VLOOKUP($C172,'بضاعة المخزن'!$B$3:$D$5000,2,0),$G172*VLOOKUP($C172,'بضاعة المخزن'!$B$3:$D$5000,3,0))),"") -> 
F173: =IF($E173="مبيعات",SUMIF('بضاعة المخزن'!$B:$B,$C173,'بضاعة المخزن'!$O:$O),"") ->  | H173: =IFERROR(IF(E173="","",IF(OR($E173="مشتريات",$E173="مرتجعات"),$G173*VLOOKUP($C173,'بضاعة المخزن'!$B$3:$D$5000,2,0),$G173*VLOOKUP($C173,'بضاعة المخزن'!$B$3:$D$5000,3,0))),"") -> 
F174: =IF($E174="مبيعات",SUMIF('بضاعة المخزن'!$B:$B,$C174,'بضاعة المخزن'!$O:$O),"") ->  | H174: =IFERROR(IF(E174="","",IF(OR($E174="مشتريات",$E174="مرتجعات"),$G174*VLOOKUP($C174,'بضاعة المخزن'!$B$3:$D$5000,2,0),$G174*VLOOKUP($C174,'بضاعة المخزن'!$B$3:$D$5000,3,0))),"") -> 
F175: =IF($E175="مبيعات",SUMIF('بضاعة المخزن'!$B:$B,$C175,'بضاعة المخزن'!$O:$O),"") ->  | H175: =IFERROR(IF(E175="","",IF(OR($E175="مشتريات",$E175="مرتجعات"),$G175*VLOOKUP($C175,'بضاعة المخزن'!$B$3:$D$5000,2,0),$G175*VLOOKUP($C175,'بضاعة المخزن'!$B$3:$D$5000,3,0))),"") -> 
F176: =IF($E176="مبيعات",SUMIF('بضاعة المخزن'!$B:$B,$C176,'بضاعة المخزن'!$O:$O),"") ->  | H176: =IFERROR(IF(E176="","",IF(OR($E176="مشتريات",$E176="مرتجعات"),$G176*VLOOKUP($C176,'بضاعة المخزن'!$B$3:$D$5000,2,0),$G176*VLOOKUP($C176,'بضاعة المخزن'!$B$3:$D$5000,3,0))),"") -> 
F177: =IF($E177="مبيعات",SUMIF('بضاعة المخزن'!$B:$B,$C177,'بضاعة المخزن'!$O:$O),"") ->  | H177: =IFERROR(IF(E177="","",IF(OR($E177="مشتريات",$E177="مرتجعات"),$G177*VLOOKUP($C177,'بضاعة المخزن'!$B$3:$D$5000,2,0),$G177*VLOOKUP($C177,'بضاعة المخزن'!$B$3:$D$5000,3,0))),"") -> 
F178: =IF($E178="مبيعات",SUMIF('بضاعة المخزن'!$B:$B,$C178,'بضاعة المخزن'!$O:$O),"") ->  | H178: =IFERROR(IF(E178="","",IF(OR($E178="مشتريات",$E178="مرتجعات"),$G178*VLOOKUP($C178,'بضاعة المخزن'!$B$3:$D$5000,2,0),$G178*VLOOKUP($C178,'بضاعة المخزن'!$B$3:$D$5000,3,0))),"") -> 
F179: =IF($E179="مبيعات",SUMIF('بضاعة المخزن'!$B:$B,$C179,'بضاعة المخزن'!$O:$O),"") ->  | H179: =IFERROR(IF(E179="","",IF(OR($E179="مشتريات",$E179="مرتجعات"),$G179*VLOOKUP($C179,'بضاعة المخزن'!$B$3:$D$5000,2,0),$G179*VLOOKUP($C179,'بضاعة المخزن'!$B$3:$D$5000,3,0))),"") -> 
F180: =IF($E180="مبيعات",SUMIF('بضاعة المخزن'!$B:$B,$C180,'بضاعة المخزن'!$O:$O),"") ->  | H180: =IFERROR(IF(E180="","",IF(OR($E180="مشتريات",$E180="مرتجعات"),$G180*VLOOKUP($C180,'بضاعة المخزن'!$B$3:$D$5000,2,0),$G180*VLOOKUP($C180,'بضاعة المخزن'!$B$3:$D$5000,3,0))),"") -> 
F181: =IF($E181="مبيعات",SUMIF('بضاعة المخزن'!$B:$B,$C181,'بضاعة المخزن'!$O:$O),"") ->  | H181: =IFERROR(IF(E181="","",IF(OR($E181="مشتريات",$E181="مرتجعات"),$G181*VLOOKUP($C181,'بضاعة المخزن'!$B$3:$D$5000,2,0),$G181*VLOOKUP($C181,'بضاعة المخزن'!$B$3:$D$5000,3,0))),"") -> 
F182: =IF($E182="مبيعات",SUMIF('بضاعة المخزن'!$B:$B,$C182,'بضاعة المخزن'!$O:$O),"") ->  | H182: =IFERROR(IF(E182="","",IF(OR($E182="مشتريات",$E182="مرتجعات"),$G182*VLOOKUP($C182,'بضاعة المخزن'!$B$3:$D$5000,2,0),$G182*VLOOKUP($C182,'بضاعة المخزن'!$B$3:$D$5000,3,0))),"") -> 
F183: =IF($E183="مبيعات",SUMIF('بضاعة المخزن'!$B:$B,$C183,'بضاعة المخزن'!$O:$O),"") ->  | H183: =IFERROR(IF(E183="","",IF(OR($E183="مشتريات",$E183="مرتجعات"),$G183*VLOOKUP($C183,'بضاعة المخزن'!$B$3:$D$5000,2,0),$G183*VLOOKUP($C183,'بضاعة المخزن'!$B$3:$D$5000,3,0))),"") -> 
F184: =IF($E184="مبيعات",SUMIF('بضاعة المخزن'!$B:$B,$C184,'بضاعة المخزن'!$O:$O),"") ->  | H184: =IFERROR(IF(E184="","",IF(OR($E184="مشتريات",$E184="مرتجعات"),$G184*VLOOKUP($C184,'بضاعة المخزن'!$B$3:$D$5000,2,0),$G184*VLOOKUP($C184,'بضاعة المخزن'!$B$3:$D$5000,3,0))),"") -> 
F185: =IF($E185="مبيعات",SUMIF('بضاعة المخزن'!$B:$B,$C185,'بضاعة المخزن'!$O:$O),"") ->  | H185: =IFERROR(IF(E185="","",IF(OR($E185="مشتريات",$E185="مرتجعات"),$G185*VLOOKUP($C185,'بضاعة المخزن'!$B$3:$D$5000,2,0),$G185*VLOOKUP($C185,'بضاعة المخزن'!$B$3:$D$5000,3,0))),"") -> 
F186: =IF($E186="مبيعات",SUMIF('بضاعة المخزن'!$B:$B,$C186,'بضاعة المخزن'!$O:$O),"") ->  | H186: =IFERROR(IF(E186="","",IF(OR($E186="مشتريات",$E186="مرتجعات"),$G186*VLOOKUP($C186,'بضاعة المخزن'!$B$3:$D$5000,2,0),$G186*VLOOKUP($C186,'بضاعة المخزن'!$B$3:$D$5000,3,0))),"") -> 
F187: =IF($E187="مبيعات",SUMIF('بضاعة المخزن'!$B:$B,$C187,'بضاعة المخزن'!$O:$O),"") ->  | H187: =IFERROR(IF(E187="","",IF(OR($E187="مشتريات",$E187="مرتجعات"),$G187*VLOOKUP($C187,'بضاعة المخزن'!$B$3:$D$5000,2,0),$G187*VLOOKUP($C187,'بضاعة المخزن'!$B$3:$D$5000,3,0))),"") -> 
F188: =IF($E188="مبيعات",SUMIF('بضاعة المخزن'!$B:$B,$C188,'بضاعة المخزن'!$O:$O),"") ->  | H188: =IFERROR(IF(E188="","",IF(OR($E188="مشتريات",$E188="مرتجعات"),$G188*VLOOKUP($C188,'بضاعة المخزن'!$B$3:$D$5000,2,0),$G188*VLOOKUP($C188,'بضاعة المخزن'!$B$3:$D$5000,3,0))),"") -> 
F189: =IF($E189="مبيعات",SUMIF('بضاعة المخزن'!$B:$B,$C189,'بضاعة المخزن'!$O:$O),"") ->  | H189: =IFERROR(IF(E189="","",IF(OR($E189="مشتريات",$E189="مرتجعات"),$G189*VLOOKUP($C189,'بضاعة المخزن'!$B$3:$D$5000,2,0),$G189*VLOOKUP($C189,'بضاعة المخزن'!$B$3:$D$5000,3,0))),"") -> 
F190: =IF($E190="مبيعات",SUMIF('بضاعة المخزن'!$B:$B,$C190,'بضاعة المخزن'!$O:$O),"") ->  | H190: =IFERROR(IF(E190="","",IF(OR($E190="مشتريات",$E190="مرتجعات"),$G190*VLOOKUP($C190,'بضاعة المخزن'!$B$3:$D$5000,2,0),$G190*VLOOKUP($C190,'بضاعة المخزن'!$B$3:$D$5000,3,0))),"") -> 
F191: =IF($E191="مبيعات",SUMIF('بضاعة المخزن'!$B:$B,$C191,'بضاعة المخزن'!$O:$O),"") ->  | H191: =IFERROR(IF(E191="","",IF(OR($E191="مشتريات",$E191="مرتجعات"),$G191*VLOOKUP($C191,'بضاعة المخزن'!$B$3:$D$5000,2,0),$G191*VLOOKUP($C191,'بضاعة المخزن'!$B$3:$D$5000,3,0))),"") -> 
F192: =IF($E192="مبيعات",SUMIF('بضاعة المخزن'!$B:$B,$C192,'بضاعة المخزن'!$O:$O),"") ->  | H192: =IFERROR(IF(E192="","",IF(OR($E192="مشتريات",$E192="مرتجعات"),$G192*VLOOKUP($C192,'بضاعة المخزن'!$B$3:$D$5000,2,0),$G192*VLOOKUP($C192,'بضاعة المخزن'!$B$3:$D$5000,3,0))),"") -> 
F193: =IF($E193="مبيعات",SUMIF('بضاعة المخزن'!$B:$B,$C193,'بضاعة المخزن'!$O:$O),"") ->  | H193: =IFERROR(IF(E193="","",IF(OR($E193="مشتريات",$E193="مرتجعات"),$G193*VLOOKUP($C193,'بضاعة المخزن'!$B$3:$D$5000,2,0),$G193*VLOOKUP($C193,'بضاعة المخزن'!$B$3:$D$5000,3,0))),"") -> 
F194: =IF($E194="مبيعات",SUMIF('بضاعة المخزن'!$B:$B,$C194,'بضاعة المخزن'!$O:$O),"") ->  | H194: =IFERROR(IF(E194="","",IF(OR($E194="مشتريات",$E194="مرتجعات"),$G194*VLOOKUP($C194,'بضاعة المخزن'!$B$3:$D$5000,2,0),$G194*VLOOKUP($C194,'بضاعة المخزن'!$B$3:$D$5000,3,0))),"") -> 
F195: =IF($E195="مبيعات",SUMIF('بضاعة المخزن'!$B:$B,$C195,'بضاعة المخزن'!$O:$O),"") ->  | H195: =IFERROR(IF(E195="","",IF(OR($E195="مشتريات",$E195="مرتجعات"),$G195*VLOOKUP($C195,'بضاعة المخزن'!$B$3:$D$5000,2,0),$G195*VLOOKUP($C195,'بضاعة المخزن'!$B$3:$D$5000,3,0))),"") -> 
F196: =IF($E196="مبيعات",SUMIF('بضاعة المخزن'!$B:$B,$C196,'بضاعة المخزن'!$O:$O),"") ->  | H196: =IFERROR(IF(E196="","",IF(OR($E196="مشتريات",$E196="مرتجعات"),$G196*VLOOKUP($C196,'بضاعة المخزن'!$B$3:$D$5000,2,0),$G196*VLOOKUP($C196,'بضاعة المخزن'!$B$3:$D$5000,3,0))),"") -> 
F197: =IF($E197="مبيعات",SUMIF('بضاعة المخزن'!$B:$B,$C197,'بضاعة المخزن'!$O:$O),"") ->  | H197: =IFERROR(IF(E197="","",IF(OR($E197="مشتريات",$E197="مرتجعات"),$G197*VLOOKUP($C197,'بضاعة المخزن'!$B$3:$D$5000,2,0),$G197*VLOOKUP($C197,'بضاعة المخزن'!$B$3:$D$5000,3,0))),"") -> 
F198: =IF($E198="مبيعات",SUMIF('بضاعة المخزن'!$B:$B,$C198,'بضاعة المخزن'!$O:$O),"") ->  | H198: =IFERROR(IF(E198="","",IF(OR($E198="مشتريات",$E198="مرتجعات"),$G198*VLOOKUP($C198,'بضاعة المخزن'!$B$3:$D$5000,2,0),$G198*VLOOKUP($C198,'بضاعة المخزن'!$B$3:$D$5000,3,0))),"") -> 
F199: =IF($E199="مبيعات",SUMIF('بضاعة المخزن'!$B:$B,$C199,'بضاعة المخزن'!$O:$O),"") ->  | H199: =IFERROR(IF(E199="","",IF(OR($E199="مشتريات",$E199="مرتجعات"),$G199*VLOOKUP($C199,'بضاعة المخزن'!$B$3:$D$5000,2,0),$G199*VLOOKUP($C199,'بضاعة المخزن'!$B$3:$D$5000,3,0))),"") -> 
F200: =IF($E200="مبيعات",SUMIF('بضاعة المخزن'!$B:$B,$C200,'بضاعة المخزن'!$O:$O),"") ->  | H200: =IFERROR(IF(E200="","",IF(OR($E200="مشتريات",$E200="مرتجعات"),$G200*VLOOKUP($C200,'بضاعة المخزن'!$B$3:$D$5000,2,0),$G200*VLOOKUP($C200,'بضاعة المخزن'!$B$3:$D$5000,3,0))),"") -> 
... 718 more rows

Sheet بضاعة المخزن
A1: مسلسل | B1: اسم الصنف | C1: سعر الوحدة جملة | D1: سعر الوحدة قطاعي | E1: رصيد أول المـــــــــدة | G1: المشتريات | I1: المرتجعات | K1: عدد الكرتونة | L1: جزء المباع من الكرتونة | M1: المبيعات | O1: الرصيد
E2: الكمية | F2: القيمة | G2: الكمية | H2: القيمة | I2: الكمية | J2: القيمة | M2: الكمية | N2: القيمة | O2: الكمية | P2: القيمة
A3: 1 | B3: عالمي وفاهيتا | C3: 18.5 | D3: 19 | E3: 10 | F3: =E3*C3 -> 185 | G3: =SUMIFS('الحركات اليومية'!$G:$G,'الحركات اليومية'!$E:$E,"مشتريات",'الحركات اليومية'!$C:$C,$B3) -> 100 | H3: =G3*C3 -> 1850 | I3: =SUMIFS('الحركات اليومية'!$G:$G,'الحركات اليومية'!$E:$E,"مرتجعات",'الحركات اليومية'!$C:$C,$B3) -> 50 | J3: =IFERROR(I3*C3,"") -> 925 | K3: 0 | L3: 0 | M3: =SUMIFS('الحركات اليومية'!$G:$G,'الحركات اليومية'!$E:$E,"مبيعات",'الحركات اليومية'!$C:$C,$B3) -> 70 | N3: =M3*D3 -> 1330 | O3: =(E3+G3+I3)-M3 -> 90 | P3: =(F3+H3+J3)-N3 -> 1630
A4: 2 | B4: تاتا نانا وعلامنكو | C4: 19 | D4: 20 | F4: =E4*C4 -> 0 | G4: =SUMIFS('الحركات اليومية'!$G:$G,'الحركات اليومية'!$E:$E,"مشتريات",'الحركات اليومية'!$C:$C,$B4) -> 0 | H4: 0 | I4: =SUMIFS('الحركات اليومية'!$G:$G,'الحركات اليومية'!$E:$E,"مرتجعات",'الحركات اليومية'!$C:$C,$B4) -> 0 | J4: 0 | K4: 0 | L4: 0 | M4: =SUMIFS('الحركات اليومية'!$G:$G,'الحركات اليومية'!$E:$E,"مبيعات",'الحركات اليومية'!$C:$C,$B4) -> 0 | N4: =M4*D4 -> 0 | O4: =(E4+G4+I4)-M4 -> 0 | P4: =(F4+H4+J4)-N4 -> 0
A5: 3 | B5: بريك | C5: 19 | D5: 20 | F5: 0 | G5: =SUMIFS('الحركات اليومية'!$G:$G,'الحركات اليومية'!$E:$E,"مشتريات",'الحركات اليومية'!$C:$C,$B5) -> 74 | H5: 1406 | I5: =SUMIFS('الحركات اليومية'!$G:$G,'الحركات اليومية'!$E:$E,"مرتجعات",'الحركات اليومية'!$C:$C,$B5) -> 0 | J5: 0 | K5: 0 | L5: 0 | M5: =SUMIFS('الحركات اليومية'!$G:$G,'الحركات اليومية'!$E:$E,"مبيعات",'الحركات اليومية'!$C:$C,$B5) -> 0 | N5: 0 | O5: =(E5+G5+I5)-M5 -> 74 | P5: =(F5+H5+J5)-N5 -> 1406
A6: 4 | B6: قلبظ ويندوز | C6: 19 | D6: 20 | F6: 0 | G6: =SUMIFS('الحركات اليومية'!$G:$G,'الحركات اليومية'!$E:$E,"مشتريات",'الحركات اليومية'!$C:$C,$B6) -> 0 | H6: 0 | I6: =SUMIFS('الحركات اليومية'!$G:$G,'الحركات اليومية'!$E:$E,"مرتجعات",'الحركات اليومية'!$C:$C,$B6) -> 0 | J6: 0 | K6: 0 | L6: 0 | M6: =SUMIFS('الحركات اليومية'!$G:$G,'الحركات اليومية'!$E:$E,"مبيعات",'الحركات اليومية'!$C:$C,$B6) -> 0 | N6: 0 | O6: 0 | P6: 0
A7: 5 | B7: تويست بجنية وطربوشة | C7: 14 | D7: 15 | F7: 0 | G7: =SUMIFS('الحركات اليومية'!$G:$G,'الحركات اليومية'!$E:$E,"مشتريات",'الحركات اليومية'!$C:$C,$B7) -> 0 | H7: 0 | I7: =SUMIFS('الحركات اليومية'!$G:$G,'الحركات اليومية'!$E:$E,"مرتجعات",'الحركات اليومية'!$C:$C,$B7) -> 0 | J7: 0 | K7: 0 | L7: 0 | M7: =SUMIFS('الحركات اليومية'!$G:$G,'الحركات اليومية'!$E:$E,"مبيعات",'الحركات اليومية'!$C:$C,$B7) -> 0 | N7: 0 | O7: 0 | P7: 0
A8: 6 | B8: شيبسي ب 2 جنية | C8: 19 | D8: 20 | F8: 0 | G8: =SUMIFS('الحركات اليومية'!$G:$G,'الحركات اليومية'!$E:$E,"مشتريات",'الحركات اليومية'!$C:$C,$B8) -> 0 | H8: 0 | I8: =SUMIFS('الحركات اليومية'!$G:$G,'الحركات اليومية'!$E:$E,"مرتجعات",'الحركات اليومية'!$C:$C,$B8) -> 0 | J8: 0 | L8: 0 | M8: =SUMIFS('الحركات اليومية'!$G:$G,'الحركات اليومية'!$E:$E,"مبيعات",'الحركات اليومية'!$C:$C,$B8) -> 0 | N8: 0 | O8: 0 | P8: 0
A9: 7 | B9: في كت ب 2جنية | C9: 28 | D9: 29 | F9: 0 | G9: =SUMIFS('الحركات اليومية'!$G:$G,'الحركات اليومية'!$E:$E,"مشتريات",'الحركات اليومية'!$C:$C,$B9) -> 0 | H9: 0 | I9: =SUMIFS('الحركات اليومية'!$G:$G,'الحركات اليومية'!$E:$E,"مرتجعات",'الحركات اليومية'!$C:$C,$B9) -> 0 | J9: 0 | K9: 0 | L9: 0 | M9: =SUMIFS('الحركات اليومية'!$G:$G,'الحركات اليومية'!$E:$E,"مبيعات",'الحركات اليومية'!$C:$C,$B9) -> 0 | N9: 0 | O9: 0 | P9: 0
A10: 8 | B10: في كت ب 3جنية | C10: 28 | D10: 29 | F10: 0 | G10: =SUMIFS('الحركات اليومية'!$G:$G,'الحركات اليومية'!$E:$E,"مشتريات",'الحركات اليومية'!$C:$C,$B10) -> 0 | H10: 0 | I10: =SUMIFS('الحركات اليومية'!$G:$G,'الحركات اليومية'!$E:$E,"مرتجعات",'الحركات اليومية'!$C:$C,$B10) -> 0 | J10: 0 | K10: 0 | L10: 0 | M10: =SUMIFS('الحركات اليومية'!$G:$G,'الحركات اليومية'!$E:$E,"مبيعات",'الحركات اليومية'!$C:$C,$B10) -> 0 | N10: 0 | O10: 0 | P10: 0
A11: 9 | B11: في كت ب 5 جنية | C11: 35 | D11: 36 | F11: 0 | G11: =SUMIFS('الحركات اليومية'!$G:$G,'الحركات اليومية'!$E:$E,"مشتريات",'الحركات اليومية'!$C:$C,$B11) -> 0 | H11: 0 | I11: =SUMIFS('الحركات اليومية'!$G:$G,'الحركات اليومية'!$E:$E,"مرتجعات",'الحركات اليومية'!$C:$C,$B11) -> 0 | J11: 0 | K11: 0 | L11: 0 | M11: =SUMIFS('الحركات اليومية'!$G:$G,'الحركات اليومية'!$E:$E,"مبيعات",'الحركات اليومية'!$C:$C,$B11) -> 0 | N11: 0 | O11: 0 | P11: 0
A12: 10 | B12: تايجر ب 5 جنيهات | C12: 42.5 | D12: 43 | F12: 0 | G12: =SUMIFS('الحركات اليومية'!$G:$G,'الحركات اليومية'!$E:$E,"مشتريات",'الحركات اليومية'!$C:$C,$B12) -> 0 | H12: 0 | I12: =SUMIFS('الحركات اليومية'!$G:$G,'الحركات اليومية'!$E:$E,"مرتجعات",'الحركات اليومية'!$C:$C,$B12) -> 0 | J12: 0 | K12: 0 | L12: 0 | M12: =SUMIFS('الحركات اليومية'!$G:$G,'الحركات اليومية'!$E:$E,"مبيعات",'الحركات اليومية'!$C:$C,$B12) -> 0 | N12: 0 | O12: 0 | P12: 0
A13: 11 | B13: كرانشي ب 2.5 جنية | C13: 25.5 | D13: 3 | F13: 0 | G13: =SUMIFS('الحركات اليومية'!$G:$G,'الحركات اليومية'!$E:$E,"مشتريات",'الحركات اليومية'!$C:$C,$B13) -> 0 | H13: 0 | I13: =SUMIFS('الحركات اليومية'!$G:$G,'الحركات اليومية'!$E:$E,"مرتجعات",'الحركات اليومية'!$C:$C,$B13) -> 0 | J13: 0 | K13: 0 | L13: 0 | M13: =SUMIFS('الحركات اليومية'!$G:$G,'الحركات اليومية'!$E:$E,"مبيعات",'الحركات اليومية'!$C:$C,$B13) -> 0 | N13: 0 | O13: 0 | P13: 0
A14: 12 | B14: ضربة حظ ب 2 جنية | C14: 29 | D14: 30 | F14: 0 | G14: =SUMIFS('الحركات اليومية'!$G:$G,'الحركات اليومية'!$E:$E,"مشتريات",'الحركات اليومية'!$C:$C,$B14) -> 0 | H14: 0 | I14: =SUMIFS('الحركات اليومية'!$G:$G,'الحركات اليومية'!$E:$E,"مرتجعات",'الحركات اليومية'!$C:$C,$B14) -> 0 | J14: 0 | K14: 0 | L14: 0 | M14: =SUMIFS('الحركات اليومية'!$G:$G,'الحركات اليومية'!$E:$E,"مبيعات",'الحركات اليومية'!$C:$C,$B14) -> 0 | N14: 0 | O14: 0 | P14: 0
A15: 13 | B15: صن بايتس | C15: 33.5 | D15: 34 | F15: 0 | G15: =SUMIFS('الحركات اليومية'!$G:$G,'الحركات اليومية'!$E:$E,"مشتريات",'الحركات اليومية'!$C:$C,$B15) -> 0 | H15: 0 | I15: =SUMIFS('الحركات اليومية'!$G:$G,'الحركات اليومية'!$E:$E,"مرتجعات",'الحركات اليومية'!$C:$C,$B15) -> 0 | J15: 0 | K15: 0 | L15: 0 | M15: =SUMIFS('الحركات اليومية'!$G:$G,'الحركات اليومية'!$E:$E,"مبيعات",'الحركات اليومية'!$C:$C,$B15) -> 0 | N15: 0 | O15: 0 | P15: 0
A16: 14 | B16: كراتيه استند | C16: 96 | D16: 97 | F16: 0 | G16: =SUMIFS('الحركات اليومية'!$G:$G,'الحركات اليومية'!$E:$E,"مشتريات",'الحركات اليومية'!$C:$C,$B16) -> 0 | H16: 0 | I16: =SUMIFS('الحركات اليومية'!$G:$G,'الحركات اليومية'!$E:$E,"مرتجعات",'الحركات اليومية'!$C:$C,$B16) -> 0 | J16: 0 | K16: 0 | L16: 0 | M16: =SUMIFS('الحركات اليومية'!$G:$G,'الحركات اليومية'!$E:$E,"مبيعات",'الحركات اليومية'!$C:$C,$B16) -> 0 | N16: 0 | O16: 0 | P16: 0
A17: 15 | B17: شيتوس عائلي shetos | C17: 37 | D17: 38 | F17: 0 | G17: =SUMIFS('الحركات اليومية'!$G:$G,'الحركات اليومية'!$E:$E,"مشتريات",'الحركات اليومية'!$C:$C,$B17) -> 0 | H17: 0 | I17: =SUMIFS('الحركات اليومية'!$G:$G,'الحركات اليومية'!$E:$E,"مرتجعات",'الحركات اليومية'!$C:$C,$B17) -> 0 | J17: 0 | K17: 0 | L17: 0 | M17: =SUMIFS('الحركات اليومية'!$G:$G,'الحركات اليومية'!$E:$E,"مبيعات",'الحركات اليومية'!$C:$C,$B17) -> 0 | N17: 0 | O17: 0 | P17: 0
A18: 16 | B18: ليون ب جنية | C18: 19 | D18: 20 | F18: 0 | G18: =SUMIFS('الحركات اليومية'!$G:$G,'الحركات اليومية'!$E:$E,"مشتريات",'الحركات اليومية'!$C:$C,$B18) -> 0 | H18: 0 | I18: =SUMIFS('الحركات اليومية'!$G:$G,'الحركات اليومية'!$E:$E,"مرتجعات",'الحركات اليومية'!$C:$C,$B18) -> 0 | J18: 0 | K18: 0 | L18: 0 | M18: =SUMIFS('الحركات اليومية'!$G:$G,'الحركات اليومية'!$E:$E,"مبيعات",'الحركات اليومية'!$C:$C,$B18) -> 0 | N18: 0 | O18: 0 | P18: 0
A19: 17 | B19: روز | C19: 85 | D19: 87 | F19: 0 | G19: =SUMIFS('الحركات اليومية'!$G:$G,'الحركات اليومية'!$E:$E,"مشتريات",'الحركات اليومية'!$C:$C,$B19) -> 0 | H19: 0 | I19: =SUMIFS('الحركات اليومية'!$G:$G,'الحركات اليومية'!$E:$E,"مرتجعات",'الحركات اليومية'!$C:$C,$B19) -> 0 | J19: 0 | K19: 0 | L19: 0 | M19: =SUMIFS('الحركات اليومية'!$G:$G,'الحركات اليومية'!$E:$E,"مبيعات",'الحركات اليومية'!$C:$C,$B19) -> 0 | N19: 0 | O19: 0 | P19: 0
A20: 18 | B20: بسكويت سلفا | C20: 114 | D20: 115 | F20: 0 | G20: =SUMIFS('الحركات اليومية'!$G:$G,'الحركات اليومية'!$E:$E,"مشتريات",'الحركات اليومية'!$C:$C,$B20) -> 0 | H20: 0 | I20: =SUMIFS('الحركات اليومية'!$G:$G,'الحركات اليومية'!$E:$E,"مرتجعات",'الحركات اليومية'!$C:$C,$B20) -> 0 | J20: 0 | K20: 0 | L20: 0 | M20: =SUMIFS('الحركات اليومية'!$G:$G,'الحركات اليومية'!$E:$E,"مبيعات",'الحركات اليومية'!$C:$C,$B20) -> 0 | N20: 0 | O20: 0 | P20: 0
A21: 19 | B21: مارشليو | C21: 110 | D21: 111 | F21: 0 | G21: =SUMIFS('الحركات اليومية'!$G:$G,'الحركات اليومية'!$E:$E,"مشتريات",'الحركات اليومية'!$C:$C,$B21) -> 0 | H21: 0 | I21: =SUMIFS('الحركات اليومية'!$G:$G,'الحركات اليومية'!$E:$E,"مرتجعات",'الحركات اليومية'!$C:$C,$B21) -> 0 | J21: 0 | K21: 0 | L21: 0 | M21: =SUMIFS('الحركات اليومية'!$G:$G,'الحركات اليومية'!$E:$E,"مبيعات",'الحركات اليومية'!$C:$C,$B21) -> 0 | N21: 0 | O21: 0 | P21: 0
A22: 20 | B22: نيتي فيوس | C22: 108 | D22: 110 | F22: 0 | G22: =SUMIFS('الحركات اليومية'!$G:$G,'الحركات اليومية'!$E:$E,"مشتريات",'الحركات اليومية'!$C:$C,$B22) -> 0 | H22: 0 | I22: =SUMIFS('الحركات اليومية'!$G:$G,'الحركات اليومية'!$E:$E,"مرتجعات",'الحركات اليومية'!$C:$C,$B22) -> 0 | J22: 0 | K22: 0 | L22: 0 | M22: =SUMIFS('الحركات اليومية'!$G:$G,'الحركات اليومية'!$E:$E,"مبيعات",'الحركات اليومية'!$C:$C,$B22) -> 0 | N22: 0 | O22: 0 | P22: 0
A23: 21 | B23: ملح ب جنيه | C23: 9 | D23: 10 | F23: 0 | G23: =SUMIFS('الحركات اليومية'!$G:$G,'الحركات اليومية'!$E:$E,"مشتريات",'الحركات اليومية'!$C:$C,$B23) -> 0 | H23: 0 | I23: =SUMIFS('الحركات اليومية'!$G:$G,'الحركات اليومية'!$E:$E,"مرتجعات",'الحركات اليومية'!$C:$C,$B23) -> 0 | J23: 0 | K23: 0 | L23: 0 | M23: =SUMIFS('الحركات اليومية'!$G:$G,'الحركات اليومية'!$E:$E,"مبيعات",'الحركات اليومية'!$C:$C,$B23) -> 0 | N23: 0 | O23: 0 | P23: 0
A24: 22 | B24: عصير بزازة | C24: 17.5 | D24: 18 | F24: 0 | G24: =SUMIFS('الحركات اليومية'!$G:$G,'الحركات اليومية'!$E:$E,"مشتريات",'الحركات اليومية'!$C:$C,$B24) -> 0 | H24: 0 | I24: =SUMIFS('الحركات اليومية'!$G:$G,'الحركات اليومية'!$E:$E,"مرتجعات",'الحركات اليومية'!$C:$C,$B24) -> 0 | J24: 0 | K24: 0 | L24: 0 | M24: =SUMIFS('الحركات اليومية'!$G:$G,'الحركات اليومية'!$E:$E,"مبيعات",'الحركات اليومية'!$C:$C,$B24) -> 0 | N24: 0 | O24: 0 | P24: 0
A25: 23 | B25: شيكو بن | C25: 108 | D25: 110 | F25: 0 | G25: =SUMIFS('الحركات اليومية'!$G:$G,'الحركات اليومية'!$E:$E,"مشتريات",'الحركات اليومية'!$C:$C,$B25) -> 0 | H25: 0 | I25: =SUMIFS('الحركات اليومية'!$G:$G,'الحركات اليومية'!$E:$E,"مرتجعات",'الحركات اليومية'!$C:$C,$B25) -> 0 | J25: 0 | K25: 0 | L25: 0 | M25: =SUMIFS('الحركات اليومية'!$G:$G,'الحركات اليومية'!$E:$E,"مبيعات",'الحركات اليومية'!$C:$C,$B25) -> 0 | N25: 0 | O25: 0 | P25: 0
A26: 24 | B26: عصير شفاط | C26: 40 | D26: 42 | F26: 0 | G26: =SUMIFS('الحركات اليومية'!$G:$G,'الحركات اليومية'!$E:$E,"مشتريات",'الحركات اليومية'!$C:$C,$B26) -> 0 | H26: 0 | I26: =SUMIFS('الحركات اليومية'!$G:$G,'الحركات اليومية'!$E:$E,"مرتجعات",'الحركات اليومية'!$C:$C,$B26) -> 0 | J26: 0 | K26: 0 | L26: 0 | M26: =SUMIFS('الحركات اليومية'!$G:$G,'الحركات اليومية'!$E:$E,"مبيعات",'الحركات اليومية'!$C:$C,$B26) -> 0 | N26: 0 | O26: 0 | P26: 0
A27: 25 | B27: تستي رول | C27: 200 | D27: 205 | F27: 0 | G27: =SUMIFS('الحركات اليومية'!$G:$G,'الحركات اليومية'!$E:$E,"مشتريات",'الحركات اليومية'!$C:$C,$B27) -> 0 | H27: 0 | I27: =SUMIFS('الحركات اليومية'!$G:$G,'الحركات اليومية'!$E:$E,"مرتجعات",'الحركات اليومية'!$C:$C,$B27) -> 0 | J27: 0 | K27: 0 | L27: 0 | M27: =SUMIFS('الحركات اليومية'!$G:$G,'الحركات اليومية'!$E:$E,"مبيعات",'الحركات اليومية'!$C:$C,$B27) -> 0 | N27: 0 | O27: 0 | P27: 0
A28: 26 | B28: كيوت ب 50 قرش اسك | C28: 92 | D28: 94 | F28: 0 | G28: =SUMIFS('الحركات اليومية'!$G:$G,'الحركات اليومية'!$E:$E,"مشتريات",'الحركات اليومية'!$C:$C,$B28) -> 0 | H28: 0 | I28: =SUMIFS('الحركات اليومية'!$G:$G,'الحركات اليومية'!$E:$E,"مرتجعات",'الحركات اليومية'!$C:$C,$B28) -> 32 | J28: 2944 | K28: 0 | L28: 0 | M28: =SUMIFS('الحركات اليومية'!$G:$G,'الحركات اليومية'!$E:$E,"مبيعات",'الحركات اليومية'!$C:$C,$B28) -> 0 | N28: 0 | O28: 32 | P28: 2944
A29: 27 | B29: طوفي علبة مصاصة | C29: 108 | D29: 110 | F29: 0 | G29: =SUMIFS('الحركات اليومية'!$G:$G,'الحركات اليومية'!$E:$E,"مشتريات",'الحركات اليومية'!$C:$C,$B29) -> 20 | H29: 2160 | I29: =SUMIFS('الحركات اليومية'!$G:$G,'الحركات اليومية'!$E:$E,"مرتجعات",'الحركات اليومية'!$C:$C,$B29) -> 0 | J29: 0 | K29: 0 | L29: 0 | M29: =SUMIFS('الحركات اليومية'!$G:$G,'الحركات اليومية'!$E:$E,"مبيعات",'الحركات اليومية'!$C:$C,$B29) -> 0 | N29: 0 | O29: 20 | P29: 2160
A30: 28 | B30: روتي | C30: 57 | D30: 58 | F30: 0 | G30: =SUMIFS('الحركات اليومية'!$G:$G,'الحركات اليومية'!$E:$E,"مشتريات",'الحركات اليومية'!$C:$C,$B30) -> 150 | H30: 8550 | I30: =SUMIFS('الحركات اليومية'!$G:$G,'الحركات اليومية'!$E:$E,"مرتجعات",'الحركات اليومية'!$C:$C,$B30) -> 0 | J30: 0 | K30: 0 | L30: 0 | M30: =SUMIFS('الحركات اليومية'!$G:$G,'الحركات اليومية'!$E:$E,"مبيعات",'الحركات اليومية'!$C:$C,$B30) -> 0 | N30: 0 | O30: 150 | P30: 8550
A31: 29 | B31: شموع ب 50 قرش مشكل | C31: 53 | D31: 55 | F31: 0 | G31: =SUMIFS('الحركات اليومية'!$G:$G,'الحركات اليومية'!$E:$E,"مشتريات",'الحركات اليومية'!$C:$C,$B31) -> 0 | H31: 0 | I31: =SUMIFS('الحركات اليومية'!$G:$G,'الحركات اليومية'!$E:$E,"مرتجعات",'الحركات اليومية'!$C:$C,$B31) -> 0 | J31: 0 | K31: 0 | L31: 0 | M31: =SUMIFS('الحركات اليومية'!$G:$G,'الحركات اليومية'!$E:$E,"مبيعات",'الحركات اليومية'!$C:$C,$B31) -> 0 | N31: 0 | O31: 0 | P31: 0
A32: 30 | B32: طوفي سوكا لبان | C32: 108 | D32: 110 | F32: 0 | G32: =SUMIFS('الحركات اليومية'!$G:$G,'الحركات اليومية'!$E:$E,"مشتريات",'الحركات اليومية'!$C:$C,$B32) -> 0 | H32: 0 | I32: =SUMIFS('الحركات اليومية'!$G:$G,'الحركات اليومية'!$E:$E,"مرتجعات",'الحركات اليومية'!$C:$C,$B32) -> 0 | J32: 0 | K32: 0 | L32: 0 | M32: =SUMIFS('الحركات اليومية'!$G:$G,'الحركات اليومية'!$E:$E,"مبيعات",'الحركات اليومية'!$C:$C,$B32) -> 0 | N32: 0 | O32: 0 | P32: 0
A33: 32 | B33: دوريتوس ب2جنية | C33: 24.5 | D33: 25 | F33: 0 | G33: =SUMIFS('الحركات اليومية'!$G:$G,'الحركات اليومية'!$E:$E,"مشتريات",'الحركات اليومية'!$C:$C,$B33) -> 0 | H33: 0 | I33: =SUMIFS('الحركات اليومية'!$G:$G,'الحركات اليومية'!$E:$E,"مرتجعات",'الحركات اليومية'!$C:$C,$B33) -> 0 | J33: 0 | K33: 0 | L33: 0 | M33: =SUMIFS('الحركات اليومية'!$G:$G,'الحركات اليومية'!$E:$E,"مبيعات",'الحركات اليومية'!$C:$C,$B33) -> 0 | N33: 0 | O33: 0 | P33: 0
A34: 34 | B34: رابسو كبيروصغير | C34: 119.5 | D34: 120 | F34: 0 | G34: =SUMIFS('الحركات اليومية'!$G:$G,'الحركات اليومية'!$E:$E,"مشتريات",'الحركات اليومية'!$C:$C,$B34) -> 0 | H34: 0 | I34: =SUMIFS('الحركات اليومية'!$G:$G,'الحركات اليومية'!$E:$E,"مرتجعات",'الحركات اليومية'!$C:$C,$B34) -> 250 | J34: 29875 | K34: 0 | L34: 0 | M34: =SUMIFS('الحركات اليومية'!$G:$G,'الحركات اليومية'!$E:$E,"مبيعات",'الحركات اليومية'!$C:$C,$B34) -> 0 | N34: 0 | O34: 250 | P34: 29875
A35: 36 | F35: 0 | G35: =SUMIFS('الحركات اليومية'!$G:$G,'الحركات اليومية'!$E:$E,"مشتريات",'الحركات اليومية'!$C:$C,$B35) -> 0 | H35: 0 | I35: =SUMIFS('الحركات اليومية'!$G:$G,'الحركات اليومية'!$E:$E,"مرتجعات",'الحركات اليومية'!$C:$C,$B35) -> 0 | J35: 0 | M35: =SUMIFS('الحركات اليومية'!$G:$G,'الحركات اليومية'!$E:$E,"مبيعات",'الحركات اليومية'!$C:$C,$B35) -> 0 | N35: 0 | O35: 0 | P35: 0
A36: 37 | F36: 0 | G36: =SUMIFS('الحركات اليومية'!$G:$G,'الحركات اليومية'!$E:$E,"مشتريات",'الحركات اليومية'!$C:$C,$B36) -> 0 | H36: 0 | I36: =SUMIFS('الحركات اليومية'!$G:$G,'الحركات اليومية'!$E:$E,"مرتجعات",'الحركات اليومية'!$C:$C,$B36) -> 0 | J36: 0 | M36: =SUMIFS('الحركات اليومية'!$G:$G,'الحركات اليومية'!$E:$E,"مبيعات",'الحركات اليومية'!$C:$C,$B36) -> 0 | N36: 0 | O36: 0 | P36: 0
A37: 38 | F37: 0 | G37: =SUMIFS('الحركات اليومية'!$G:$G,'الحركات اليومية'!$E:$E,"مشتريات",'الحركات اليومية'!$C:$C,$B37) -> 0 | H37: 0 | I37: =SUMIFS('الحركات اليومية'!$G:$G,'الحركات اليومية'!$E:$E,"مرتجعات",'الحركات اليومية'!$C:$C,$B37) -> 0 | J37: 0 | M37: =SUMIFS('الحركات اليومية'!$G:$G,'الحركات اليومية'!$E:$E,"مبيعات",'الحركات اليومية'!$C:$C,$B37) -> 0 | N37: 0 | O37: 0 | P37: 0
A38: 39 | F38: 0 | G38: =SUMIFS('الحركات اليومية'!$G:$G,'الحركات اليومية'!$E:$E,"مشتريات",'الحركات اليومية'!$C:$C,$B38) -> 0 | H38: 0 | I38: =SUMIFS('الحركات اليومية'!$G:$G,'الحركات اليومية'!$E:$E,"مرتجعات",'الحركات اليومية'!$C:$C,$B38) -> 0 | J38: 0 | M38: =SUMIFS('الحركات اليومية'!$G:$G,'الحركات اليومية'!$E:$E,"مبيعات",'الحركات اليومية'!$C:$C,$B38) -> 0 | N38: 0 | O38: 0 | P38: 0
A39: 40 | F39: 0 | G39: =SUMIFS('الحركات اليومية'!$G:$G,'الحركات اليومية'!$E:$E,"مشتريات",'الحركات اليومية'!$C:$C,$B39) -> 0 | H39: 0 | I39: =SUMIFS('الحركات اليومية'!$G:$G,'الحركات اليومية'!$E:$E,"مرتجعات",'الحركات اليومية'!$C:$C,$B39) -> 0 | J39: 0 | M39: =SUMIFS('الحركات اليومية'!$G:$G,'الحركات اليومية'!$E:$E,"مبيعات",'الحركات اليومية'!$C:$C,$B39) -> 0 | N39: 0 | O39: 0 | P39: 0
A40: 41 | F40: 0 | G40: =SUMIFS('الحركات اليومية'!$G:$G,'الحركات اليومية'!$E:$E,"مشتريات",'الحركات اليومية'!$C:$C,$B40) -> 0 | H40: 0 | I40: =SUMIFS('الحركات اليومية'!$G:$G,'الحركات اليومية'!$E:$E,"مرتجعات",'الحركات اليومية'!$C:$C,$B40) -> 0 | J40: 0 | M40: =SUMIFS('الحركات اليومية'!$G:$G,'الحركات اليومية'!$E:$E,"مبيعات",'الحركات اليومية'!$C:$C,$B40) -> 0 | N40: 0 | O40: 0 | P40: 0
A41: 42 | F41: 0 | G41: =SUMIFS('الحركات اليومية'!$G:$G,'الحركات اليومية'!$E:$E,"مشتريات",'الحركات اليومية'!$C:$C,$B41) -> 0 | H41: 0 | I41: =SUMIFS('الحركات اليومية'!$G:$G,'الحركات اليومية'!$E:$E,"مرتجعات",'الحركات اليومية'!$C:$C,$B41) -> 0 | J41: 0 | M41: =SUMIFS('الحركات اليومية'!$G:$G,'الحركات اليومية'!$E:$E,"مبيعات",'الحركات اليومية'!$C:$C,$B41) -> 0 | N41: 0 | O41: 0 | P41: 0
A42: 43 | F42: 0 | G42: =SUMIFS('الحركات اليومية'!$G:$G,'الحركات اليومية'!$E:$E,"مشتريات",'الحركات اليومية'!$C:$C,$B42) -> 0 | H42: 0 | I42: =SUMIFS('الحركات اليومية'!$G:$G,'الحركات اليومية'!$E:$E,"مرتجعات",'الحركات اليومية'!$C:$C,$B42) -> 0 | J42: 0 | M42: =SUMIFS('الحركات اليومية'!$G:$G,'الحركات اليومية'!$E:$E,"مبيعات",'الحركات اليومية'!$C:$C,$B42) -> 0 | N42: 0 | O42: 0 | P42: 0
A43: 44 | F43: 0 | G43: =SUMIFS('الحركات اليومية'!$G:$G,'الحركات اليومية'!$E:$E,"مشتريات",'الحركات اليومية'!$C:$C,$B43) -> 0 | H43: 0 | I43: =SUMIFS('الحركات اليومية'!$G:$G,'الحركات اليومية'!$E:$E,"مرتجعات",'الحركات اليومية'!$C:$C,$B43) -> 0 | J43: 0 | M43: =SUMIFS('الحركات اليومية'!$G:$G,'الحركات اليومية'!$E:$E,"مبيعات",'الحركات اليومية'!$C:$C,$B43) -> 0 | N43: 0 | O43: 0 | P43: 0
A44: 45 | F44: 0 | G44: =SUMIFS('الحركات اليومية'!$G:$G,'الحركات اليومية'!$E:$E,"مشتريات",'الحركات اليومية'!$C:$C,$B44) -> 0 | H44: 0 | I44: =SUMIFS('الحركات اليومية'!$G:$G,'الحركات اليومية'!$E:$E,"مرتجعات",'الحركات اليومية'!$C:$C,$B44) -> 0 | J44: 0 | M44: =SUMIFS('الحركات اليومية'!$G:$G,'الحركات اليومية'!$E:$E,"مبيعات",'الحركات اليومية'!$C:$C,$B44) -> 0 | N44: 0 | O44: 0 | P44: 0
A45: 46 | F45: 0 | G45: =SUMIFS('الحركات اليومية'!$G:$G,'الحركات اليومية'!$E:$E,"مشتريات",'الحركات اليومية'!$C:$C,$B45) -> 0 | H45: 0 | I45: =SUMIFS('الحركات اليومية'!$G:$G,'الحركات اليومية'!$E:$E,"مرتجعات",'الحركات اليومية'!$C:$C,$B45) -> 0 | J45: 0 | M45: =SUMIFS('الحركات اليومية'!$G:$G,'الحركات اليومية'!$E:$E,"مبيعات",'الحركات اليومية'!$C:$C,$B45) -> 0 | N45: 0 | O45: 0 | P45: 0
A46: 47 | F46: 0 | G46: =SUMIFS('الحركات اليومية'!$G:$G,'الحركات اليومية'!$E:$E,"مشتريات",'الحركات اليومية'!$C:$C,$B46) -> 0 | H46: 0 | I46: =SUMIFS('الحركات اليومية'!$G:$G,'الحركات اليومية'!$E:$E,"مرتجعات",'الحركات اليومية'!$C:$C,$B46) -> 0 | J46: 0 | M46: =SUMIFS('الحركات اليومية'!$G:$G,'الحركات اليومية'!$E:$E,"مبيعات",'الحركات اليومية'!$C:$C,$B46) -> 0 | N46: 0 | O46: 0 | P46: 0
A47: 48 | F47: 0 | G47: =SUMIFS('الحركات اليومية'!$G:$G,'الحركات اليومية'!$E:$E,"مشتريات",'الحركات اليومية'!$C:$C,$B47) -> 0 | H47: 0 | I47: =SUMIFS('الحركات اليومية'!$G:$G,'الحركات اليومية'!$E:$E,"مرتجعات",'الحركات اليومية'!$C:$C,$B47) -> 0 | J47: 0 | M47: =SUMIFS('الحركات اليومية'!$G:$G,'الحركات اليومية'!$E:$E,"مبيعات",'الحركات اليومية'!$C:$C,$B47) -> 0 | N47: 0 | O47: 0 | P47: 0
A48: 49 | F48: 0 | G48: =SUMIFS('الحركات اليومية'!$G:$G,'الحركات اليومية'!$E:$E,"مشتريات",'الحركات اليومية'!$C:$C,$B48) -> 0 | H48: 0 | I48: =SUMIFS('الحركات اليومية'!$G:$G,'الحركات اليومية'!$E:$E,"مرتجعات",'الحركات اليومية'!$C:$C,$B48) -> 0 | J48: 0 | M48: =SUMIFS('الحركات اليومية'!$G:$G,'الحركات اليومية'!$E:$E,"مبيعات",'الحركات اليومية'!$C:$C,$B48) -> 0 | N48: 0 | O48: 0 | P48: 0
A49: 50 | F49: 0 | G49: =SUMIFS('الحركات اليومية'!$G:$G,'الحركات اليومية'!$E:$E,"مشتريات",'الحركات اليومية'!$C:$C,$B49) -> 0 | H49: 0 | I49: =SUMIFS('الحركات اليومية'!$G:$G,'الحركات اليومية'!$E:$E,"مرتجعات",'الحركات اليومية'!$C:$C,$B49) -> 0 | J49: 0 | M49: =SUMIFS('الحركات اليومية'!$G:$G,'الحركات اليومية'!$E:$E,"مبيعات",'الحركات اليومية'!$C:$C,$B49) -> 0 | N49: 0 | O49: 0 | P49: 0
A50: 51 | F50: 0 | G50: =SUMIFS('الحركات اليومية'!$G:$G,'الحركات اليومية'!$E:$E,"مشتريات",'الحركات اليومية'!$C:$C,$B50) -> 0 | H50: 0 | I50: =SUMIFS('الحركات اليومية'!$G:$G,'الحركات اليومية'!$E:$E,"مرتجعات",'الحركات اليومية'!$C:$C,$B50) -> 0 | J50: 0 | M50: =SUMIFS('الحركات اليومية'!$G:$G,'الحركات اليومية'!$E:$E,"مبيعات",'الحركات اليومية'!$C:$C,$B50) -> 0 | N50: 0 | O50: 0 | P50: 0
A51: 52 | F51: 0 | G51: =SUMIFS('الحركات اليومية'!$G:$G,'الحركات اليومية'!$E:$E,"مشتريات",'الحركات اليومية'!$C:$C,$B51) -> 0 | H51: 0 | I51: =SUMIFS('الحركات اليومية'!$G:$G,'الحركات اليومية'!$E:$E,"مرتجعات",'الحركات اليومية'!$C:$C,$B51) -> 0 | J51: 0 | M51: =SUMIFS('الحركات اليومية'!$G:$G,'الحركات اليومية'!$E:$E,"مبيعات",'الحركات اليومية'!$C:$C,$B51) -> 0 | N51: 0 | O51: 0 | P51: 0
A52: 53 | F52: 0 | G52: =SUMIFS('الحركات اليومية'!$G:$G,'الحركات اليومية'!$E:$E,"مشتريات",'الحركات اليومية'!$C:$C,$B52) -> 0 | H52: 0 | I52: =SUMIFS('الحركات اليومية'!$G:$G,'الحركات اليومية'!$E:$E,"مرتجعات",'الحركات اليومية'!$C:$C,$B52) -> 0 | J52: 0 | M52: =SUMIFS('الحركات اليومية'!$G:$G,'الحركات اليومية'!$E:$E,"مبيعات",'الحركات اليومية'!$C:$C,$B52) -> 0 | N52: 0 | O52: 0 | P52: 0
A53: 54 | F53: 0 | G53: =SUMIFS('الحركات اليومية'!$G:$G,'الحركات اليومية'!$E:$E,"مشتريات",'الحركات اليومية'!$C:$C,$B53) -> 0 | H53: 0 | I53: =SUMIFS('الحركات اليومية'!$G:$G,'الحركات اليومية'!$E:$E,"مرتجعات",'الحركات اليومية'!$C:$C,$B53) -> 0 | J53: 0 | M53: =SUMIFS('الحركات اليومية'!$G:$G,'الحركات اليومية'!$E:$E,"مبيعات",'الحركات اليومية'!$C:$C,$B53) -> 0 | N53: 0 | O53: 0 | P53: 0
A54: 55 | F54: 0 | G54: =SUMIFS('الحركات اليومية'!$G:$G,'الحركات اليومية'!$E:$E,"مشتريات",'الحركات اليومية'!$C:$C,$B54) -> 0 | H54: 0 | I54: =SUMIFS('الحركات اليومية'!$G:$G,'الحركات اليومية'!$E:$E,"مرتجعات",'الحركات اليومية'!$C:$C,$B54) -> 0 | J54: 0 | M54: =SUMIFS('الحركات اليومية'!$G:$G,'الحركات اليومية'!$E:$E,"مبيعات",'الحركات اليومية'!$C:$C,$B54) -> 0 | N54: 0 | O54: 0 | P54: 0
A55: 56 | F55: 0 | G55: =SUMIFS('الحركات اليومية'!$G:$G,'الحركات اليومية'!$E:$E,"مشتريات",'الحركات اليومية'!$C:$C,$B55) -> 0 | H55: 0 | I55: =SUMIFS('الحركات اليومية'!$G:$G,'الحركات اليومية'!$E:$E,"مرتجعات",'الحركات اليومية'!$C:$C,$B55) -> 0 | J55: 0 | M55: =SUMIFS('الحركات اليومية'!$G:$G,'الحركات اليومية'!$E:$E,"مبيعات",'الحركات اليومية'!$C:$C,$B55) -> 0 | N55: 0 | O55: 0 | P55: 0
A56: 57 | F56: 0 | G56: =SUMIFS('الحركات اليومية'!$G:$G,'الحركات اليومية'!$E:$E,"مشتريات",'الحركات اليومية'!$C:$C,$B56) -> 0 | H56: 0 | I56: =SUMIFS('الحركات اليومية'!$G:$G,'الحركات اليومية'!$E:$E,"مرتجعات",'الحركات اليومية'!$C:$C,$B56) -> 0 | J56: 0 | M56: =SUMIFS('الحركات اليومية'!$G:$G,'الحركات اليومية'!$E:$E,"مبيعات",'الحركات اليومية'!$C:$C,$B56) -> 0 | N56: 0 | O56: 0 | P56: 0
A57: 58 | F57: 0 | G57: =SUMIFS('الحركات اليومية'!$G:$G,'الحركات اليومية'!$E:$E,"مشتريات",'الحركات اليومية'!$C:$C,$B57) -> 0 | H57: 0 | I57: =SUMIFS('الحركات اليومية'!$G:$G,'الحركات اليومية'!$E:$E,"مرتجعات",'الحركات اليومية'!$C:$C,$B57) -> 0 | J57: 0 | M57: =SUMIFS('الحركات اليومية'!$G:$G,'الحركات اليومية'!$E:$E,"مبيعات",'الحركات اليومية'!$C:$C,$B57) -> 0 | N57: 0 | O57: 0 | P57: 0
A58: 59 | F58: 0 | G58: =SUMIFS('الحركات اليومية'!$G:$G,'الحركات اليومية'!$E:$E,"مشتريات",'الحركات اليومية'!$C:$C,$B58) -> 0 | H58: 0 | I58: =SUMIFS('الحركات اليومية'!$G:$G,'الحركات اليومية'!$E:$E,"مرتجعات",'الحركات اليومية'!$C:$C,$B58) -> 0 | J58: 0 | M58: =SUMIFS('الحركات اليومية'!$G:$G,'الحركات اليومية'!$E:$E,"مبيعات",'الحركات اليومية'!$C:$C,$B58) -> 0 | N58: 0 | O58: 0 | P58: 0
A59: 60 | F59: 0 | G59: =SUMIFS('الحركات اليومية'!$G:$G,'الحركات اليومية'!$E:$E,"مشتريات",'الحركات اليومية'!$C:$C,$B59) -> 0 | H59: 0 | I59: =SUMIFS('الحركات اليومية'!$G:$G,'الحركات اليومية'!$E:$E,"مرتجعات",'الحركات اليومية'!$C:$C,$B59) -> 0 | J59: 0 | M59: =SUMIFS('الحركات اليومية'!$G:$G,'الحركات اليومية'!$E:$E,"مبيعات",'الحركات اليومية'!$C:$C,$B59) -> 0 | N59: 0 | O59: 0 | P59: 0
A60: 61 | F60: 0 | G60: =SUMIFS('الحركات اليومية'!$G:$G,'الحركات اليومية'!$E:$E,"مشتريات",'الحركات اليومية'!$C:$C,$B60) -> 0 | H60: 0 | I60: =SUMIFS('الحركات اليومية'!$G:$G,'الحركات اليومية'!$E:$E,"مرتجعات",'الحركات اليومية'!$C:$C,$B60) -> 0 | J60: 0 | M60: =SUMIFS('الحركات اليومية'!$G:$G,'الحركات اليومية'!$E:$E,"مبيعات",'الحركات اليومية'!$C:$C,$B60) -> 0 | N60: 0 | O60: 0 | P60: 0
A61: 62 | F61: 0 | G61: =SUMIFS('الحركات اليومية'!$G:$G,'الحركات اليومية'!$E:$E,"مشتريات",'الحركات اليومية'!$C:$C,$B61) -> 0 | H61: 0 | I61: =SUMIFS('الحركات اليومية'!$G:$G,'الحركات اليومية'!$E:$E,"مرتجعات",'الحركات اليومية'!$C:$C,$B61) -> 0 | J61: 0 | M61: =SUMIFS('الحركات اليومية'!$G:$G,'الحركات اليومية'!$E:$E,"مبيعات",'الحركات اليومية'!$C:$C,$B61) -> 0 | N61: 0 | O61: 0 | P61: 0
A62: 63 | F62: 0 | G62: =SUMIFS('الحركات اليومية'!$G:$G,'الحركات اليومية'!$E:$E,"مشتريات",'الحركات اليومية'!$C:$C,$B62) -> 0 | H62: 0 | I62: =SUMIFS('الحركات اليومية'!$G:$G,'الحركات اليومية'!$E:$E,"مرتجعات",'الحركات اليومية'!$C:$C,$B62) -> 0 | J62: 0 | M62: =SUMIFS('الحركات اليومية'!$G:$G,'الحركات اليومية'!$E:$E,"مبيعات",'الحركات اليومية'!$C:$C,$B62) -> 0 | N62: 0 | O62: 0 | P62: 0
A63: 64 | F63: 0 | G63: =SUMIFS('الحركات اليومية'!$G:$G,'الحركات اليومية'!$E:$E,"مشتريات",'الحركات اليومية'!$C:$C,$B63) -> 0 | H63: 0 | I63: =SUMIFS('الحركات اليومية'!$G:$G,'الحركات اليومية'!$E:$E,"مرتجعات",'الحركات اليومية'!$C:$C,$B63) -> 0 | J63: 0 | M63: =SUMIFS('الحركات اليومية'!$G:$G,'الحركات اليومية'!$E:$E,"مبيعات",'الحركات اليومية'!$C:$C,$B63) -> 0 | N63: 0 | O63: 0 | P63: 0
A64: 65 | F64: 0 | G64: =SUMIFS('الحركات اليومية'!$G:$G,'الحركات اليومية'!$E:$E,"مشتريات",'الحركات اليومية'!$C:$C,$B64) -> 0 | H64: 0 | I64: =SUMIFS('الحركات اليومية'!$G:$G,'الحركات اليومية'!$E:$E,"مرتجعات",'الحركات اليومية'!$C:$C,$B64) -> 0 | J64: 0 | M64: =SUMIFS('الحركات اليومية'!$G:$G,'الحركات اليومية'!$E:$E,"مبيعات",'الحركات اليومية'!$C:$C,$B64) -> 0 | N64: 0 | O64: 0 | P64: 0
A65: 66 | F65: 0 | G65: =SUMIFS('الحركات اليومية'!$G:$G,'الحركات اليومية'!$E:$E,"مشتريات",'الحركات اليومية'!$C:$C,$B65) -> 0 | H65: 0 | I65: =SUMIFS('الحركات اليومية'!$G:$G,'الحركات اليومية'!$E:$E,"مرتجعات",'الحركات اليومية'!$C:$C,$B65) -> 0 | J65: 0 | M65: =SUMIFS('الحركات اليومية'!$G:$G,'الحركات اليومية'!$E:$E,"مبيعات",'الحركات اليومية'!$C:$C,$B65) -> 0 | N65: 0 | O65: 0 | P65: 0
A66: 67 | F66: 0 | G66: =SUMIFS('الحركات اليومية'!$G:$G,'الحركات اليومية'!$E:$E,"مشتريات",'الحركات اليومية'!$C:$C,$B66) -> 0 | H66: 0 | I66: =SUMIFS('الحركات اليومية'!$G:$G,'الحركات اليومية'!$E:$E,"مرتجعات",'الحركات اليومية'!$C:$C,$B66) -> 0 | J66: 0 | M66: =SUMIFS('الحركات اليومية'!$G:$G,'الحركات اليومية'!$E:$E,"مبيعات",'الحركات اليومية'!$C:$C,$B66) -> 0 | N66: 0 | O66: 0 | P66: 0
A67: 68 | F67: 0 | G67: =SUMIFS('الحركات اليومية'!$G:$G,'الحركات اليومية'!$E:$E,"مشتريات",'الحركات اليومية'!$C:$C,$B67) -> 0 | H67: =G67*C67 -> 0 | I67: =SUMIFS('الحركات اليومية'!$G:$G,'الحركات اليومية'!$E:$E,"مرتجعات",'الحركات اليومية'!$C:$C,$B67) -> 0 | J67: =IFERROR(I67*C67,"") -> 0 | M67: =SUMIFS('الحركات اليومية'!$G:$G,'الحركات اليومية'!$E:$E,"مبيعات",'الحركات اليومية'!$C:$C,$B67) -> 0 | N67: 0 | O67: 0 | P67: 0
A68: 69 | F68: =E68*C68 -> 0 | G68: =SUMIFS('الحركات اليومية'!$G:$G,'الحركات اليومية'!$E:$E,"مشتريات",'الحركات اليومية'!$C:$C,$B68) -> 0 | H68: 0 | I68: =SUMIFS('الحركات اليومية'!$G:$G,'الحركات اليومية'!$E:$E,"مرتجعات",'الحركات اليومية'!$C:$C,$B68) -> 0 | J68: 0 | M68: =SUMIFS('الحركات اليومية'!$G:$G,'الحركات اليومية'!$E:$E,"مبيعات",'الحركات اليومية'!$C:$C,$B68) -> 0 | N68: =M68*D68 -> 0 | O68: 0 | P68: 0
A69: 70 | F69: 0 | G69: =SUMIFS('الحركات اليومية'!$G:$G,'الحركات اليومية'!$E:$E,"مشتريات",'الحركات اليومية'!$C:$C,$B69) -> 0 | H69: 0 | I69: =SUMIFS('الحركات اليومية'!$G:$G,'الحركات اليومية'!$E:$E,"مرتجعات",'الحركات اليومية'!$C:$C,$B69) -> 0 | J69: 0 | M69: =SUMIFS('الحركات اليومية'!$G:$G,'الحركات اليومية'!$E:$E,"مبيعات",'الحركات اليومية'!$C:$C,$B69) -> 0 | N69: 0 | O69: =(E69+G69+I69)-M69 -> 0 | P69: =(F69+H69+J69)-N69 -> 0
A70: 71 | F70: 0 | G70: =SUMIFS('الحركات اليومية'!$G:$G,'الحركات اليومية'!$E:$E,"مشتريات",'الحركات اليومية'!$C:$C,$B70) -> 0 | H70: 0 | I70: =SUMIFS('الحركات اليومية'!$G:$G,'الحركات اليومية'!$E:$E,"مرتجعات",'الحركات اليومية'!$C:$C,$B70) -> 0 | J70: 0 | M70: =SUMIFS('الحركات اليومية'!$G:$G,'الحركات اليومية'!$E:$E,"مبيعات",'الحركات اليومية'!$C:$C,$B70) -> 0 | N70: 0 | O70: 0 | P70: 0
A71: 72 | F71: 0 | G71: =SUMIFS('الحركات اليومية'!$G:$G,'الحركات اليومية'!$E:$E,"مشتريات",'الحركات اليومية'!$C:$C,$B71) -> 0 | H71: 0 | I71: =SUMIFS('الحركات اليومية'!$G:$G,'الحركات اليومية'!$E:$E,"مرتجعات",'الحركات اليومية'!$C:$C,$B71) -> 0 | J71: 0 | M71: =SUMIFS('الحركات اليومية'!$G:$G,'الحركات اليومية'!$E:$E,"مبيعات",'الحركات اليومية'!$C:$C,$B71) -> 0 | N71: 0 | O71: 0 | P71: 0
A72: 73 | F72: 0 | G72: =SUMIFS('الحركات اليومية'!$G:$G,'الحركات اليومية'!$E:$E,"مشتريات",'الحركات اليومية'!$C:$C,$B72) -> 0 | H72: 0 | I72: =SUMIFS('الحركات اليومية'!$G:$G,'الحركات اليومية'!$E:$E,"مرتجعات",'الحركات اليومية'!$C:$C,$B72) -> 0 | J72: 0 | M72: =SUMIFS('الحركات اليومية'!$G:$G,'الحركات اليومية'!$E:$E,"مبيعات",'الحركات اليومية'!$C:$C,$B72) -> 0 | N72: 0 | O72: 0 | P72: 0
A73: 74 | F73: 0 | G73: =SUMIFS('الحركات اليومية'!$G:$G,'الحركات اليومية'!$E:$E,"مشتريات",'الحركات اليومية'!$C:$C,$B73) -> 0 | H73: 0 | I73: =SUMIFS('الحركات اليومية'!$G:$G,'الحركات اليومية'!$E:$E,"مرتجعات",'الحركات اليومية'!$C:$C,$B73) -> 0 | J73: 0 | M73: =SUMIFS('الحركات اليومية'!$G:$G,'الحركات اليومية'!$E:$E,"مبيعات",'الحركات اليومية'!$C:$C,$B73) -> 0 | N73: 0 | O73: 0 | P73: 0
A74: 75 | F74: 0 | G74: =SUMIFS('الحركات اليومية'!$G:$G,'الحركات اليومية'!$E:$E,"مشتريات",'الحركات اليومية'!$C:$C,$B74) -> 0 | H74: 0 | I74: =SUMIFS('الحركات اليومية'!$G:$G,'الحركات اليومية'!$E:$E,"مرتجعات",'الحركات اليومية'!$C:$C,$B74) -> 0 | J74: 0 | M74: =SUMIFS('الحركات اليومية'!$G:$G,'الحركات اليومية'!$E:$E,"مبيعات",'الحركات اليومية'!$C:$C,$B74) -> 0 | N74: 0 | O74: 0 | P74: 0
A75: 76 | F75: 0 | G75: =SUMIFS('الحركات اليومية'!$G:$G,'الحركات اليومية'!$E:$E,"مشتريات",'الحركات اليومية'!$C:$C,$B75) -> 0 | H75: 0 | I75: =SUMIFS('الحركات اليومية'!$G:$G,'الحركات اليومية'!$E:$E,"مرتجعات",'الحركات اليومية'!$C:$C,$B75) -> 0 | J75: 0 | M75: =SUMIFS('الحركات اليومية'!$G:$G,'الحركات اليومية'!$E:$E,"مبيعات",'الحركات اليومية'!$C:$C,$B75) -> 0 | N75: 0 | O75: 0 | P75: 0
A76: 77 | F76: 0 | G76: =SUMIFS('الحركات اليومية'!$G:$G,'الحركات اليومية'!$E:$E,"مشتريات",'الحركات اليومية'!$C:$C,$B76) -> 0 | H76: 0 | I76: =SUMIFS('الحركات اليومية'!$G:$G,'الحركات اليومية'!$E:$E,"مرتجعات",'الحركات اليومية'!$C:$C,$B76) -> 0 | J76: 0 | M76: =SUMIFS('الحركات اليومية'!$G:$G,'الحركات اليومية'!$E:$E,"مبيعات",'الحركات اليومية'!$C:$C,$B76) -> 0 | N76: 0 | O76: 0 | P76: 0
A77: 78 | F77: 0 | G77: =SUMIFS('الحركات اليومية'!$G:$G,'الحركات اليومية'!$E:$E,"مشتريات",'الحركات اليومية'!$C:$C,$B77) -> 0 | H77: 0 | I77: =SUMIFS('الحركات اليومية'!$G:$G,'الحركات اليومية'!$E:$E,"مرتجعات",'الحركات اليومية'!$C:$C,$B77) -> 0 | J77: 0 | M77: =SUMIFS('الحركات اليومية'!$G:$G,'الحركات اليومية'!$E:$E,"مبيعات",'الحركات اليومية'!$C:$C,$B77) -> 0 | N77: 0 | O77: 0 | P77: 0
A78: 79 | F78: 0 | G78: =SUMIFS('الحركات اليومية'!$G:$G,'الحركات اليومية'!$E:$E,"مشتريات",'الحركات اليومية'!$C:$C,$B78) -> 0 | H78: 0 | I78: =SUMIFS('الحركات اليومية'!$G:$G,'الحركات اليومية'!$E:$E,"مرتجعات",'الحركات اليومية'!$C:$C,$B78) -> 0 | J78: 0 | M78: =SUMIFS('الحركات اليومية'!$G:$G,'الحركات اليومية'!$E:$E,"مبيعات",'الحركات اليومية'!$C:$C,$B78) -> 0 | N78: 0 | O78: 0 | P78: 0
A79: 80 | F79: 0 | G79: =SUMIFS('الحركات اليومية'!$G:$G,'الحركات اليومية'!$E:$E,"مشتريات",'الحركات اليومية'!$C:$C,$B79) -> 0 | H79: 0 | I79: =SUMIFS('الحركات اليومية'!$G:$G,'الحركات اليومية'!$E:$E,"مرتجعات",'الحركات اليومية'!$C:$C,$B79) -> 0 | J79: 0 | M79: =SUMIFS('الحركات اليومية'!$G:$G,'الحركات اليومية'!$E:$E,"مبيعات",'الحركات اليومية'!$C:$C,$B79) -> 0 | N79: 0 | O79: 0 | P79: 0
A80: 81 | F80: 0 | G80: =SUMIFS('الحركات اليومية'!$G:$G,'الحركات اليومية'!$E:$E,"مشتريات",'الحركات اليومية'!$C:$C,$B80) -> 0 | H80: 0 | I80: =SUMIFS('الحركات اليومية'!$G:$G,'الحركات اليومية'!$E:$E,"مرتجعات",'الحركات اليومية'!$C:$C,$B80) -> 0 | J80: 0 | M80: =SUMIFS('الحركات اليومية'!$G:$G,'الحركات اليومية'!$E:$E,"مبيعات",'الحركات اليومية'!$C:$C,$B80) -> 0 | N80: 0 | O80: 0 | P80: 0
A81: 82 | F81: 0 | G81: =SUMIFS('الحركات اليومية'!$G:$G,'الحركات اليومية'!$E:$E,"مشتريات",'الحركات اليومية'!$C:$C,$B81) -> 0 | H81: 0 | I81: =SUMIFS('الحركات اليومية'!$G:$G,'الحركات اليومية'!$E:$E,"مرتجعات",'الحركات اليومية'!$C:$C,$B81) -> 0 | J81: 0 | M81: =SUMIFS('الحركات اليومية'!$G:$G,'الحركات اليومية'!$E:$E,"مبيعات",'الحركات اليومية'!$C:$C,$B81) -> 0 | N81: 0 | O81: 0 | P81: 0
A82: 83 | F82: 0 | G82: =SUMIFS('الحركات اليومية'!$G:$G,'الحركات اليومية'!$E:$E,"مشتريات",'الحركات اليومية'!$C:$C,$B82) -> 0 | H82: 0 | I82: =SUMIFS('الحركات اليومية'!$G:$G,'الحركات اليومية'!$E:$E,"مرتجعات",'الحركات اليومية'!$C:$C,$B82) -> 0 | J82: 0 | M82: =SUMIFS('الحركات اليومية'!$G:$G,'الحركات اليومية'!$E:$E,"مبيعات",'الحركات اليومية'!$C:$C,$B82) -> 0 | N82: 0 | O82: 0 | P82: 0
A83: 84 | F83: 0 | G83: =SUMIFS('الحركات اليومية'!$G:$G,'الحركات اليومية'!$E:$E,"مشتريات",'الحركات اليومية'!$C:$C,$B83) -> 0 | H83: 0 | I83: =SUMIFS('الحركات اليومية'!$G:$G,'الحركات اليومية'!$E:$E,"مرتجعات",'الحركات اليومية'!$C:$C,$B83) -> 0 | J83: 0 | M83: =SUMIFS('الحركات اليومية'!$G:$G,'الحركات اليومية'!$E:$E,"مبيعات",'الحركات اليومية'!$C:$C,$B83) -> 0 | N83: 0 | O83: 0 | P83: 0
A84: 85 | F84: 0 | G84: =SUMIFS('الحركات اليومية'!$G:$G,'الحركات اليومية'!$E:$E,"مشتريات",'الحركات اليومية'!$C:$C,$B84) -> 0 | H84: 0 | I84: =SUMIFS('الحركات اليومية'!$G:$G,'الحركات اليومية'!$E:$E,"مرتجعات",'الحركات اليومية'!$C:$C,$B84) -> 0 | J84: 0 | M84: =SUMIFS('الحركات اليومية'!$G:$G,'الحركات اليومية'!$E:$E,"مبيعات",'الحركات اليومية'!$C:$C,$B84) -> 0 | N84: 0 | O84: 0 | P84: 0
A85: 86 | F85: 0 | G85: =SUMIFS('الحركات اليومية'!$G:$G,'الحركات اليومية'!$E:$E,"مشتريات",'الحركات اليومية'!$C:$C,$B85) -> 0 | H85: 0 | I85: =SUMIFS('الحركات اليومية'!$G:$G,'الحركات اليومية'!$E:$E,"مرتجعات",'الحركات اليومية'!$C:$C,$B85) -> 0 | J85: 0 | M85: =SUMIFS('الحركات اليومية'!$G:$G,'الحركات اليومية'!$E:$E,"مبيعات",'الحركات اليومية'!$C:$C,$B85) -> 0 | N85: 0 | O85: 0 | P85: 0
A86: 87 | F86: 0 | G86: =SUMIFS('الحركات اليومية'!$G:$G,'الحركات اليومية'!$E:$E,"مشتريات",'الحركات اليومية'!$C:$C,$B86) -> 0 | H86: 0 | I86: =SUMIFS('الحركات اليومية'!$G:$G,'الحركات اليومية'!$E:$E,"مرتجعات",'الحركات اليومية'!$C:$C,$B86) -> 0 | J86: 0 | M86: =SUMIFS('الحركات اليومية'!$G:$G,'الحركات اليومية'!$E:$E,"مبيعات",'الحركات اليومية'!$C:$C,$B86) -> 0 | N86: 0 | O86: 0 | P86: 0
A87: 88 | F87: 0 | G87: =SUMIFS('الحركات اليومية'!$G:$G,'الحركات اليومية'!$E:$E,"مشتريات",'الحركات اليومية'!$C:$C,$B87) -> 0 | H87: 0 | I87: =SUMIFS('الحركات اليومية'!$G:$G,'الحركات اليومية'!$E:$E,"مرتجعات",'الحركات اليومية'!$C:$C,$B87) -> 0 | J87: 0 | M87: =SUMIFS('الحركات اليومية'!$G:$G,'الحركات اليومية'!$E:$E,"مبيعات",'الحركات اليومية'!$C:$C,$B87) -> 0 | N87: 0 | O87: 0 | P87: 0
A88: 89 | F88: 0 | G88: =SUMIFS('الحركات اليومية'!$G:$G,'الحركات اليومية'!$E:$E,"مشتريات",'الحركات اليومية'!$C:$C,$B88) -> 0 | H88: 0 | I88: =SUMIFS('الحركات اليومية'!$G:$G,'الحركات اليومية'!$E:$E,"مرتجعات",'الحركات اليومية'!$C:$C,$B88) -> 0 | J88: 0 | M88: =SUMIFS('الحركات اليومية'!$G:$G,'الحركات اليومية'!$E:$E,"مبيعات",'الحركات اليومية'!$C:$C,$B88) -> 0 | N88: 0 | O88: 0 | P88: 0
A89: 90 | F89: 0 | G89: =SUMIFS('الحركات اليومية'!$G:$G,'الحركات اليومية'!$E:$E,"مشتريات",'الحركات اليومية'!$C:$C,$B89) -> 0 | H89: 0 | I89: =SUMIFS('الحركات اليومية'!$G:$G,'الحركات اليومية'!$E:$E,"مرتجعات",'الحركات اليومية'!$C:$C,$B89) -> 0 | J89: 0 | M89: =SUMIFS('الحركات اليومية'!$G:$G,'الحركات اليومية'!$E:$E,"مبيعات",'الحركات اليومية'!$C:$C,$B89) -> 0 | N89: 0 | O89: 0 | P89: 0
A90: 91 | F90: 0 | G90: =SUMIFS('الحركات اليومية'!$G:$G,'الحركات اليومية'!$E:$E,"مشتريات",'الحركات اليومية'!$C:$C,$B90) -> 0 | H90: 0 | I90: =SUMIFS('الحركات اليومية'!$G:$G,'الحركات اليومية'!$E:$E,"مرتجعات",'الحركات اليومية'!$C:$C,$B90) -> 0 | J90: 0 | M90: =SUMIFS('الحركات اليومية'!$G:$G,'الحركات اليومية'!$E:$E,"مبيعات",'الحركات اليومية'!$C:$C,$B90) -> 0 | N90: 0 | O90: 0 | P90: 0
A91: 92 | F91: 0 | G91: =SUMIFS('الحركات اليومية'!$G:$G,'الحركات اليومية'!$E:$E,"مشتريات",'الحركات اليومية'!$C:$C,$B91) -> 0 | H91: 0 | I91: =SUMIFS('الحركات اليومية'!$G:$G,'الحركات اليومية'!$E:$E,"مرتجعات",'الحركات اليومية'!$C:$C,$B91) -> 0 | J91: 0 | M91: =SUMIFS('الحركات اليومية'!$G:$G,'الحركات اليومية'!$E:$E,"مبيعات",'الحركات اليومية'!$C:$C,$B91) -> 0 | N91: 0 | O91: 0 | P91: 0
A92: 93 | F92: 0 | G92: =SUMIFS('الحركات اليومية'!$G:$G,'الحركات اليومية'!$E:$E,"مشتريات",'الحركات اليومية'!$C:$C,$B92) -> 0 | H92: 0 | I92: =SUMIFS('الحركات اليومية'!$G:$G,'الحركات اليومية'!$E:$E,"مرتجعات",'الحركات اليومية'!$C:$C,$B92) -> 0 | J92: 0 | M92: =SUMIFS('الحركات اليومية'!$G:$G,'الحركات اليومية'!$E:$E,"مبيعات",'الحركات اليومية'!$C:$C,$B92) -> 0 | N92: 0 | O92: 0 | P92: 0
A93: 94 | F93: 0 | G93: =SUMIFS('الحركات اليومية'!$G:$G,'الحركات اليومية'!$E:$E,"مشتريات",'الحركات اليومية'!$C:$C,$B93) -> 0 | H93: 0 | I93: =SUMIFS('الحركات اليومية'!$G:$G,'الحركات اليومية'!$E:$E,"مرتجعات",'الحركات اليومية'!$C:$C,$B93) -> 0 | J93: 0 | M93: =SUMIFS('الحركات اليومية'!$G:$G,'الحركات اليومية'!$E:$E,"مبيعات",'الحركات اليومية'!$C:$C,$B93) -> 0 | N93: 0 | O93: 0 | P93: 0
A94: 95 | F94: 0 | G94: =SUMIFS('الحركات اليومية'!$G:$G,'الحركات اليومية'!$E:$E,"مشتريات",'الحركات اليومية'!$C:$C,$B94) -> 0 | H94: 0 | I94: =SUMIFS('الحركات اليومية'!$G:$G,'الحركات اليومية'!$E:$E,"مرتجعات",'الحركات اليومية'!$C:$C,$B94) -> 0 | J94: 0 | M94: =SUMIFS('الحركات اليومية'!$G:$G,'الحركات اليومية'!$E:$E,"مبيعات",'الحركات اليومية'!$C:$C,$B94) -> 0 | N94: 0 | O94: 0 | P94: 0
A95: 96 | F95: 0 | G95: =SUMIFS('الحركات اليومية'!$G:$G,'الحركات اليومية'!$E:$E,"مشتريات",'الحركات اليومية'!$C:$C,$B95) -> 0 | H95: 0 | I95: =SUMIFS('الحركات اليومية'!$G:$G,'الحركات اليومية'!$E:$E,"مرتجعات",'الحركات اليومية'!$C:$C,$B95) -> 0 | J95: 0 | M95: =SUMIFS('الحركات اليومية'!$G:$G,'الحركات اليومية'!$E:$E,"مبيعات",'الحركات اليومية'!$C:$C,$B95) -> 0 | N95: 0 | O95: 0 | P95: 0
A96: 97 | F96: 0 | G96: =SUMIFS('الحركات اليومية'!$G:$G,'الحركات اليومية'!$E:$E,"مشتريات",'الحركات اليومية'!$C:$C,$B96) -> 0 | H96: 0 | I96: =SUMIFS('الحركات اليومية'!$G:$G,'الحركات اليومية'!$E:$E,"مرتجعات",'الحركات اليومية'!$C:$C,$B96) -> 0 | J96: 0 | M96: =SUMIFS('الحركات اليومية'!$G:$G,'الحركات اليومية'!$E:$E,"مبيعات",'الحركات اليومية'!$C:$C,$B96) -> 0 | N96: 0 | O96: 0 | P96: 0
A97: 98 | F97: 0 | G97: =SUMIFS('الحركات اليومية'!$G:$G,'الحركات اليومية'!$E:$E,"مشتريات",'الحركات اليومية'!$C:$C,$B97) -> 0 | H97: 0 | I97: =SUMIFS('الحركات اليومية'!$G:$G,'الحركات اليومية'!$E:$E,"مرتجعات",'الحركات اليومية'!$C:$C,$B97) -> 0 | J97: 0 | M97: =SUMIFS('الحركات اليومية'!$G:$G,'الحركات اليومية'!$E:$E,"مبيعات",'الحركات اليومية'!$C:$C,$B97) -> 0 | N97: 0 | O97: 0 | P97: 0
A98: 99 | F98: 0 | G98: =SUMIFS('الحركات اليومية'!$G:$G,'الحركات اليومية'!$E:$E,"مشتريات",'الحركات اليومية'!$C:$C,$B98) -> 0 | H98: 0 | I98: =SUMIFS('الحركات اليومية'!$G:$G,'الحركات اليومية'!$E:$E,"مرتجعات",'الحركات اليومية'!$C:$C,$B98) -> 0 | J98: 0 | M98: =SUMIFS('الحركات اليومية'!$G:$G,'الحركات اليومية'!$E:$E,"مبيعات",'الحركات اليومية'!$C:$C,$B98) -> 0 | N98: 0 | O98: 0 | P98: 0
A99: 100 | F99: 0 | G99: =SUMIFS('الحركات اليومية'!$G:$G,'الحركات اليومية'!$E:$E,"مشتريات",'الحركات اليومية'!$C:$C,$B99) -> 0 | H99: 0 | I99: =SUMIFS('الحركات اليومية'!$G:$G,'الحركات اليومية'!$E:$E,"مرتجعات",'الحركات اليومية'!$C:$C,$B99) -> 0 | J99: 0 | M99: =SUMIFS('الحركات اليومية'!$G:$G,'الحركات اليومية'!$E:$E,"مبيعات",'الحركات اليومية'!$C:$C,$B99) -> 0 | N99: 0 | O99: 0 | P99: 0
A100: 101 | F100: 0 | G100: =SUMIFS('الحركات اليومية'!$G:$G,'الحركات اليومية'!$E:$E,"مشتريات",'الحركات اليومية'!$C:$C,$B100) -> 0 | H100: 0 | I100: =SUMIFS('الحركات اليومية'!$G:$G,'الحركات اليومية'!$E:$E,"مرتجعات",'الحركات اليومية'!$C:$C,$B100) -> 0 | J100: 0 | M100: =SUMIFS('الحركات اليومية'!$G:$G,'الحركات اليومية'!$E:$E,"مبيعات",'الحركات اليومية'!$C:$C,$B100) -> 0 | N100: 0 | O100: 0 | P100: 0
A101: 102 | F101: 0 | G101: =SUMIFS('الحركات اليومية'!$G:$G,'الحركات اليومية'!$E:$E,"مشتريات",'الحركات اليومية'!$C:$C,$B101) -> 0 | H101: 0 | I101: =SUMIFS('الحركات اليومية'!$G:$G,'الحركات اليومية'!$E:$E,"مرتجعات",'الحركات اليومية'!$C:$C,$B101) -> 0 | J101: 0 | M101: =SUMIFS('الحركات اليومية'!$G:$G,'الحركات اليومية'!$E:$E,"مبيعات",'الحركات اليومية'!$C:$C,$B101) -> 0 | N101: 0 | O101: 0 | P101: 0
A102: 103 | F102: 0 | G102: =SUMIFS('الحركات اليومية'!$G:$G,'الحركات اليومية'!$E:$E,"مشتريات",'الحركات اليومية'!$C:$C,$B102) -> 0 | H102: 0 | I102: =SUMIFS('الحركات اليومية'!$G:$G,'الحركات اليومية'!$E:$E,"مرتجعات",'الحركات اليومية'!$C:$C,$B102) -> 0 | J102: 0 | M102: =SUMIFS('الحركات اليومية'!$G:$G,'الحركات اليومية'!$E:$E,"مبيعات",'الحركات اليومية'!$C:$C,$B102) -> 0 | N102: 0 | O102: 0 | P102: 0
A103: 104 | F103: 0 | G103: =SUMIFS('الحركات اليومية'!$G:$G,'الحركات اليومية'!$E:$E,"مشتريات",'الحركات اليومية'!$C:$C,$B103) -> 0 | H103: 0 | I103: =SUMIFS('الحركات اليومية'!$G:$G,'الحركات اليومية'!$E:$E,"مرتجعات",'الحركات اليومية'!$C:$C,$B103) -> 0 | J103: 0 | M103: =SUMIFS('الحركات اليومية'!$G:$G,'الحركات اليومية'!$E:$E,"مبيعات",'الحركات اليومية'!$C:$C,$B103) -> 0 | N103: 0 | O103: 0 | P103: 0
A104: 105 | F104: 0 | G104: =SUMIFS('الحركات اليومية'!$G:$G,'الحركات اليومية'!$E:$E,"مشتريات",'الحركات اليومية'!$C:$C,$B104) -> 0 | H104: 0 | I104: =SUMIFS('الحركات اليومية'!$G:$G,'الحركات اليومية'!$E:$E,"مرتجعات",'الحركات اليومية'!$C:$C,$B104) -> 0 | J104: 0 | M104: =SUMIFS('الحركات اليومية'!$G:$G,'الحركات اليومية'!$E:$E,"مبيعات",'الحركات اليومية'!$C:$C,$B104) -> 0 | N104: 0 | O104: 0 | P104: 0
A105: 106 | F105: 0 | G105: =SUMIFS('الحركات اليومية'!$G:$G,'الحركات اليومية'!$E:$E,"مشتريات",'الحركات اليومية'!$C:$C,$B105) -> 0 | H105: 0 | I105: =SUMIFS('الحركات اليومية'!$G:$G,'الحركات اليومية'!$E:$E,"مرتجعات",'الحركات اليومية'!$C:$C,$B105) -> 0 | J105: 0 | M105: =SUMIFS('الحركات اليومية'!$G:$G,'الحركات اليومية'!$E:$E,"مبيعات",'الحركات اليومية'!$C:$C,$B105) -> 0 | N105: 0 | O105: 0 | P105: 0
A106: 107 | F106: 0 | G106: =SUMIFS('الحركات اليومية'!$G:$G,'الحركات اليومية'!$E:$E,"مشتريات",'الحركات اليومية'!$C:$C,$B106) -> 0 | H106: 0 | I106: =SUMIFS('الحركات اليومية'!$G:$G,'الحركات اليومية'!$E:$E,"مرتجعات",'الحركات اليومية'!$C:$C,$B106) -> 0 | J106: 0 | M106: =SUMIFS('الحركات اليومية'!$G:$G,'الحركات اليومية'!$E:$E,"مبيعات",'الحركات اليومية'!$C:$C,$B106) -> 0 | N106: 0 | O106: 0 | P106: 0
A107: 108 | F107: 0 | G107: =SUMIFS('الحركات اليومية'!$G:$G,'الحركات اليومية'!$E:$E,"مشتريات",'الحركات اليومية'!$C:$C,$B107) -> 0 | H107: 0 | I107: =SUMIFS('الحركات اليومية'!$G:$G,'الحركات اليومية'!$E:$E,"مرتجعات",'الحركات اليومية'!$C:$C,$B107) -> 0 | J107: 0 | M107: =SUMIFS('الحركات اليومية'!$G:$G,'الحركات اليومية'!$E:$E,"مبيعات",'الحركات اليومية'!$C:$C,$B107) -> 0 | N107: 0 | O107: 0 | P107: 0
A108: 109 | F108: 0 | G108: =SUMIFS('الحركات اليومية'!$G:$G,'الحركات اليومية'!$E:$E,"مشتريات",'الحركات اليومية'!$C:$C,$B108) -> 0 | H108: 0 | I108: =SUMIFS('الحركات اليومية'!$G:$G,'الحركات اليومية'!$E:$E,"مرتجعات",'الحركات اليومية'!$C:$C,$B108) -> 0 | J108: 0 | M108: =SUMIFS('الحركات اليومية'!$G:$G,'الحركات اليومية'!$E:$E,"مبيعات",'الحركات اليومية'!$C:$C,$B108) -> 0 | N108: 0 | O108: 0 | P108: 0
A109: 110 | F109: 0 | G109: =SUMIFS('الحركات اليومية'!$G:$G,'الحركات اليومية'!$E:$E,"مشتريات",'الحركات اليومية'!$C:$C,$B109) -> 0 | H109: 0 | I109: =SUMIFS('الحركات اليومية'!$G:$G,'الحركات اليومية'!$E:$E,"مرتجعات",'الحركات اليومية'!$C:$C,$B109) -> 0 | J109: 0 | M109: =SUMIFS('الحركات اليومية'!$G:$G,'الحركات اليومية'!$E:$E,"مبيعات",'الحركات اليومية'!$C:$C,$B109) -> 0 | N109: 0 | O109: 0 | P109: 0
A110: 111 | F110: 0 | G110: =SUMIFS('الحركات اليومية'!$G:$G,'الحركات اليومية'!$E:$E,"مشتريات",'الحركات اليومية'!$C:$C,$B110) -> 0 | H110: 0 | I110: =SUMIFS('الحركات اليومية'!$G:$G,'الحركات اليومية'!$E:$E,"مرتجعات",'الحركات اليومية'!$C:$C,$B110) -> 0 | J110: 0 | M110: =SUMIFS('الحركات اليومية'!$G:$G,'الحركات اليومية'!$E:$E,"مبيعات",'الحركات اليومية'!$C:$C,$B110) -> 0 | N110: 0 | O110: 0 | P110: 0
A111: 112 | F111: 0 | G111: =SUMIFS('الحركات اليومية'!$G:$G,'الحركات اليومية'!$E:$E,"مشتريات",'الحركات اليومية'!$C:$C,$B111) -> 0 | H111: 0 | I111: =SUMIFS('الحركات اليومية'!$G:$G,'الحركات اليومية'!$E:$E,"مرتجعات",'الحركات اليومية'!$C:$C,$B111) -> 0 | J111: 0 | M111: =SUMIFS('الحركات اليومية'!$G:$G,'الحركات اليومية'!$E:$E,"مبيعات",'الحركات اليومية'!$C:$C,$B111) -> 0 | N111: 0 | O111: 0 | P111: 0
A112: 113 | F112: 0 | G112: =SUMIFS('الحركات اليومية'!$G:$G,'الحركات اليومية'!$E:$E,"مشتريات",'الحركات اليومية'!$C:$C,$B112) -> 0 | H112: 0 | I112: =SUMIFS('الحركات اليومية'!$G:$G,'الحركات اليومية'!$E:$E,"مرتجعات",'الحركات اليومية'!$C:$C,$B112) -> 0 | J112: 0 | M112: =SUMIFS('الحركات اليومية'!$G:$G,'الحركات اليومية'!$E:$E,"مبيعات",'الحركات اليومية'!$C:$C,$B112) -> 0 | N112: 0 | O112: 0 | P112: 0
A113: 114 | F113: 0 | G113: =SUMIFS('الحركات اليومية'!$G:$G,'الحركات اليومية'!$E:$E,"مشتريات",'الحركات اليومية'!$C:$C,$B113) -> 0 | H113: 0 | I113: =SUMIFS('الحركات اليومية'!$G:$G,'الحركات اليومية'!$E:$E,"مرتجعات",'الحركات اليومية'!$C:$C,$B113) -> 0 | J113: 0 | M113: =SUMIFS('الحركات اليومية'!$G:$G,'الحركات اليومية'!$E:$E,"مبيعات",'الحركات اليومية'!$C:$C,$B113) -> 0 | N113: 0 | O113: 0 | P113: 0
A114: 115 | F114: 0 | G114: =SUMIFS('الحركات اليومية'!$G:$G,'الحركات اليومية'!$E:$E,"مشتريات",'الحركات اليومية'!$C:$C,$B114) -> 0 | H114: 0 | I114: =SUMIFS('الحركات اليومية'!$G:$G,'الحركات اليومية'!$E:$E,"مرتجعات",'الحركات اليومية'!$C:$C,$B114) -> 0 | J114: 0 | M114: =SUMIFS('الحركات اليومية'!$G:$G,'الحركات اليومية'!$E:$E,"مبيعات",'الحركات اليومية'!$C:$C,$B114) -> 0 | N114: 0 | O114: 0 | P114: 0
A115: 116 | F115: 0 | G115: =SUMIFS('الحركات اليومية'!$G:$G,'الحركات اليومية'!$E:$E,"مشتريات",'الحركات اليومية'!$C:$C,$B115) -> 0 | H115: 0 | I115: =SUMIFS('الحركات اليومية'!$G:$G,'الحركات اليومية'!$E:$E,"مرتجعات",'الحركات اليومية'!$C:$C,$B115) -> 0 | J115: 0 | M115: =SUMIFS('الحركات اليومية'!$G:$G,'الحركات اليومية'!$E:$E,"مبيعات",'الحركات اليومية'!$C:$C,$B115) -> 0 | N115: 0 | O115: 0 | P115: 0
A116: 117 | F116: 0 | G116: =SUMIFS('الحركات اليومية'!$G:$G,'الحركات اليومية'!$E:$E,"مشتريات",'الحركات اليومية'!$C:$C,$B116) -> 0 | H116: 0 | I116: =SUMIFS('الحركات اليومية'!$G:$G,'الحركات اليومية'!$E:$E,"مرتجعات",'الحركات اليومية'!$C:$C,$B116) -> 0 | J116: 0 | M116: =SUMIFS('الحركات اليومية'!$G:$G,'الحركات اليومية'!$E:$E,"مبيعات",'الحركات اليومية'!$C:$C,$B116) -> 0 | N116: 0 | O116: 0 | P116: 0
A117: 118 | F117: 0 | G117: =SUMIFS('الحركات اليومية'!$G:$G,'الحركات اليومية'!$E:$E,"مشتريات",'الحركات اليومية'!$C:$C,$B117) -> 0 | H117: 0 | I117: =SUMIFS('الحركات اليومية'!$G:$G,'الحركات اليومية'!$E:$E,"مرتجعات",'الحركات اليومية'!$C:$C,$B117) -> 0 | J117: 0 | M117: =SUMIFS('الحركات اليومية'!$G:$G,'الحركات اليومية'!$E:$E,"مبيعات",'الحركات اليومية'!$C:$C,$B117) -> 0 | N117: 0 | O117: 0 | P117: 0
A118: 119 | F118: 0 | G118: =SUMIFS('الحركات اليومية'!$G:$G,'الحركات اليومية'!$E:$E,"مشتريات",'الحركات اليومية'!$C:$C,$B118) -> 0 | H118: 0 | I118: =SUMIFS('الحركات اليومية'!$G:$G,'الحركات اليومية'!$E:$E,"مرتجعات",'الحركات اليومية'!$C:$C,$B118) -> 0 | J118: 0 | M118: =SUMIFS('الحركات اليومية'!$G:$G,'الحركات اليومية'!$E:$E,"مبيعات",'الحركات اليومية'!$C:$C,$B118) -> 0 | N118: 0 | O118: 0 | P118: 0
A119: 120 | F119: 0 | G119: =SUMIFS('الحركات اليومية'!$G:$G,'الحركات اليومية'!$E:$E,"مشتريات",'الحركات اليومية'!$C:$C,$B119) -> 0 | H119: 0 | I119: =SUMIFS('الحركات اليومية'!$G:$G,'الحركات اليومية'!$E:$E,"مرتجعات",'الحركات اليومية'!$C:$C,$B119) -> 0 | J119: 0 | M119: =SUMIFS('الحركات اليومية'!$G:$G,'الحركات اليومية'!$E:$E,"مبيعات",'الحركات اليومية'!$C:$C,$B119) -> 0 | N119: 0 | O119: 0 | P119: 0
A120: 121 | F120: 0 | G120: =SUMIFS('الحركات اليومية'!$G:$G,'الحركات اليومية'!$E:$E,"مشتريات",'الحركات اليومية'!$C:$C,$B120) -> 0 | H120: 0 | I120: =SUMIFS('الحركات اليومية'!$G:$G,'الحركات اليومية'!$E:$E,"مرتجعات",'الحركات اليومية'!$C:$C,$B120) -> 0 | J120: 0 | M120: =SUMIFS('الحركات اليومية'!$G:$G,'الحركات اليومية'!$E:$E,"مبيعات",'الحركات اليومية'!$C:$C,$B120) -> 0 | N120: 0 | O120: 0 | P120: 0
A121: 122 | F121: 0 | G121: =SUMIFS('الحركات اليومية'!$G:$G,'الحركات اليومية'!$E:$E,"مشتريات",'الحركات اليومية'!$C:$C,$B121) -> 0 | H121: 0 | I121: =SUMIFS('الحركات اليومية'!$G:$G,'الحركات اليومية'!$E:$E,"مرتجعات",'الحركات اليومية'!$C:$C,$B121) -> 0 | J121: 0 | M121: =SUMIFS('الحركات اليومية'!$G:$G,'الحركات اليومية'!$E:$E,"مبيعات",'الحركات اليومية'!$C:$C,$B121) -> 0 | N121: 0 | O121: 0 | P121: 0
A122: 123 | F122: 0 | G122: =SUMIFS('الحركات اليومية'!$G:$G,'الحركات اليومية'!$E:$E,"مشتريات",'الحركات اليومية'!$C:$C,$B122) -> 0 | H122: 0 | I122: =SUMIFS('الحركات اليومية'!$G:$G,'الحركات اليومية'!$E:$E,"مرتجعات",'الحركات اليومية'!$C:$C,$B122) -> 0 | J122: 0 | M122: =SUMIFS('الحركات اليومية'!$G:$G,'الحركات اليومية'!$E:$E,"مبيعات",'الحركات اليومية'!$C:$C,$B122) -> 0 | N122: 0 | O122: 0 | P122: 0
A123: 124 | F123: 0 | G123: =SUMIFS('الحركات اليومية'!$G:$G,'الحركات اليومية'!$E:$E,"مشتريات",'الحركات اليومية'!$C:$C,$B123) -> 0 | H123: 0 | I123: =SUMIFS('الحركات اليومية'!$G:$G,'الحركات اليومية'!$E:$E,"مرتجعات",'الحركات اليومية'!$C:$C,$B123) -> 0 | J123: 0 | M123: =SUMIFS('الحركات اليومية'!$G:$G,'الحركات اليومية'!$E:$E,"مبيعات",'الحركات اليومية'!$C:$C,$B123) -> 0 | N123: 0 | O123: 0 | P123: 0
A124: 125 | F124: 0 | G124: =SUMIFS('الحركات اليومية'!$G:$G,'الحركات اليومية'!$E:$E,"مشتريات",'الحركات اليومية'!$C:$C,$B124) -> 0 | H124: 0 | I124: =SUMIFS('الحركات اليومية'!$G:$G,'الحركات اليومية'!$E:$E,"مرتجعات",'الحركات اليومية'!$C:$C,$B124) -> 0 | J124: 0 | M124: =SUMIFS('الحركات اليومية'!$G:$G,'الحركات اليومية'!$E:$E,"مبيعات",'الحركات اليومية'!$C:$C,$B124) -> 0 | N124: 0 | O124: 0 | P124: 0
A125: 126 | F125: 0 | G125: =SUMIFS('الحركات اليومية'!$G:$G,'الحركات اليومية'!$E:$E,"مشتريات",'الحركات اليومية'!$C:$C,$B125) -> 0 | H125: 0 | I125: =SUMIFS('الحركات اليومية'!$G:$G,'الحركات اليومية'!$E:$E,"مرتجعات",'الحركات اليومية'!$C:$C,$B125) -> 0 | J125: 0 | M125: =SUMIFS('الحركات اليومية'!$G:$G,'الحركات اليومية'!$E:$E,"مبيعات",'الحركات اليومية'!$C:$C,$B125) -> 0 | N125: 0 | O125: 0 | P125: 0
A126: 127 | F126: 0 | G126: =SUMIFS('الحركات اليومية'!$G:$G,'الحركات اليومية'!$E:$E,"مشتريات",'الحركات اليومية'!$C:$C,$B126) -> 0 | H126: 0 | I126: =SUMIFS('الحركات اليومية'!$G:$G,'الحركات اليومية'!$E:$E,"مرتجعات",'الحركات اليومية'!$C:$C,$B126) -> 0 | J126: 0 | M126: =SUMIFS('الحركات اليومية'!$G:$G,'الحركات اليومية'!$E:$E,"مبيعات",'الحركات اليومية'!$C:$C,$B126) -> 0 | N126: 0 | O126: 0 | P126: 0
A127: 128 | F127: 0 | G127: =SUMIFS('الحركات اليومية'!$G:$G,'الحركات اليومية'!$E:$E,"مشتريات",'الحركات اليومية'!$C:$C,$B127) -> 0 | H127: 0 | I127: =SUMIFS('الحركات اليومية'!$G:$G,'الحركات اليومية'!$E:$E,"مرتجعات",'الحركات اليومية'!$C:$C,$B127) -> 0 | J127: 0 | M127: =SUMIFS('الحركات اليومية'!$G:$G,'الحركات اليومية'!$E:$E,"مبيعات",'الحركات اليومية'!$C:$C,$B127) -> 0 | N127: 0 | O127: 0 | P127: 0
A128: 129 | F128: 0 | G128: =SUMIFS('الحركات اليومية'!$G:$G,'الحركات اليومية'!$E:$E,"مشتريات",'الحركات اليومية'!$C:$C,$B128) -> 0 | H128: 0 | I128: =SUMIFS('الحركات اليومية'!$G:$G,'الحركات اليومية'!$E:$E,"مرتجعات",'الحركات اليومية'!$C:$C,$B128) -> 0 | J128: 0 | M128: =SUMIFS('الحركات اليومية'!$G:$G,'الحركات اليومية'!$E:$E,"مبيعات",'الحركات اليومية'!$C:$C,$B128) -> 0 | N128: 0 | O128: 0 | P128: 0
A129: 130 | F129: 0 | G129: =SUMIFS('الحركات اليومية'!$G:$G,'الحركات اليومية'!$E:$E,"مشتريات",'الحركات اليومية'!$C:$C,$B129) -> 0 | H129: 0 | I129: =SUMIFS('الحركات اليومية'!$G:$G,'الحركات اليومية'!$E:$E,"مرتجعات",'الحركات اليومية'!$C:$C,$B129) -> 0 | J129: 0 | M129: =SUMIFS('الحركات اليومية'!$G:$G,'الحركات اليومية'!$E:$E,"مبيعات",'الحركات اليومية'!$C:$C,$B129) -> 0 | N129: 0 | O129: 0 | P129: 0
A130: 131 | F130: 0 | G130: =SUMIFS('الحركات اليومية'!$G:$G,'الحركات اليومية'!$E:$E,"مشتريات",'الحركات اليومية'!$C:$C,$B130) -> 0 | H130: 0 | I130: =SUMIFS('الحركات اليومية'!$G:$G,'الحركات اليومية'!$E:$E,"مرتجعات",'الحركات اليومية'!$C:$C,$B130) -> 0 | J130: 0 | M130: =SUMIFS('الحركات اليومية'!$G:$G,'الحركات اليومية'!$E:$E,"مبيعات",'الحركات اليومية'!$C:$C,$B130) -> 0 | N130: 0 | O130: 0 | P130: 0
A131: 132 | F131: 0 | G131: =SUMIFS('الحركات اليومية'!$G:$G,'الحركات اليومية'!$E:$E,"مشتريات",'الحركات اليومية'!$C:$C,$B131) -> 0 | H131: =G131*C131 -> 0 | I131: =SUMIFS('الحركات اليومية'!$G:$G,'الحركات اليومية'!$E:$E,"مرتجعات",'الحركات اليومية'!$C:$C,$B131) -> 0 | J131: =IFERROR(I131*C131,"") -> 0 | M131: =SUMIFS('الحركات اليومية'!$G:$G,'الحركات اليومية'!$E:$E,"مبيعات",'الحركات اليومية'!$C:$C,$B131) -> 0 | N131: 0 | O131: 0 | P131: 0
A132: 133 | F132: =E132*C132 -> 0 | G132: =SUMIFS('الحركات اليومية'!$G:$G,'الحركات اليومية'!$E:$E,"مشتريات",'الحركات اليومية'!$C:$C,$B132) -> 0 | H132: 0 | I132: =SUMIFS('الحركات اليومية'!$G:$G,'الحركات اليومية'!$E:$E,"مرتجعات",'الحركات اليومية'!$C:$C,$B132) -> 0 | J132: 0 | M132: =SUMIFS('الحركات اليومية'!$G:$G,'الحركات اليومية'!$E:$E,"مبيعات",'الحركات اليومية'!$C:$C,$B132) -> 0 | N132: =M132*D132 -> 0 | O132: 0 | P132: 0
A133: 134 | F133: 0 | G133: =SUMIFS('الحركات اليومية'!$G:$G,'الحركات اليومية'!$E:$E,"مشتريات",'الحركات اليومية'!$C:$C,$B133) -> 0 | H133: 0 | I133: =SUMIFS('الحركات اليومية'!$G:$G,'الحركات اليومية'!$E:$E,"مرتجعات",'الحركات اليومية'!$C:$C,$B133) -> 0 | J133: 0 | M133: =SUMIFS('الحركات اليومية'!$G:$G,'الحركات اليومية'!$E:$E,"مبيعات",'الحركات اليومية'!$C:$C,$B133) -> 0 | N133: 0 | O133: =(E133+G133+I133)-M133 -> 0 | P133: =(F133+H133+J133)-N133 -> 0
A134: 135 | F134: 0 | G134: =SUMIFS('الحركات اليومية'!$G:$G,'الحركات اليومية'!$E:$E,"مشتريات",'الحركات اليومية'!$C:$C,$B134) -> 0 | H134: 0 | I134: =SUMIFS('الحركات اليومية'!$G:$G,'الحركات اليومية'!$E:$E,"مرتجعات",'الحركات اليومية'!$C:$C,$B134) -> 0 | J134: 0 | M134: =SUMIFS('الحركات اليومية'!$G:$G,'الحركات اليومية'!$E:$E,"مبيعات",'الحركات اليومية'!$C:$C,$B134) -> 0 | N134: 0 | O134: 0 | P134: 0
A135: 136 | F135: 0 | G135: =SUMIFS('الحركات اليومية'!$G:$G,'الحركات اليومية'!$E:$E,"مشتريات",'الحركات اليومية'!$C:$C,$B135) -> 0 | H135: 0 | I135: =SUMIFS('الحركات اليومية'!$G:$G,'الحركات اليومية'!$E:$E,"مرتجعات",'الحركات اليومية'!$C:$C,$B135) -> 0 | J135: 0 | M135: =SUMIFS('الحركات اليومية'!$G:$G,'الحركات اليومية'!$E:$E,"مبيعات",'الحركات اليومية'!$C:$C,$B135) -> 0 | N135: 0 | O135: 0 | P135: 0
A136: 137 | F136: 0 | G136: =SUMIFS('الحركات اليومية'!$G:$G,'الحركات اليومية'!$E:$E,"مشتريات",'الحركات اليومية'!$C:$C,$B136) -> 0 | H136: 0 | I136: =SUMIFS('الحركات اليومية'!$G:$G,'الحركات اليومية'!$E:$E,"مرتجعات",'الحركات اليومية'!$C:$C,$B136) -> 0 | J136: 0 | M136: =SUMIFS('الحركات اليومية'!$G:$G,'الحركات اليومية'!$E:$E,"مبيعات",'الحركات اليومية'!$C:$C,$B136) -> 0 | N136: 0 | O136: 0 | P136: 0
A137: 138 | F137: 0 | G137: =SUMIFS('الحركات اليومية'!$G:$G,'الحركات اليومية'!$E:$E,"مشتريات",'الحركات اليومية'!$C:$C,$B137) -> 0 | H137: 0 | I137: =SUMIFS('الحركات اليومية'!$G:$G,'الحركات اليومية'!$E:$E,"مرتجعات",'الحركات اليومية'!$C:$C,$B137) -> 0 | J137: 0 | M137: =SUMIFS('الحركات اليومية'!$G:$G,'الحركات اليومية'!$E:$E,"مبيعات",'الحركات اليومية'!$C:$C,$B137) -> 0 | N137: 0 | O137: 0 | P137: 0
A138: 139 | F138: 0 | G138: =SUMIFS('الحركات اليومية'!$G:$G,'الحركات اليومية'!$E:$E,"مشتريات",'الحركات اليومية'!$C:$C,$B138) -> 0 | H138: 0 | I138: =SUMIFS('الحركات اليومية'!$G:$G,'الحركات اليومية'!$E:$E,"مرتجعات",'الحركات اليومية'!$C:$C,$B138) -> 0 | J138: 0 | M138: =SUMIFS('الحركات اليومية'!$G:$G,'الحركات اليومية'!$E:$E,"مبيعات",'الحركات اليومية'!$C:$C,$B138) -> 0 | N138: 0 | O138: 0 | P138: 0
A139: 140 | F139: 0 | G139: =SUMIFS('الحركات اليومية'!$G:$G,'الحركات اليومية'!$E:$E,"مشتريات",'الحركات اليومية'!$C:$C,$B139) -> 0 | H139: 0 | I139: =SUMIFS('الحركات اليومية'!$G:$G,'الحركات اليومية'!$E:$E,"مرتجعات",'الحركات اليومية'!$C:$C,$B139) -> 0 | J139: 0 | M139: =SUMIFS('الحركات اليومية'!$G:$G,'الحركات اليومية'!$E:$E,"مبيعات",'الحركات اليومية'!$C:$C,$B139) -> 0 | N139: 0 | O139: 0 | P139: 0
A140: 141 | F140: 0 | G140: =SUMIFS('الحركات اليومية'!$G:$G,'الحركات اليومية'!$E:$E,"مشتريات",'الحركات اليومية'!$C:$C,$B140) -> 0 | H140: 0 | I140: =SUMIFS('الحركات اليومية'!$G:$G,'الحركات اليومية'!$E:$E,"مرتجعات",'الحركات اليومية'!$C:$C,$B140) -> 0 | J140: 0 | M140: =SUMIFS('الحركات اليومية'!$G:$G,'الحركات اليومية'!$E:$E,"مبيعات",'الحركات اليومية'!$C:$C,$B140) -> 0 | N140: 0 | O140: 0 | P140: 0
A141: 142 | F141: 0 | G141: =SUMIFS('الحركات اليومية'!$G:$G,'الحركات اليومية'!$E:$E,"مشتريات",'الحركات اليومية'!$C:$C,$B141) -> 0 | H141: 0 | I141: =SUMIFS('الحركات اليومية'!$G:$G,'الحركات اليومية'!$E:$E,"مرتجعات",'الحركات اليومية'!$C:$C,$B141) -> 0 | J141: 0 | M141: =SUMIFS('الحركات اليومية'!$G:$G,'الحركات اليومية'!$E:$E,"مبيعات",'الحركات اليومية'!$C:$C,$B141) -> 0 | N141: 0 | O141: 0 | P141: 0
A142: 143 | F142: 0 | G142: =SUMIFS('الحركات اليومية'!$G:$G,'الحركات اليومية'!$E:$E,"مشتريات",'الحركات اليومية'!$C:$C,$B142) -> 0 | H142: 0 | I142: =SUMIFS('الحركات اليومية'!$G:$G,'الحركات اليومية'!$E:$E,"مرتجعات",'الحركات اليومية'!$C:$C,$B142) -> 0 | J142: 0 | M142: =SUMIFS('الحركات اليومية'!$G:$G,'الحركات اليومية'!$E:$E,"مبيعات",'الحركات اليومية'!$C:$C,$B142) -> 0 | N142: 0 | O142: 0 | P142: 0
A143: 144 | F143: 0 | G143: =SUMIFS('الحركات اليومية'!$G:$G,'الحركات اليومية'!$E:$E,"مشتريات",'الحركات اليومية'!$C:$C,$B143) -> 0 | H143: 0 | I143: =SUMIFS('الحركات اليومية'!$G:$G,'الحركات اليومية'!$E:$E,"مرتجعات",'الحركات اليومية'!$C:$C,$B143) -> 0 | J143: 0 | M143: =SUMIFS('الحركات اليومية'!$G:$G,'الحركات اليومية'!$E:$E,"مبيعات",'الحركات اليومية'!$C:$C,$B143) -> 0 | N143: 0 | O143: 0 | P143: 0
A144: 145 | F144: 0 | G144: =SUMIFS('الحركات اليومية'!$G:$G,'الحركات اليومية'!$E:$E,"مشتريات",'الحركات اليومية'!$C:$C,$B144) -> 0 | H144: 0 | I144: =SUMIFS('الحركات اليومية'!$G:$G,'الحركات اليومية'!$E:$E,"مرتجعات",'الحركات اليومية'!$C:$C,$B144) -> 0 | J144: 0 | M144: =SUMIFS('الحركات اليومية'!$G:$G,'الحركات اليومية'!$E:$E,"مبيعات",'الحركات اليومية'!$C:$C,$B144) -> 0 | N144: 0 | O144: 0 | P144: 0
A145: 146 | F145: 0 | G145: =SUMIFS('الحركات اليومية'!$G:$G,'الحركات اليومية'!$E:$E,"مشتريات",'الحركات اليومية'!$C:$C,$B145) -> 0 | H145: 0 | I145: =SUMIFS('الحركات اليومية'!$G:$G,'الحركات اليومية'!$E:$E,"مرتجعات",'الحركات اليومية'!$C:$C,$B145) -> 0 | J145: 0 | M145: =SUMIFS('الحركات اليومية'!$G:$G,'الحركات اليومية'!$E:$E,"مبيعات",'الحركات اليومية'!$C:$C,$B145) -> 0 | N145: 0 | O145: 0 | P145: 0
A146: 147 | F146: 0 | G146: =SUMIFS('الحركات اليومية'!$G:$G,'الحركات اليومية'!$E:$E,"مشتريات",'الحركات اليومية'!$C:$C,$B146) -> 0 | H146: 0 | I146: =SUMIFS('الحركات اليومية'!$G:$G,'الحركات اليومية'!$E:$E,"مرتجعات",'الحركات اليومية'!$C:$C,$B146) -> 0 | J146: 0 | M146: =SUMIFS('الحركات اليومية'!$G:$G,'الحركات اليومية'!$E:$E,"مبيعات",'الحركات اليومية'!$C:$C,$B146) -> 0 | N146: 0 | O146: 0 | P146: 0
A147: 148 | F147: 0 | G147: =SUMIFS('الحركات اليومية'!$G:$G,'الحركات اليومية'!$E:$E,"مشتريات",'الحركات اليومية'!$C:$C,$B147) -> 0 | H147: 0 | I147: =SUMIFS('الحركات اليومية'!$G:$G,'الحركات اليومية'!$E:$E,"مرتجعات",'الحركات اليومية'!$C:$C,$B147) -> 0 | J147: 0 | M147: =SUMIFS('الحركات اليومية'!$G:$G,'الحركات اليومية'!$E:$E,"مبيعات",'الحركات اليومية'!$C:$C,$B147) -> 0 | N147: 0 | O147: 0 | P147: 0
A148: 149 | F148: 0 | G148: =SUMIFS('الحركات اليومية'!$G:$G,'الحركات اليومية'!$E:$E,"مشتريات",'الحركات اليومية'!$C:$C,$B148) -> 0 | H148: 0 | I148: =SUMIFS('الحركات اليومية'!$G:$G,'الحركات اليومية'!$E:$E,"مرتجعات",'الحركات اليومية'!$C:$C,$B148) -> 0 | J148: 0 | M148: =SUMIFS('الحركات اليومية'!$G:$G,'الحركات اليومية'!$E:$E,"مبيعات",'الحركات اليومية'!$C:$C,$B148) -> 0 | N148: 0 | O148: 0 | P148: 0
A149: 150 | F149: 0 | G149: =SUMIFS('الحركات اليومية'!$G:$G,'الحركات اليومية'!$E:$E,"مشتريات",'الحركات اليومية'!$C:$C,$B149) -> 0 | H149: 0 | I149: =SUMIFS('الحركات اليومية'!$G:$G,'الحركات اليومية'!$E:$E,"مرتجعات",'الحركات اليومية'!$C:$C,$B149) -> 0 | J149: 0 | M149: =SUMIFS('الحركات اليومية'!$G:$G,'الحركات اليومية'!$E:$E,"مبيعات",'الحركات اليومية'!$C:$C,$B149) -> 0 | N149: 0 | O149: 0 | P149: 0
A150: 151 | F150: 0 | G150: =SUMIFS('الحركات اليومية'!$G:$G,'الحركات اليومية'!$E:$E,"مشتريات",'الحركات اليومية'!$C:$C,$B150) -> 0 | H150: 0 | I150: =SUMIFS('الحركات اليومية'!$G:$G,'الحركات اليومية'!$E:$E,"مرتجعات",'الحركات اليومية'!$C:$C,$B150) -> 0 | J150: 0 | M150: =SUMIFS('الحركات اليومية'!$G:$G,'الحركات اليومية'!$E:$E,"مبيعات",'الحركات اليومية'!$C:$C,$B150) -> 0 | N150: 0 | O150: 0 | P150: 0
A151: 152 | F151: 0 | G151: =SUMIFS('الحركات اليومية'!$G:$G,'الحركات اليومية'!$E:$E,"مشتريات",'الحركات اليومية'!$C:$C,$B151) -> 0 | H151: 0 | I151: =SUMIFS('الحركات اليومية'!$G:$G,'الحركات اليومية'!$E:$E,"مرتجعات",'الحركات اليومية'!$C:$C,$B151) -> 0 | J151: 0 | M151: =SUMIFS('الحركات اليومية'!$G:$G,'الحركات اليومية'!$E:$E,"مبيعات",'الحركات اليومية'!$C:$C,$B151) -> 0 | N151: 0 | O151: 0 | P151: 0
A152: 153 | F152: 0 | G152: =SUMIFS('الحركات اليومية'!$G:$G,'الحركات اليومية'!$E:$E,"مشتريات",'الحركات اليومية'!$C:$C,$B152) -> 0 | H152: 0 | I152: =SUMIFS('الحركات اليومية'!$G:$G,'الحركات اليومية'!$E:$E,"مرتجعات",'الحركات اليومية'!$C:$C,$B152) -> 0 | J152: 0 | M152: =SUMIFS('الحركات اليومية'!$G:$G,'الحركات اليومية'!$E:$E,"مبيعات",'الحركات اليومية'!$C:$C,$B152) -> 0 | N152: 0 | O152: 0 | P152: 0
A153: 154 | F153: 0 | G153: =SUMIFS('الحركات اليومية'!$G:$G,'الحركات اليومية'!$E:$E,"مشتريات",'الحركات اليومية'!$C:$C,$B153) -> 0 | H153: 0 | I153: =SUMIFS('الحركات اليومية'!$G:$G,'الحركات اليومية'!$E:$E,"مرتجعات",'الحركات اليومية'!$C:$C,$B153) -> 0 | J153: 0 | M153: =SUMIFS('الحركات اليومية'!$G:$G,'الحركات اليومية'!$E:$E,"مبيعات",'الحركات اليومية'!$C:$C,$B153) -> 0 | N153: 0 | O153: 0 | P153: 0
A154: 155 | F154: 0 | G154: =SUMIFS('الحركات اليومية'!$G:$G,'الحركات اليومية'!$E:$E,"مشتريات",'الحركات اليومية'!$C:$C,$B154) -> 0 | H154: 0 | I154: =SUMIFS('الحركات اليومية'!$G:$G,'الحركات اليومية'!$E:$E,"مرتجعات",'الحركات اليومية'!$C:$C,$B154) -> 0 | J154: 0 | M154: =SUMIFS('الحركات اليومية'!$G:$G,'الحركات اليومية'!$E:$E,"مبيعات",'الحركات اليومية'!$C:$C,$B154) -> 0 | N154: 0 | O154: 0 | P154: 0
A155: 156 | F155: 0 | G155: =SUMIFS('الحركات اليومية'!$G:$G,'الحركات اليومية'!$E:$E,"مشتريات",'الحركات اليومية'!$C:$C,$B155) -> 0 | H155: 0 | I155: =SUMIFS('الحركات اليومية'!$G:$G,'الحركات اليومية'!$E:$E,"مرتجعات",'الحركات اليومية'!$C:$C,$B155) -> 0 | J155: 0 | M155: =SUMIFS('الحركات اليومية'!$G:$G,'الحركات اليومية'!$E:$E,"مبيعات",'الحركات اليومية'!$C:$C,$B155) -> 0 | N155: 0 | O155: 0 | P155: 0
A156: 157 | F156: 0 | G156: =SUMIFS('الحركات اليومية'!$G:$G,'الحركات اليومية'!$E:$E,"مشتريات",'الحركات اليومية'!$C:$C,$B156) -> 0 | H156: 0 | I156: =SUMIFS('الحركات اليومية'!$G:$G,'الحركات اليومية'!$E:$E,"مرتجعات",'الحركات اليومية'!$C:$C,$B156) -> 0 | J156: 0 | M156: =SUMIFS('الحركات اليومية'!$G:$G,'الحركات اليومية'!$E:$E,"مبيعات",'الحركات اليومية'!$C:$C,$B156) -> 0 | N156: 0 | O156: 0 | P156: 0
A157: 158 | F157: 0 | G157: =SUMIFS('الحركات اليومية'!$G:$G,'الحركات اليومية'!$E:$E,"مشتريات",'الحركات اليومية'!$C:$C,$B157) -> 0 | H157: 0 | I157: =SUMIFS('الحركات اليومية'!$G:$G,'الحركات اليومية'!$E:$E,"مرتجعات",'الحركات اليومية'!$C:$C,$B157) -> 0 | J157: 0 | M157: =SUMIFS('الحركات اليومية'!$G:$G,'الحركات اليومية'!$E:$E,"مبيعات",'الحركات اليومية'!$C:$C,$B157) -> 0 | N157: 0 | O157: 0 | P157: 0
A158: 159 | F158: 0 | G158: =SUMIFS('الحركات اليومية'!$G:$G,'الحركات اليومية'!$E:$E,"مشتريات",'الحركات اليومية'!$C:$C,$B158) -> 0 | H158: 0 | I158: =SUMIFS('الحركات اليومية'!$G:$G,'الحركات اليومية'!$E:$E,"مرتجعات",'الحركات اليومية'!$C:$C,$B158) -> 0 | J158: 0 | M158: =SUMIFS('الحركات اليومية'!$G:$G,'الحركات اليومية'!$E:$E,"مبيعات",'الحركات اليومية'!$C:$C,$B158) -> 0 | N158: 0 | O158: 0 | P158: 0
A159: 160 | F159: 0 | G159: =SUMIFS('الحركات اليومية'!$G:$G,'الحركات اليومية'!$E:$E,"مشتريات",'الحركات اليومية'!$C:$C,$B159) -> 0 | H159: 0 | I159: =SUMIFS('الحركات اليومية'!$G:$G,'الحركات اليومية'!$E:$E,"مرتجعات",'الحركات اليومية'!$C:$C,$B159) -> 0 | J159: 0 | M159: =SUMIFS('الحركات اليومية'!$G:$G,'الحركات اليومية'!$E:$E,"مبيعات",'الحركات اليومية'!$C:$C,$B159) -> 0 | N159: 0 | O159: 0 | P159: 0
A160: 161 | F160: 0 | G160: =SUMIFS('الحركات اليومية'!$G:$G,'الحركات اليومية'!$E:$E,"مشتريات",'الحركات اليومية'!$C:$C,$B160) -> 0 | H160: 0 | I160: =SUMIFS('الحركات اليومية'!$G:$G,'الحركات اليومية'!$E:$E,"مرتجعات",'الحركات اليومية'!$C:$C,$B160) -> 0 | J160: 0 | M160: =SUMIFS('الحركات اليومية'!$G:$G,'الحركات اليومية'!$E:$E,"مبيعات",'الحركات اليومية'!$C:$C,$B160) -> 0 | N160: 0 | O160: 0 | P160: 0
A161: 162 | F161: 0 | G161: =SUMIFS('الحركات اليومية'!$G:$G,'الحركات اليومية'!$E:$E,"مشتريات",'الحركات اليومية'!$C:$C,$B161) -> 0 | H161: 0 | I161: =SUMIFS('الحركات اليومية'!$G:$G,'الحركات اليومية'!$E:$E,"مرتجعات",'الحركات اليومية'!$C:$C,$B161) -> 0 | J161: 0 | M161: =SUMIFS('الحركات اليومية'!$G:$G,'الحركات اليومية'!$E:$E,"مبيعات",'الحركات اليومية'!$C:$C,$B161) -> 0 | N161: 0 | O161: 0 | P161: 0
A162: 163 | F162: 0 | G162: =SUMIFS('الحركات اليومية'!$G:$G,'الحركات اليومية'!$E:$E,"مشتريات",'الحركات اليومية'!$C:$C,$B162) -> 0 | H162: 0 | I162: =SUMIFS('الحركات اليومية'!$G:$G,'الحركات اليومية'!$E:$E,"مرتجعات",'الحركات اليومية'!$C:$C,$B162) -> 0 | J162: 0 | M162: =SUMIFS('الحركات اليومية'!$G:$G,'الحركات اليومية'!$E:$E,"مبيعات",'الحركات اليومية'!$C:$C,$B162) -> 0 | N162: 0 | O162: 0 | P162: 0
A163: 164 | F163: 0 | G163: =SUMIFS('الحركات اليومية'!$G:$G,'الحركات اليومية'!$E:$E,"مشتريات",'الحركات اليومية'!$C:$C,$B163) -> 0 | H163: 0 | I163: =SUMIFS('الحركات اليومية'!$G:$G,'الحركات اليومية'!$E:$E,"مرتجعات",'الحركات اليومية'!$C:$C,$B163) -> 0 | J163: 0 | M163: =SUMIFS('الحركات اليومية'!$G:$G,'الحركات اليومية'!$E:$E,"مبيعات",'الحركات اليومية'!$C:$C,$B163) -> 0 | N163: 0 | O163: 0 | P163: 0
A164: 165 | F164: 0 | G164: =SUMIFS('الحركات اليومية'!$G:$G,'الحركات اليومية'!$E:$E,"مشتريات",'الحركات اليومية'!$C:$C,$B164) -> 0 | H164: 0 | I164: =SUMIFS('الحركات اليومية'!$G:$G,'الحركات اليومية'!$E:$E,"مرتجعات",'الحركات اليومية'!$C:$C,$B164) -> 0 | J164: 0 | M164: =SUMIFS('الحركات اليومية'!$G:$G,'الحركات اليومية'!$E:$E,"مبيعات",'الحركات اليومية'!$C:$C,$B164) -> 0 | N164: 0 | O164: 0 | P164: 0
A165: 166 | F165: 0 | G165: =SUMIFS('الحركات اليومية'!$G:$G,'الحركات اليومية'!$E:$E,"مشتريات",'الحركات اليومية'!$C:$C,$B165) -> 0 | H165: 0 | I165: =SUMIFS('الحركات اليومية'!$G:$G,'الحركات اليومية'!$E:$E,"مرتجعات",'الحركات اليومية'!$C:$C,$B165) -> 0 | J165: 0 | M165: =SUMIFS('الحركات اليومية'!$G:$G,'الحركات اليومية'!$E:$E,"مبيعات",'الحركات اليومية'!$C:$C,$B165) -> 0 | N165: 0 | O165: 0 | P165: 0
A166: 167 | F166: 0 | G166: =SUMIFS('الحركات اليومية'!$G:$G,'الحركات اليومية'!$E:$E,"مشتريات",'الحركات اليومية'!$C:$C,$B166) -> 0 | H166: 0 | I166: =SUMIFS('الحركات اليومية'!$G:$G,'الحركات اليومية'!$E:$E,"مرتجعات",'الحركات اليومية'!$C:$C,$B166) -> 0 | J166: 0 | M166: =SUMIFS('الحركات اليومية'!$G:$G,'الحركات اليومية'!$E:$E,"مبيعات",'الحركات اليومية'!$C:$C,$B166) -> 0 | N166: 0 | O166: 0 | P166: 0
A167: 168 | F167: 0 | G167: =SUMIFS('الحركات اليومية'!$G:$G,'الحركات اليومية'!$E:$E,"مشتريات",'الحركات اليومية'!$C:$C,$B167) -> 0 | H167: 0 | I167: =SUMIFS('الحركات اليومية'!$G:$G,'الحركات اليومية'!$E:$E,"مرتجعات",'الحركات اليومية'!$C:$C,$B167) -> 0 | J167: 0 | M167: =SUMIFS('الحركات اليومية'!$G:$G,'الحركات اليومية'!$E:$E,"مبيعات",'الحركات اليومية'!$C:$C,$B167) -> 0 | N167: 0 | O167: 0 | P167: 0
A168: 169 | F168: 0 | G168: =SUMIFS('الحركات اليومية'!$G:$G,'الحركات اليومية'!$E:$E,"مشتريات",'الحركات اليومية'!$C:$C,$B168) -> 0 | H168: 0 | I168: =SUMIFS('الحركات اليومية'!$G:$G,'الحركات اليومية'!$E:$E,"مرتجعات",'الحركات اليومية'!$C:$C,$B168) -> 0 | J168: 0 | M168: =SUMIFS('الحركات اليومية'!$G:$G,'الحركات اليومية'!$E:$E,"مبيعات",'الحركات اليومية'!$C:$C,$B168) -> 0 | N168: 0 | O168: 0 | P168: 0
A169: 170 | F169: 0 | G169: =SUMIFS('الحركات اليومية'!$G:$G,'الحركات اليومية'!$E:$E,"مشتريات",'الحركات اليومية'!$C:$C,$B169) -> 0 | H169: 0 | I169: =SUMIFS('الحركات اليومية'!$G:$G,'الحركات اليومية'!$E:$E,"مرتجعات",'الحركات اليومية'!$C:$C,$B169) -> 0 | J169: 0 | M169: =SUMIFS('الحركات اليومية'!$G:$G,'الحركات اليومية'!$E:$E,"مبيعات",'الحركات اليومية'!$C:$C,$B169) -> 0 | N169: 0 | O169: 0 | P169: 0
A170: 171 | F170: 0 | G170: =SUMIFS('الحركات اليومية'!$G:$G,'الحركات اليومية'!$E:$E,"مشتريات",'الحركات اليومية'!$C:$C,$B170) -> 0 | H170: 0 | I170: =SUMIFS('الحركات اليومية'!$G:$G,'الحركات اليومية'!$E:$E,"مرتجعات",'الحركات اليومية'!$C:$C,$B170) -> 0 | J170: 0 | M170: =SUMIFS('الحركات اليومية'!$G:$G,'الحركات اليومية'!$E:$E,"مبيعات",'الحركات اليومية'!$C:$C,$B170) -> 0 | N170: 0 | O170: 0 | P170: 0
A171: 172 | F171: 0 | G171: =SUMIFS('الحركات اليومية'!$G:$G,'الحركات اليومية'!$E:$E,"مشتريات",'الحركات اليومية'!$C:$C,$B171) -> 0 | H171: 0 | I171: =SUMIFS('الحركات اليومية'!$G:$G,'الحركات اليومية'!$E:$E,"مرتجعات",'الحركات اليومية'!$C:$C,$B171) -> 0 | J171: 0 | M171: =SUMIFS('الحركات اليومية'!$G:$G,'الحركات اليومية'!$E:$E,"مبيعات",'الحركات اليومية'!$C:$C,$B171) -> 0 | N171: 0 | O171: 0 | P171: 0
A172: 173 | F172: 0 | G172: =SUMIFS('الحركات اليومية'!$G:$G,'الحركات اليومية'!$E:$E,"مشتريات",'الحركات اليومية'!$C:$C,$B172) -> 0 | H172: 0 | I172: =SUMIFS('الحركات اليومية'!$G:$G,'الحركات اليومية'!$E:$E,"مرتجعات",'الحركات اليومية'!$C:$C,$B172) -> 0 | J172: 0 | M172: =SUMIFS('الحركات اليومية'!$G:$G,'الحركات اليومية'!$E:$E,"مبيعات",'الحركات اليومية'!$C:$C,$B172) -> 0 | N172: 0 | O172: 0 | P172: 0
A173: 174 | F173: 0 | G173: =SUMIFS('الحركات اليومية'!$G:$G,'الحركات اليومية'!$E:$E,"مشتريات",'الحركات اليومية'!$C:$C,$B173) -> 0 | H173: 0 | I173: =SUMIFS('الحركات اليومية'!$G:$G,'الحركات اليومية'!$E:$E,"مرتجعات",'الحركات اليومية'!$C:$C,$B173) -> 0 | J173: 0 | M173: =SUMIFS('الحركات اليومية'!$G:$G,'الحركات اليومية'!$E:$E,"مبيعات",'الحركات اليومية'!$C:$C,$B173) -> 0 | N173: 0 | O173: 0 | P173: 0
A174: 175 | F174: 0 | G174: =SUMIFS('الحركات اليومية'!$G:$G,'الحركات اليومية'!$E:$E,"مشتريات",'الحركات اليومية'!$C:$C,$B174) -> 0 | H174: 0 | I174: =SUMIFS('الحركات اليومية'!$G:$G,'الحركات اليومية'!$E:$E,"مرتجعات",'الحركات اليومية'!$C:$C,$B174) -> 0 | J174: 0 | M174: =SUMIFS('الحركات اليومية'!$G:$G,'الحركات اليومية'!$E:$E,"مبيعات",'الحركات اليومية'!$C:$C,$B174) -> 0 | N174: 0 | O174: 0 | P174: 0
A175: 176 | F175: 0 | G175: =SUMIFS('الحركات اليومية'!$G:$G,'الحركات اليومية'!$E:$E,"مشتريات",'الحركات اليومية'!$C:$C,$B175) -> 0 | H175: 0 | I175: =SUMIFS('الحركات اليومية'!$G:$G,'الحركات اليومية'!$E:$E,"مرتجعات",'الحركات اليومية'!$C:$C,$B175) -> 0 | J175: 0 | M175: =SUMIFS('الحركات اليومية'!$G:$G,'الحركات اليومية'!$E:$E,"مبيعات",'الحركات اليومية'!$C:$C,$B175) -> 0 | N175: 0 | O175: 0 | P175: 0
A176: 177 | F176: 0 | G176: =SUMIFS('الحركات اليومية'!$G:$G,'الحركات اليومية'!$E:$E,"مشتريات",'الحركات اليومية'!$C:$C,$B176) -> 0 | H176: 0 | I176: =SUMIFS('الحركات اليومية'!$G:$G,'الحركات اليومية'!$E:$E,"مرتجعات",'الحركات اليومية'!$C:$C,$B176) -> 0 | J176: 0 | M176: =SUMIFS('الحركات اليومية'!$G:$G,'الحركات اليومية'!$E:$E,"مبيعات",'الحركات اليومية'!$C:$C,$B176) -> 0 | N176: 0 | O176: 0 | P176: 0
A177: 178 | F177: 0 | G177: =SUMIFS('الحركات اليومية'!$G:$G,'الحركات اليومية'!$E:$E,"مشتريات",'الحركات اليومية'!$C:$C,$B177) -> 0 | H177: 0 | I177: =SUMIFS('الحركات اليومية'!$G:$G,'الحركات اليومية'!$E:$E,"مرتجعات",'الحركات اليومية'!$C:$C,$B177) -> 0 | J177: 0 | M177: =SUMIFS('الحركات اليومية'!$G:$G,'الحركات اليومية'!$E:$E,"مبيعات",'الحركات اليومية'!$C:$C,$B177) -> 0 | N177: 0 | O177: 0 | P177: 0
A178: 179 | F178: 0 | G178: =SUMIFS('الحركات اليومية'!$G:$G,'الحركات اليومية'!$E:$E,"مشتريات",'الحركات اليومية'!$C:$C,$B178) -> 0 | H178: 0 | I178: =SUMIFS('الحركات اليومية'!$G:$G,'الحركات اليومية'!$E:$E,"مرتجعات",'الحركات اليومية'!$C:$C,$B178) -> 0 | J178: 0 | M178: =SUMIFS('الحركات اليومية'!$G:$G,'الحركات اليومية'!$E:$E,"مبيعات",'الحركات اليومية'!$C:$C,$B178) -> 0 | N178: 0 | O178: 0 | P178: 0
A179: 180 | F179: 0 | G179: =SUMIFS('الحركات اليومية'!$G:$G,'الحركات اليومية'!$E:$E,"مشتريات",'الحركات اليومية'!$C:$C,$B179) -> 0 | H179: 0 | I179: =SUMIFS('الحركات اليومية'!$G:$G,'الحركات اليومية'!$E:$E,"مرتجعات",'الحركات اليومية'!$C:$C,$B179) -> 0 | J179: 0 | M179: =SUMIFS('الحركات اليومية'!$G:$G,'الحركات اليومية'!$E:$E,"مبيعات",'الحركات اليومية'!$C:$C,$B179) -> 0 | N179: 0 | O179: 0 | P179: 0
A180: 181 | F180: 0 | G180: =SUMIFS('الحركات اليومية'!$G:$G,'الحركات اليومية'!$E:$E,"مشتريات",'الحركات اليومية'!$C:$C,$B180) -> 0 | H180: 0 | I180: =SUMIFS('الحركات اليومية'!$G:$G,'الحركات اليومية'!$E:$E,"مرتجعات",'الحركات اليومية'!$C:$C,$B180) -> 0 | J180: 0 | M180: =SUMIFS('الحركات اليومية'!$G:$G,'الحركات اليومية'!$E:$E,"مبيعات",'الحركات اليومية'!$C:$C,$B180) -> 0 | N180: 0 | O180: 0 | P180: 0
A181: 182 | F181: 0 | G181: =SUMIFS('الحركات اليومية'!$G:$G,'الحركات اليومية'!$E:$E,"مشتريات",'الحركات اليومية'!$C:$C,$B181) -> 0 | H181: 0 | I181: =SUMIFS('الحركات اليومية'!$G:$G,'الحركات اليومية'!$E:$E,"مرتجعات",'الحركات اليومية'!$C:$C,$B181) -> 0 | J181: 0 | M181: =SUMIFS('الحركات اليومية'!$G:$G,'الحركات اليومية'!$E:$E,"مبيعات",'الحركات اليومية'!$C:$C,$B181) -> 0 | N181: 0 | O181: 0 | P181: 0
A182: 183 | F182: 0 | G182: =SUMIFS('الحركات اليومية'!$G:$G,'الحركات اليومية'!$E:$E,"مشتريات",'الحركات اليومية'!$C:$C,$B182) -> 0 | H182: 0 | I182: =SUMIFS('الحركات اليومية'!$G:$G,'الحركات اليومية'!$E:$E,"مرتجعات",'الحركات اليومية'!$C:$C,$B182) -> 0 | J182: 0 | M182: =SUMIFS('الحركات اليومية'!$G:$G,'الحركات اليومية'!$E:$E,"مبيعات",'الحركات اليومية'!$C:$C,$B182) -> 0 | N182: 0 | O182: 0 | P182: 0
A183: 184 | F183: 0 | G183: =SUMIFS('الحركات اليومية'!$G:$G,'الحركات اليومية'!$E:$E,"مشتريات",'الحركات اليومية'!$C:$C,$B183) -> 0 | H183: 0 | I183: =SUMIFS('الحركات اليومية'!$G:$G,'الحركات اليومية'!$E:$E,"مرتجعات",'الحركات اليومية'!$C:$C,$B183) -> 0 | J183: 0 | M183: =SUMIFS('الحركات اليومية'!$G:$G,'الحركات اليومية'!$E:$E,"مبيعات",'الحركات اليومية'!$C:$C,$B183) -> 0 | N183: 0 | O183: 0 | P183: 0
A184: 185 | F184: 0 | G184: =SUMIFS('الحركات اليومية'!$G:$G,'الحركات اليومية'!$E:$E,"مشتريات",'الحركات اليومية'!$C:$C,$B184) -> 0 | H184: 0 | I184: =SUMIFS('الحركات اليومية'!$G:$G,'الحركات اليومية'!$E:$E,"مرتجعات",'الحركات اليومية'!$C:$C,$B184) -> 0 | J184: 0 | M184: =SUMIFS('الحركات اليومية'!$G:$G,'الحركات اليومية'!$E:$E,"مبيعات",'الحركات اليومية'!$C:$C,$B184) -> 0 | N184: 0 | O184: 0 | P184: 0
A185: 186 | F185: 0 | G185: =SUMIFS('الحركات اليومية'!$G:$G,'الحركات اليومية'!$E:$E,"مشتريات",'الحركات اليومية'!$C:$C,$B185) -> 0 | H185: 0 | I185: =SUMIFS('الحركات اليومية'!$G:$G,'الحركات اليومية'!$E:$E,"مرتجعات",'الحركات اليومية'!$C:$C,$B185) -> 0 | J185: 0 | M185: =SUMIFS('الحركات اليومية'!$G:$G,'الحركات اليومية'!$E:$E,"مبيعات",'الحركات اليومية'!$C:$C,$B185) -> 0 | N185: 0 | O185: 0 | P185: 0
A186: 187 | F186: 0 | G186: =SUMIFS('الحركات اليومية'!$G:$G,'الحركات اليومية'!$E:$E,"مشتريات",'الحركات اليومية'!$C:$C,$B186) -> 0 | H186: 0 | I186: =SUMIFS('الحركات اليومية'!$G:$G,'الحركات اليومية'!$E:$E,"مرتجعات",'الحركات اليومية'!$C:$C,$B186) -> 0 | J186: 0 | M186: =SUMIFS('الحركات اليومية'!$G:$G,'الحركات اليومية'!$E:$E,"مبيعات",'الحركات اليومية'!$C:$C,$B186) -> 0 | N186: 0 | O186: 0 | P186: 0
A187: 188 | F187: 0 | G187: =SUMIFS('الحركات اليومية'!$G:$G,'الحركات اليومية'!$E:$E,"مشتريات",'الحركات اليومية'!$C:$C,$B187) -> 0 | H187: 0 | I187: =SUMIFS('الحركات اليومية'!$G:$G,'الحركات اليومية'!$E:$E,"مرتجعات",'الحركات اليومية'!$C:$C,$B187) -> 0 | J187: 0 | M187: =SUMIFS('الحركات اليومية'!$G:$G,'الحركات اليومية'!$E:$E,"مبيعات",'الحركات اليومية'!$C:$C,$B187) -> 0 | N187: 0 | O187: 0 | P187: 0
A188: 189 | F188: 0 | G188: =SUMIFS('الحركات اليومية'!$G:$G,'الحركات اليومية'!$E:$E,"مشتريات",'الحركات اليومية'!$C:$C,$B188) -> 0 | H188: 0 | I188: =SUMIFS('الحركات اليومية'!$G:$G,'الحركات اليومية'!$E:$E,"مرتجعات",'الحركات اليومية'!$C:$C,$B188) -> 0 | J188: 0 | M188: =SUMIFS('الحركات اليومية'!$G:$G,'الحركات اليومية'!$E:$E,"مبيعات",'الحركات اليومية'!$C:$C,$B188) -> 0 | N188: 0 | O188: 0 | P188: 0
A189: 190 | F189: 0 | G189: =SUMIFS('الحركات اليومية'!$G:$G,'الحركات اليومية'!$E:$E,"مشتريات",'الحركات اليومية'!$C:$C,$B189) -> 0 | H189: 0 | I189: =SUMIFS('الحركات اليومية'!$G:$G,'الحركات اليومية'!$E:$E,"مرتجعات",'الحركات اليومية'!$C:$C,$B189) -> 0 | J189: 0 | M189: =SUMIFS('الحركات اليومية'!$G:$G,'الحركات اليومية'!$E:$E,"مبيعات",'الحركات اليومية'!$C:$C,$B189) -> 0 | N189: 0 | O189: 0 | P189: 0
A190: 191 | F190: 0 | G190: =SUMIFS('الحركات اليومية'!$G:$G,'الحركات اليومية'!$E:$E,"مشتريات",'الحركات اليومية'!$C:$C,$B190) -> 0 | H190: 0 | I190: =SUMIFS('الحركات اليومية'!$G:$G,'الحركات اليومية'!$E:$E,"مرتجعات",'الحركات اليومية'!$C:$C,$B190) -> 0 | J190: 0 | M190: =SUMIFS('الحركات اليومية'!$G:$G,'الحركات اليومية'!$E:$E,"مبيعات",'الحركات اليومية'!$C:$C,$B190) -> 0 | N190: 0 | O190: 0 | P190: 0
A191: 192 | F191: 0 | G191: =SUMIFS('الحركات اليومية'!$G:$G,'الحركات اليومية'!$E:$E,"مشتريات",'الحركات اليومية'!$C:$C,$B191) -> 0 | H191: 0 | I191: =SUMIFS('الحركات اليومية'!$G:$G,'الحركات اليومية'!$E:$E,"مرتجعات",'الحركات اليومية'!$C:$C,$B191) -> 0 | J191: 0 | M191: =SUMIFS('الحركات اليومية'!$G:$G,'الحركات اليومية'!$E:$E,"مبيعات",'الحركات اليومية'!$C:$C,$B191) -> 0 | N191: 0 | O191: 0 | P191: 0
A192: 193 | F192: 0 | G192: =SUMIFS('الحركات اليومية'!$G:$G,'الحركات اليومية'!$E:$E,"مشتريات",'الحركات اليومية'!$C:$C,$B192) -> 0 | H192: 0 | I192: =SUMIFS('الحركات اليومية'!$G:$G,'الحركات اليومية'!$E:$E,"مرتجعات",'الحركات اليومية'!$C:$C,$B192) -> 0 | J192: 0 | M192: =SUMIFS('الحركات اليومية'!$G:$G,'الحركات اليومية'!$E:$E,"مبيعات",'الحركات اليومية'!$C:$C,$B192) -> 0 | N192: 0 | O192: 0 | P192: 0
A193: 194 | F193: 0 | G193: =SUMIFS('الحركات اليومية'!$G:$G,'الحركات اليومية'!$E:$E,"مشتريات",'الحركات اليومية'!$C:$C,$B193) -> 0 | H193: 0 | I193: =SUMIFS('الحركات اليومية'!$G:$G,'الحركات اليومية'!$E:$E,"مرتجعات",'الحركات اليومية'!$C:$C,$B193) -> 0 | J193: 0 | M193: =SUMIFS('الحركات اليومية'!$G:$G,'الحركات اليومية'!$E:$E,"مبيعات",'الحركات اليومية'!$C:$C,$B193) -> 0 | N193: 0 | O193: 0 | P193: 0
A194: 195 | F194: 0 | G194: =SUMIFS('الحركات اليومية'!$G:$G,'الحركات اليومية'!$E:$E,"مشتريات",'الحركات اليومية'!$C:$C,$B194) -> 0 | H194: 0 | I194: =SUMIFS('الحركات اليومية'!$G:$G,'الحركات اليومية'!$E:$E,"مرتجعات",'الحركات اليومية'!$C:$C,$B194) -> 0 | J194: 0 | M194: =SUMIFS('الحركات اليومية'!$G:$G,'الحركات اليومية'!$E:$E,"مبيعات",'الحركات اليومية'!$C:$C,$B194) -> 0 | N194: 0 | O194: 0 | P194: 0
A195: 196 | F195: 0 | G195: =SUMIFS('الحركات اليومية'!$G:$G,'الحركات اليومية'!$E:$E,"مشتريات",'الحركات اليومية'!$C:$C,$B195) -> 0 | H195: =G195*C195 -> 0 | I195: =SUMIFS('الحركات اليومية'!$G:$G,'الحركات اليومية'!$E:$E,"مرتجعات",'الحركات اليومية'!$C:$C,$B195) -> 0 | J195: =IFERROR(I195*C195,"") -> 0 | M195: =SUMIFS('الحركات اليومية'!$G:$G,'الحركات اليومية'!$E:$E,"مبيعات",'الحركات اليومية'!$C:$C,$B195) -> 0 | N195: 0 | O195: 0 | P195: 0
A196: 197 | F196: =E196*C196 -> 0 | G196: =SUMIFS('الحركات اليومية'!$G:$G,'الحركات اليومية'!$E:$E,"مشتريات",'الحركات اليومية'!$C:$C,$B196) -> 0 | H196: 0 | I196: =SUMIFS('الحركات اليومية'!$G:$G,'الحركات اليومية'!$E:$E,"مرتجعات",'الحركات اليومية'!$C:$C,$B196) -> 0 | J196: 0 | M196: =SUMIFS('الحركات اليومية'!$G:$G,'الحركات اليومية'!$E:$E,"مبيعات",'الحركات اليومية'!$C:$C,$B196) -> 0 | N196: =M196*D196 -> 0 | O196: 0 | P196: 0
A197: 198 | F197: 0 | G197: =SUMIFS('الحركات اليومية'!$G:$G,'الحركات اليومية'!$E:$E,"مشتريات",'الحركات اليومية'!$C:$C,$B197) -> 0 | H197: 0 | I197: =SUMIFS('الحركات اليومية'!$G:$G,'الحركات اليومية'!$E:$E,"مرتجعات",'الحركات اليومية'!$C:$C,$B197) -> 0 | J197: 0 | M197: =SUMIFS('الحركات اليومية'!$G:$G,'الحركات اليومية'!$E:$E,"مبيعات",'الحركات اليومية'!$C:$C,$B197) -> 0 | N197: 0 | O197: =(E197+G197+I197)-M197 -> 0 | P197: =(F197+H197+J197)-N197 -> 0
A198: 199 | F198: 0 | G198: =SUMIFS('الحركات اليومية'!$G:$G,'الحركات اليومية'!$E:$E,"مشتريات",'الحركات اليومية'!$C:$C,$B198) -> 0 | H198: 0 | I198: =SUMIFS('الحركات اليومية'!$G:$G,'الحركات اليومية'!$E:$E,"مرتجعات",'الحركات اليومية'!$C:$C,$B198) -> 0 | J198: 0 | M198: =SUMIFS('الحركات اليومية'!$G:$G,'الحركات اليومية'!$E:$E,"مبيعات",'الحركات اليومية'!$C:$C,$B198) -> 0 | N198: 0 | O198: 0 | P198: 0
A199: 200 | F199: 0 | G199: =SUMIFS('الحركات اليومية'!$G:$G,'الحركات اليومية'!$E:$E,"مشتريات",'الحركات اليومية'!$C:$C,$B199) -> 0 | H199: 0 | I199: =SUMIFS('الحركات اليومية'!$G:$G,'الحركات اليومية'!$E:$E,"مرتجعات",'الحركات اليومية'!$C:$C,$B199) -> 0 | J199: 0 | M199: =SUMIFS('الحركات اليومية'!$G:$G,'الحركات اليومية'!$E:$E,"مبيعات",'الحركات اليومية'!$C:$C,$B199) -> 0 | N199: 0 | O199: 0 | P199: 0
A200: 201 | F200: 0 | G200: =SUMIFS('الحركات اليومية'!$G:$G,'الحركات اليومية'!$E:$E,"مشتريات",'الحركات اليومية'!$C:$C,$B200) -> 0 | H200: 0 | I200: =SUMIFS('الحركات اليومية'!$G:$G,'الحركات اليومية'!$E:$E,"مرتجعات",'الحركات اليومية'!$C:$C,$B200) -> 0 | J200: 0 | M200: =SUMIFS('الحركات اليومية'!$G:$G,'الحركات اليومية'!$E:$E,"مبيعات",'الحركات اليومية'!$C:$C,$B200) -> 0 | N200: 0 | O200: 0 | P200: 0
... 7468 more rows
